NUMERO_MANDATO;RIGA_MANDATO;QUIET;IMPORTO_RIGA;IMPORTO_MANDATO;BENEFICIARIO;CIG;TITOLO_PAGAMENTO;DATA_MANDATO;CAPITOLO;ARTICOLO;NUMERO_IMPEGNO;TITOLO;DESCR_TITOLO;LIVELLO_II;DESCR_LIVELLO_II;LIVELLO_III;DESCR_LIVELLO_III;LIVELLO_IV;DESCR_LIVELLO_IV;LIVELLO_V;DESCR_LIVELLO_V;DATA_PAG_EFF;
358;1;0;"500,00";"500,00";OMESSO NOMINATIVO NEL RISPETTO DELLA NORMATIVA SULLA PROTEZIONE DATI PERSONALI; ;CONTRIBUTO ECONOMICO STRAORDINARIO.;07-04-2020;576;0;106;1;Spese correnti;4;Trasferimenti correnti;2;Trasferimenti correnti a Famiglie;2;Interventi assistenziali;999;Altri assegni e sussidi assistenziali;07-04-2020;
359;1;0;"189,84";"189,84";SCUOLA DELL'INFANZIA PARITARIA S. GIUSEPPE; ;IMPEGNO E LIQUIDAZIONE CONTRIBUTO ALLA SCUOLA MATERNA SAN GIUSEPPE DI SAN ZENONE DEGLI EZZELINI.;08-04-2020;51;1;660;1;Spese correnti;3;Acquisto di beni e servizi;2;Acquisto di servizi;99;Altri servizi;3;Quote di associazioni;08-04-2020;
364;1;0;"76,80";"76,80";PERSONALE DIPENDENTE - SEDE; ;IMPEGNO DI SPESA PER RIMBORSO SPESE E ACCESSI AL SEGRETARIO COMUNALE DR. ORSO PAOLO - MESE DI GENNAIO 2020.;14-04-2020;20;0;107;1;Spese correnti;3;Acquisto di beni e servizi;2;Acquisto di servizi;2;"Organizzazione eventi, pubblicita` e servizi per trasferta";1;Rimborso per viaggio e trasloco;14-04-2020;
391;1;0;"5.961,21";"5.961,21";AMMINISTRATORI COMUNALI; ;STIPENDI MESE DI: APRILE 20;14-04-2020;2;0;1;1;Spese correnti;3;Acquisto di beni e servizi;2;Acquisto di servizi;1;Organi e incarichi istituzionali dell'amministrazione;1;Organi istituzionali dell'amministrazione - Indennità;14-04-2020;
392;1;0;"610,20";"610,20";AMMINISTRATORI COMUNALI; ;STIPENDI MESE DI: APRILE 20 - Gettoni di presenza a.p.;14-04-2020;2;0;659;1;Spese correnti;3;Acquisto di beni e servizi;2;Acquisto di servizi;1;Organi e incarichi istituzionali dell'amministrazione;1;Organi istituzionali dell'amministrazione - Indennità;14-04-2020;
396;1;0;"19,13";"2.137,94";SERVIZIO ELETTRICO NAZIONALE SpA;7134285639;SALDO Fatt.n. 263552355070025  del 04/03/2020 SERVIZIO ELETTRICO: FEBB -MARZO 2020;17-04-2020;600;0;342;1;Spese correnti;3;Acquisto di beni e servizi;2;Acquisto di servizi;5;Utenze e canoni;4;Energia elettrica;17-04-2020;
396;2;0;"19,13";"2.137,94";SERVIZIO ELETTRICO NAZIONALE SpA;7134285639;SALDO Fatt.n. 263552355071025  del 04/03/2020 SERVIZIO ELETTRICO: FEBB-MARZO 2020;17-04-2020;600;0;342;1;Spese correnti;3;Acquisto di beni e servizi;2;Acquisto di servizi;5;Utenze e canoni;4;Energia elettrica;17-04-2020;
396;3;0;"38,87";"2.137,94";SERVIZIO ELETTRICO NAZIONALE SpA;7134285639;SALDO Fatt.n. 263552955086025  del 04/03/2020 SERVIZIO ELETTRICO- FEBB MARZO 2020;17-04-2020;600;0;342;1;Spese correnti;3;Acquisto di beni e servizi;2;Acquisto di servizi;5;Utenze e canoni;4;Energia elettrica;17-04-2020;
396;4;0;"46,80";"2.137,94";SERVIZIO ELETTRICO NAZIONALE SpA;7134285639;SALDO Fatt.n. 263558005001025  del 04/03/2020 SERVIZIO ELETTRICO: FEBB -MARZO 2020;17-04-2020;600;0;342;1;Spese correnti;3;Acquisto di beni e servizi;2;Acquisto di servizi;5;Utenze e canoni;4;Energia elettrica;17-04-2020;
396;5;0;"58,19";"2.137,94";SERVIZIO ELETTRICO NAZIONALE SpA;7134285639;SALDO Fatt.n. 263551302001025  del 04/03/2020 SERVIZIO ELETTRICO: FEBB-MARZO 2020;17-04-2020;600;0;342;1;Spese correnti;3;Acquisto di beni e servizi;2;Acquisto di servizi;5;Utenze e canoni;4;Energia elettrica;17-04-2020;
396;6;0;"377,85";"2.137,94";SERVIZIO ELETTRICO NAZIONALE SpA;7134285639;SALDO Fatt.n. 263552205014425  del 10/03/2020 SERVIZIO ELETTRICO: FEBB-MARZO 2020;17-04-2020;600;0;342;1;Spese correnti;3;Acquisto di beni e servizi;2;Acquisto di servizi;5;Utenze e canoni;4;Energia elettrica;17-04-2020;
396;7;0;"498,69";"2.137,94";SERVIZIO ELETTRICO NAZIONALE SpA;7134285639;SALDO Fatt.n. 263556206005825  del 04/03/2020 SERVIZIO ELETTRICO: FEBB-MARZO 2020;17-04-2020;600;0;342;1;Spese correnti;3;Acquisto di beni e servizi;2;Acquisto di servizi;5;Utenze e canoni;4;Energia elettrica;17-04-2020;
396;8;0;"513,38";"2.137,94";SERVIZIO ELETTRICO NAZIONALE SpA;7134285639;SALDO Fatt.n. 263556202002921  del 10/03/2020 SERVIZIO ELETTRICO: FEBB-MARZO 2020;17-04-2020;600;0;342;1;Spese correnti;3;Acquisto di beni e servizi;2;Acquisto di servizi;5;Utenze e canoni;4;Energia elettrica;17-04-2020;
396;9;0;"565,90";"2.137,94";SERVIZIO ELETTRICO NAZIONALE SpA;7134285639;SALDO Fatt.n. 263557855000725  del 10/03/2020 SERVIZIO ELETTRICO: FEBB-MARZO 2020;17-04-2020;600;0;342;1;Spese correnti;3;Acquisto di beni e servizi;2;Acquisto di servizi;5;Utenze e canoni;4;Energia elettrica;17-04-2020;
397;1;0;"65,15";"4.021,45";SERVIZIO ELETTRICO NAZIONALE SpA;7134285639;SALDO Fatt.n. 263556202001025  del 10/03/2020 SERVIZIO ELETTRICO: FEBB-MARZO 2020;17-04-2020;600;0;342;1;Spese correnti;3;Acquisto di beni e servizi;2;Acquisto di servizi;5;Utenze e canoni;4;Energia elettrica;17-04-2020;
397;2;0;"87,03";"4.021,45";SERVIZIO ELETTRICO NAZIONALE SpA;7134285639;SALDO Fatt.n. 263556405000515  del 10/03/2020 SERVIZIO ELETTRICO: FEBB-MARZO 2020;17-04-2020;600;0;342;1;Spese correnti;3;Acquisto di beni e servizi;2;Acquisto di servizi;5;Utenze e canoni;4;Energia elettrica;17-04-2020;
397;3;0;"111,73";"4.021,45";SERVIZIO ELETTRICO NAZIONALE SpA;7134285639;SALDO Fatt.n. 263554455040025  del 10/03/2020 SERVIZIO ELETTRICO: FEBB-MARZO 2020;17-04-2020;600;0;342;1;Spese correnti;3;Acquisto di beni e servizi;2;Acquisto di servizi;5;Utenze e canoni;4;Energia elettrica;17-04-2020;
397;4;0;"167,31";"4.021,45";SERVIZIO ELETTRICO NAZIONALE SpA;7134285639;SALDO Fatt.n. 263555505042025  del 10/03/2020 SERVIZIO ELETTRICO: FEBB-MARZO 2020;17-04-2020;600;0;342;1;Spese correnti;3;Acquisto di beni e servizi;2;Acquisto di servizi;5;Utenze e canoni;4;Energia elettrica;17-04-2020;
397;5;0;"202,41";"4.021,45";SERVIZIO ELETTRICO NAZIONALE SpA;7134285639;SALDO Fatt.n. 263554605018525  del 10/03/2020 SERVIZIO ELETTRICO: FEBB-MARZO 2020;17-04-2020;600;0;342;1;Spese correnti;3;Acquisto di beni e servizi;2;Acquisto di servizi;5;Utenze e canoni;4;Energia elettrica;17-04-2020;
397;6;0;"206,23";"4.021,45";SERVIZIO ELETTRICO NAZIONALE SpA;7134285639;SALDO Fatt.n. 263554355002021  del 10/03/2020 SERVIZIO ELETTRICO: FEBB-MARZO 2020;17-04-2020;600;0;342;1;Spese correnti;3;Acquisto di beni e servizi;2;Acquisto di servizi;5;Utenze e canoni;4;Energia elettrica;17-04-2020;
397;7;0;"259,98";"4.021,45";SERVIZIO ELETTRICO NAZIONALE SpA;7134285639;SALDO Fatt.n. 263555806046325  del 10/03/2020 SERVIZIO ELETTRICO: FEBB-MARZO 2020;17-04-2020;600;0;342;1;Spese correnti;3;Acquisto di beni e servizi;2;Acquisto di servizi;5;Utenze e canoni;4;Energia elettrica;17-04-2020;
397;8;0;"391,90";"4.021,45";SERVIZIO ELETTRICO NAZIONALE SpA;7134285639;SALDO Fatt.n. 263552505054225  del 10/03/2020 SERVIZIO ELETTRICO: FEBB-MARZO 2020;17-04-2020;600;0;342;1;Spese correnti;3;Acquisto di beni e servizi;2;Acquisto di servizi;5;Utenze e canoni;4;Energia elettrica;17-04-2020;
397;9;0;"739,49";"4.021,45";SERVIZIO ELETTRICO NAZIONALE SpA;7134285639;SALDO Fatt.n. 263552955069525  del 10/03/2020 SERVIZIO ELETRRICO: FEBB-MARZO 2020;17-04-2020;600;0;342;1;Spese correnti;3;Acquisto di beni e servizi;2;Acquisto di servizi;5;Utenze e canoni;4;Energia elettrica;17-04-2020;
397;10;0;"1.790,22";"4.021,45";SERVIZIO ELETTRICO NAZIONALE SpA;7134285639;SALDO Fatt.n. 263554153015525  del 10/03/2020 SERVIZIO ELETTRICO: FEBB-MARZO 2020;17-04-2020;600;0;342;1;Spese correnti;3;Acquisto di beni e servizi;2;Acquisto di servizi;5;Utenze e canoni;4;Energia elettrica;17-04-2020;
398;1;0;"11,64";"3.728,05";SERVIZIO ELETTRICO NAZIONALE SpA;7134285639;SALDO Fatt.n. 263553405085025  del 10/03/2020 SERVIZIO ELETTRICO: FEBB-MARZO 2020;17-04-2020;600;0;342;1;Spese correnti;3;Acquisto di beni e servizi;2;Acquisto di servizi;5;Utenze e canoni;4;Energia elettrica;17-04-2020;
398;2;0;"31,10";"3.728,05";SERVIZIO ELETTRICO NAZIONALE SpA;7134285639;SALDO Fatt.n. 263555005016524  del 10/03/2020 SERVIZIO ELETTRICO: FEBB-MARZO 2020;17-04-2020;600;0;342;1;Spese correnti;3;Acquisto di beni e servizi;2;Acquisto di servizi;5;Utenze e canoni;4;Energia elettrica;17-04-2020;
398;3;0;"94,77";"3.728,05";SERVIZIO ELETTRICO NAZIONALE SpA;7134285639;SALDO Fatt.n. 263553705034525  del 10/03/2020 SERVIZIO ELETTRICO: FEBB-MARZO 2020;17-04-2020;600;0;342;1;Spese correnti;3;Acquisto di beni e servizi;2;Acquisto di servizi;5;Utenze e canoni;4;Energia elettrica;17-04-2020;
398;4;0;"223,03";"3.728,05";SERVIZIO ELETTRICO NAZIONALE SpA;7134285639;SALDO Fatt.n. 263551755011425  del 10/03/2020 SERVIZIO ELETTRICO: FEBB-MARZO 2020;17-04-2020;600;0;342;1;Spese correnti;3;Acquisto di beni e servizi;2;Acquisto di servizi;5;Utenze e canoni;4;Energia elettrica;17-04-2020;
398;5;0;"265,98";"3.728,05";SERVIZIO ELETTRICO NAZIONALE SpA;7134285639;SALDO Fatt.n. 263553105005025  del 10/03/2020 SERVIZIO ELETTRICO: FEBB-MARZO 2020;17-04-2020;600;0;342;1;Spese correnti;3;Acquisto di beni e servizi;2;Acquisto di servizi;5;Utenze e canoni;4;Energia elettrica;17-04-2020;
398;6;0;"323,10";"3.728,05";SERVIZIO ELETTRICO NAZIONALE SpA;7134285639;SALDO Fatt.n. 263556423052025  del 10/03/2020 SERVIZIO ELETTRICO: FEBB-MARZO 2020;17-04-2020;600;0;342;1;Spese correnti;3;Acquisto di beni e servizi;2;Acquisto di servizi;5;Utenze e canoni;4;Energia elettrica;17-04-2020;
398;7;0;"411,52";"3.728,05";SERVIZIO ELETTRICO NAZIONALE SpA;7134285639;SALDO Fatt.n. 263557405021025  del 10/03/2020 SERVIZIO ELETTRICO: FEBB-MRAZO 2020;17-04-2020;600;0;342;1;Spese correnti;3;Acquisto di beni e servizi;2;Acquisto di servizi;5;Utenze e canoni;4;Energia elettrica;17-04-2020;
398;8;0;"548,54";"3.728,05";SERVIZIO ELETTRICO NAZIONALE SpA;7134285639;SALDO Fatt.n. 263552103001025  del 10/03/2020 SERVIZIO ELETTRICO: FEBB-MARZO 2020;17-04-2020;600;0;342;1;Spese correnti;3;Acquisto di beni e servizi;2;Acquisto di servizi;5;Utenze e canoni;4;Energia elettrica;17-04-2020;
398;9;0;"833,00";"3.728,05";SERVIZIO ELETTRICO NAZIONALE SpA;7134285639;SALDO Fatt.n. 263553056001025  del 10/03/2020 SERVIZIO ELETTRICO: FEBB-MARZO 2020;17-04-2020;600;0;342;1;Spese correnti;3;Acquisto di beni e servizi;2;Acquisto di servizi;5;Utenze e canoni;4;Energia elettrica;17-04-2020;
398;10;0;"985,37";"3.728,05";SERVIZIO ELETTRICO NAZIONALE SpA;7134285639;SALDO Fatt.n. 263552823001125  del 10/03/2020 SERVIZIO ELETTRICO: FEBB-MARZO 2020;17-04-2020;600;0;342;1;Spese correnti;3;Acquisto di beni e servizi;2;Acquisto di servizi;5;Utenze e canoni;4;Energia elettrica;17-04-2020;
399;1;0;"26,95";"2.925,99";SERVIZIO ELETTRICO NAZIONALE SpA;7134285639;SALDO Fatt.n. 263554005004015  del 10/03/2020 SERVIZIO ELETTRICO: FEBB-MARZO 2020;17-04-2020;600;0;342;1;Spese correnti;3;Acquisto di beni e servizi;2;Acquisto di servizi;5;Utenze e canoni;4;Energia elettrica;17-04-2020;
399;2;0;"128,94";"2.925,99";SERVIZIO ELETTRICO NAZIONALE SpA;7134285639;SALDO Fatt.n. 263558205009525  del 10/03/2020 SERVIZIO ELETTRICO: FEBB-MARZO 2020;17-04-2020;600;0;342;1;Spese correnti;3;Acquisto di beni e servizi;2;Acquisto di servizi;5;Utenze e canoni;4;Energia elettrica;17-04-2020;
399;3;0;"130,10";"2.925,99";SERVIZIO ELETTRICO NAZIONALE SpA;7134285639;SALDO Fatt.n. 263552655019125  del 10/03/2020 SERVIZIO ELETTRICO: FEBB-MARZO 2020;17-04-2020;600;0;342;1;Spese correnti;3;Acquisto di beni e servizi;2;Acquisto di servizi;5;Utenze e canoni;4;Energia elettrica;17-04-2020;
399;4;0;"203,00";"2.925,99";SERVIZIO ELETTRICO NAZIONALE SpA;7134285639;SALDO Fatt.n. 263553075001825  del 10/03/2020 SERVIZIO ELETTRICO: FEBB-MARZO 2020;17-04-2020;600;0;342;1;Spese correnti;3;Acquisto di beni e servizi;2;Acquisto di servizi;5;Utenze e canoni;4;Energia elettrica;17-04-2020;
399;5;0;"930,45";"2.925,99";SERVIZIO ELETTRICO NAZIONALE SpA;7134285639;SALDO Fatt.n. 263555802001025  del 10/03/2020 SERVIZIO ELETTRICO: FEBB-MARZO 2020;17-04-2020;600;0;342;1;Spese correnti;3;Acquisto di beni e servizi;2;Acquisto di servizi;5;Utenze e canoni;4;Energia elettrica;17-04-2020;
399;6;0;"1.506,55";"2.925,99";SERVIZIO ELETTRICO NAZIONALE SpA;7134285639;SALDO Fatt.n. 263557205052025  del 10/03/2020 SERVIZIO ELETTRICO: FEBB-MARZO 2020;17-04-2020;600;0;342;1;Spese correnti;3;Acquisto di beni e servizi;2;Acquisto di servizi;5;Utenze e canoni;4;Energia elettrica;17-04-2020;
400;1;0;"48,42";"5.338,98";SERVIZIO ELETTRICO NAZIONALE SpA;7134285639;SALDO Fatt.n. 263553255013525  del 10/03/2020 SERVIZIO ELETTRICO: FEBB-MARZO 2020;17-04-2020;600;0;342;1;Spese correnti;3;Acquisto di beni e servizi;2;Acquisto di servizi;5;Utenze e canoni;4;Energia elettrica;17-04-2020;
400;2;0;"133,35";"5.338,98";SERVIZIO ELETTRICO NAZIONALE SpA;7134285639;SALDO Fatt.n. 263552355001025  del 10/03/2020 SERVIZIO ELETTRICO: FEBB-MARZO 2020;17-04-2020;600;0;342;1;Spese correnti;3;Acquisto di beni e servizi;2;Acquisto di servizi;5;Utenze e canoni;4;Energia elettrica;17-04-2020;
400;3;0;"166,46";"5.338,98";SERVIZIO ELETTRICO NAZIONALE SpA;7134285639;SALDO Fatt.n. 263558505000215  del 10/03/2020 SERVIZIO ELETTRICO: FEBB-MARZO 2020;17-04-2020;600;0;342;1;Spese correnti;3;Acquisto di beni e servizi;2;Acquisto di servizi;5;Utenze e canoni;4;Energia elettrica;17-04-2020;
400;4;0;"169,08";"5.338,98";SERVIZIO ELETTRICO NAZIONALE SpA;7134285639;SALDO Fatt.n. 263558706024525  del 10/03/2020 SERVIZIO ELETTRICO: FEBB-MARZO 2020;17-04-2020;600;0;342;1;Spese correnti;3;Acquisto di beni e servizi;2;Acquisto di servizi;5;Utenze e canoni;4;Energia elettrica;17-04-2020;
400;5;0;"557,72";"5.338,98";SERVIZIO ELETTRICO NAZIONALE SpA;7134285639;SALDO Fatt.n. 263554306019025  del 10/03/2020 SERVIZIO ELETTRICO: FEBB-MARZO 2020;17-04-2020;600;0;342;1;Spese correnti;3;Acquisto di beni e servizi;2;Acquisto di servizi;5;Utenze e canoni;4;Energia elettrica;17-04-2020;
400;6;0;"593,26";"5.338,98";SERVIZIO ELETTRICO NAZIONALE SpA;7134285639;SALDO Fatt.n. 263551603001525  del 10/03/2020 SERVIZIO ELETTRICO: FEBB-MARZO 2020;17-04-2020;600;0;342;1;Spese correnti;3;Acquisto di beni e servizi;2;Acquisto di servizi;5;Utenze e canoni;4;Energia elettrica;17-04-2020;
400;7;0;"1.214,29";"5.338,98";SERVIZIO ELETTRICO NAZIONALE SpA;7134285639;SALDO Fatt.n. 263553556070025  del 10/03/2020 SERVIZIO ELETTRICO: FEBB-MARZO 2020;17-04-2020;600;0;342;1;Spese correnti;3;Acquisto di beni e servizi;2;Acquisto di servizi;5;Utenze e canoni;4;Energia elettrica;17-04-2020;
400;8;0;"2.456,40";"5.338,98";SERVIZIO ELETTRICO NAZIONALE SpA;7134285639;SALDO Fatt.n. 263554753017525  del 10/03/2020 SERVIZIO ELETTRICO: FEBB-MARZO 2020;17-04-2020;600;0;342;1;Spese correnti;3;Acquisto di beni e servizi;2;Acquisto di servizi;5;Utenze e canoni;4;Energia elettrica;17-04-2020;
401;1;0;"177,42";"177,42";SERVIZIO ELETTRICO NAZIONALE SpA;7134285639;SALDO Fatt.n. 263556805005521  del 10/03/2020 SERVIZIO ELETTRICO: FEBB-MARZO 2020;17-04-2020;310;0;338;1;Spese correnti;3;Acquisto di beni e servizi;2;Acquisto di servizi;5;Utenze e canoni;4;Energia elettrica;17-04-2020;
402;1;0;"458,00";"458,00";SERVIZIO ELETTRICO NAZIONALE SpA;7134285639;SALDO Fatt.n. 263552205013412  del 03/03/2020 SERVIZIO ELETTRICO-FEBBRAIO 2020;17-04-2020;561;2;341;1;Spese correnti;3;Acquisto di beni e servizi;2;Acquisto di servizi;5;Utenze e canoni;4;Energia elettrica;17-04-2020;
403;1;0;"213,35";"213,35";SERVIZIO ELETTRICO NAZIONALE SpA;7134285639;SALDO Fatt.n. 263558005001245  del 10/03/2020 SERVIZIO ELETTRICO: FEBB-MARZO 2020;17-04-2020;561;2;339;1;Spese correnti;3;Acquisto di beni e servizi;2;Acquisto di servizi;5;Utenze e canoni;4;Energia elettrica;17-04-2020;
404;1;0;"89,01";"906,41";SERVIZIO ELETTRICO NAZIONALE SpA;7134285639;SALDO Fatt.n. 263558703001121  del 10/03/2020 SERVIZIO ELETTRICO: FEBB-MARZO 2020;17-04-2020;530;0;340;1;Spese correnti;3;Acquisto di beni e servizi;2;Acquisto di servizi;5;Utenze e canoni;4;Energia elettrica;17-04-2020;
404;2;0;"817,40";"906,41";SERVIZIO ELETTRICO NAZIONALE SpA;7134285639;SALDO Fatt.n. 263557855000531  del 10/03/2020 SERVIZIO ELETTRICO: FEBB-MARZO 2020;17-04-2020;530;0;340;1;Spese correnti;3;Acquisto di beni e servizi;2;Acquisto di servizi;5;Utenze e canoni;4;Energia elettrica;17-04-2020;
405;1;0;"189,25";"465,04";SERVIZIO ELETTRICO NAZIONALE SpA;7134285639;SALDO Fatt.n. 263551155002021  del 10/03/2020 SERVIZIO ELETTRICO: FEBB-MARZO 2020;17-04-2020;235;0;335;1;Spese correnti;3;Acquisto di beni e servizi;2;Acquisto di servizi;5;Utenze e canoni;4;Energia elettrica;17-04-2020;
405;2;0;"275,79";"465,04";SERVIZIO ELETTRICO NAZIONALE SpA;7134285639;SALDO Fatt.n. 263555804069045  del 10/03/2020 SERVIZIO ELETTRICO: FEBB-MARZO 2020;17-04-2020;235;0;335;1;Spese correnti;3;Acquisto di beni e servizi;2;Acquisto di servizi;5;Utenze e canoni;4;Energia elettrica;17-04-2020;
406;1;0;"88,45";"459,81";SERVIZIO ELETTRICO NAZIONALE SpA;7134285639;SALDO Fatt.n. 263553356000525  del 10/03/2020 SERVIZIO ELETTRICO: FEBB-MARZO 2020;17-04-2020;413;0;337;1;Spese correnti;3;Acquisto di beni e servizi;2;Acquisto di servizi;5;Utenze e canoni;4;Energia elettrica;17-04-2020;
406;2;0;"138,10";"459,81";SERVIZIO ELETTRICO NAZIONALE SpA;7134285639;SALDO Fatt.n. 263555226006525  del 10/03/2020 SERVIZIO ELETTRICO: FEBB-MARZO 2020;17-04-2020;413;0;337;1;Spese correnti;3;Acquisto di beni e servizi;2;Acquisto di servizi;5;Utenze e canoni;4;Energia elettrica;17-04-2020;
406;3;0;"233,26";"459,81";SERVIZIO ELETTRICO NAZIONALE SpA;7134285639;SALDO Fatt.n. 263557855013525  del 10/03/2020 SERVIZIO ELETTRICO: FEBB-MARZO 2020;17-04-2020;413;0;337;1;Spese correnti;3;Acquisto di beni e servizi;2;Acquisto di servizi;5;Utenze e canoni;4;Energia elettrica;17-04-2020;
407;1;0;"191,43";"191,43";SERVIZIO ELETTRICO NAZIONALE SpA;7134285639;SALDO Fatt.n. 263558703010015  del 10/03/2020 SERVIZIO ELETTRICO: FEBB-MARZO 2020;17-04-2020;71;0;334;1;Spese correnti;3;Acquisto di beni e servizi;2;Acquisto di servizi;5;Utenze e canoni;4;Energia elettrica;17-04-2020;
408;1;0;"1.261,19";"1.261,19";SERVIZIO ELETTRICO NAZIONALE SpA;7134285639;SALDO Fatt.n. 263554302002021  del 10/03/2020 SERVIZIO ELETTRICO: FEBB-MARZO 2020;17-04-2020;252;0;336;1;Spese correnti;3;Acquisto di beni e servizi;2;Acquisto di servizi;5;Utenze e canoni;4;Energia elettrica;17-04-2020;
409;1;0;"91,10";"91,10";ALTO TREVIGIANO SERVIZI S.R.L.;Z3F2BAC0F4;SALDO Fatt.n. 62202000000311  del 12/03/2020 SERVIZIO IDRICO: OTT. 2019 -GENN 2020;17-04-2020;310;0;99;1;Spese correnti;3;Acquisto di beni e servizi;2;Acquisto di servizi;5;Utenze e canoni;5;Acqua;17-04-2020;
410;1;0;"164,21";"164,21";ALTO TREVIGIANO SERVIZI S.R.L.;Z3F2BAC0F4;"SALDO Fatt.n. 62202000000313  del 12/03/2020 SERVIZIO IDRICO -OTT 2019, MARZO 2020";17-04-2020;34;0;97;1;Spese correnti;3;Acquisto di beni e servizi;2;Acquisto di servizi;5;Utenze e canoni;5;Acqua;17-04-2020;
411;1;0;"141,58";"2.539,24";ALTO TREVIGIANO SERVIZI S.R.L.;Z3F2BAC0F4;SALDO Fatt.n. 62202000000325  del 12/03/2020 SERVIZIO IDRICO: OTT 2019 GENN 2020;17-04-2020;235;0;98;1;Spese correnti;3;Acquisto di beni e servizi;2;Acquisto di servizi;5;Utenze e canoni;5;Acqua;17-04-2020;
411;2;0;"424,17";"2.539,24";ALTO TREVIGIANO SERVIZI S.R.L.;Z3F2BAC0F4;SALDO Fatt.n. 62202000000315  del 12/03/2020 SERVIZIO IDRICO: OTT 2019-GENN 2020;17-04-2020;235;0;98;1;Spese correnti;3;Acquisto di beni e servizi;2;Acquisto di servizi;5;Utenze e canoni;5;Acqua;17-04-2020;
411;3;0;"448,56";"2.539,24";ALTO TREVIGIANO SERVIZI S.R.L.;Z3F2BAC0F4;SALDO Fatt.n. 62202000000324  del 12/03/2020 SERVIZIO IDRICO: OTT 2019-GENN 2020;17-04-2020;235;0;98;1;Spese correnti;3;Acquisto di beni e servizi;2;Acquisto di servizi;5;Utenze e canoni;5;Acqua;17-04-2020;
411;4;0;"1.524,93";"2.539,24";ALTO TREVIGIANO SERVIZI S.R.L.;Z3F2BAC0F4;SALDO Fatt.n. 62202000000318  del 12/03/2020 SERVIZIO IDRICO: OTT 2019-GENN 2020;17-04-2020;235;0;98;1;Spese correnti;3;Acquisto di beni e servizi;2;Acquisto di servizi;5;Utenze e canoni;5;Acqua;17-04-2020;
412;1;0;"64,72";"1.134,32";ALTO TREVIGIANO SERVIZI S.R.L.;Z3F2BAC0F4;SALDO Fatt.n. 62202000000309  del 12/03/2020 SERVIZIO IDRICO: OTT 2019-GENN 2020;17-04-2020;530;0;103;1;Spese correnti;3;Acquisto di beni e servizi;2;Acquisto di servizi;5;Utenze e canoni;5;Acqua;17-04-2020;
412;2;0;"200,74";"1.134,32";ALTO TREVIGIANO SERVIZI S.R.L.;Z3F2BAC0F4;SALDO Fatt.n. 62202000000317  del 12/03/2020 SERVIZIO IDRICO: OTT 2019 - GENN 2020;17-04-2020;530;0;103;1;Spese correnti;3;Acquisto di beni e servizi;2;Acquisto di servizi;5;Utenze e canoni;5;Acqua;17-04-2020;
412;3;0;"868,86";"1.134,32";ALTO TREVIGIANO SERVIZI S.R.L.;Z3F2BAC0F4;SALDO Fatt.n. 62202000000316  del 12/03/2020 SERVIZIO IDRICO: OTT 2019-GENN 2020;17-04-2020;530;0;103;1;Spese correnti;3;Acquisto di beni e servizi;2;Acquisto di servizi;5;Utenze e canoni;5;Acqua;17-04-2020;
413;1;0;"0,54";"715,70";ALTO TREVIGIANO SERVIZI S.R.L.;Z3F2BAC0F4;SALDO Fatt.n. 62202000000305  del 12/03/2020 SERVIZIO IDRICO: OTT 2019-GENN 2020;17-04-2020;591;2;105;1;Spese correnti;3;Acquisto di beni e servizi;2;Acquisto di servizi;5;Utenze e canoni;5;Acqua;17-04-2020;
413;2;0;"0,54";"715,70";ALTO TREVIGIANO SERVIZI S.R.L.;Z3F2BAC0F4;SALDO Fatt.n. 62202000000320  del 12/03/2020 SERVIZIO IDRICO: OTT 2019-GENN 2020;17-04-2020;591;2;105;1;Spese correnti;3;Acquisto di beni e servizi;2;Acquisto di servizi;5;Utenze e canoni;5;Acqua;17-04-2020;
413;3;0;"6,96";"715,70";ALTO TREVIGIANO SERVIZI S.R.L.;Z3F2BAC0F4;SALDO Fatt.n. 62202000000322  del 12/03/2020 SERVIZIO IDRICO: OTT 2019-GENN 2020;17-04-2020;591;2;105;1;Spese correnti;3;Acquisto di beni e servizi;2;Acquisto di servizi;5;Utenze e canoni;5;Acqua;17-04-2020;
413;4;0;"9,03";"715,70";ALTO TREVIGIANO SERVIZI S.R.L.;Z3F2BAC0F4;SALDO Fatt.n. 62202000000307  del 12/03/2020 SERVIZIO IDRICO: OTT 2019-GENN 2020;17-04-2020;591;2;105;1;Spese correnti;3;Acquisto di beni e servizi;2;Acquisto di servizi;5;Utenze e canoni;5;Acqua;17-04-2020;
413;5;0;"10,07";"715,70";ALTO TREVIGIANO SERVIZI S.R.L.;Z3F2BAC0F4;SALDO Fatt.n. 62202000000306  del 12/03/2020 SERVIZIO IDRICO: OTT 2019-GENN 2020;17-04-2020;591;2;105;1;Spese correnti;3;Acquisto di beni e servizi;2;Acquisto di servizi;5;Utenze e canoni;5;Acqua;17-04-2020;
413;6;0;"16,28";"715,70";ALTO TREVIGIANO SERVIZI S.R.L.;Z3F2BAC0F4;SALDO Fatt.n. 62202000000323  del 12/03/2020 SERVIZIO IDRICO: OTT 2019-GENN 2020;17-04-2020;591;2;105;1;Spese correnti;3;Acquisto di beni e servizi;2;Acquisto di servizi;5;Utenze e canoni;5;Acqua;17-04-2020;
413;7;0;"47,29";"715,70";ALTO TREVIGIANO SERVIZI S.R.L.;Z3F2BAC0F4;SALDO Fatt.n. 62202000000321  del 12/03/2020 SERVIZIO IDRICO: OTT 2019-GENN 2020;17-04-2020;591;2;105;1;Spese correnti;3;Acquisto di beni e servizi;2;Acquisto di servizi;5;Utenze e canoni;5;Acqua;17-04-2020;
413;8;0;"77,29";"715,70";ALTO TREVIGIANO SERVIZI S.R.L.;Z3F2BAC0F4;SALDO Fatt.n. 62202000000328  del 12/03/2020 SERVIZIO IDRICO: OTT 2019-GENN 2020;17-04-2020;591;2;105;1;Spese correnti;3;Acquisto di beni e servizi;2;Acquisto di servizi;5;Utenze e canoni;5;Acqua;17-04-2020;
413;9;0;"547,70";"715,70";ALTO TREVIGIANO SERVIZI S.R.L.;Z3F2BAC0F4;SALDO Fatt.n. 62202000000314  del 12/03/2020 SERVIZIO IDRICO: OTT 2019-GENN 2020;17-04-2020;591;2;105;1;Spese correnti;3;Acquisto di beni e servizi;2;Acquisto di servizi;5;Utenze e canoni;5;Acqua;17-04-2020;
414;1;0;"19,37";"110,85";ALTO TREVIGIANO SERVIZI S.R.L.;Z3F2BAC0F4;SALDO Fatt.n. 62202000000319  del 12/03/2020 SERVIZIO IDRICO: OTT 2019-GENN 2020;17-04-2020;413;0;102;1;Spese correnti;3;Acquisto di beni e servizi;2;Acquisto di servizi;5;Utenze e canoni;5;Acqua;17-04-2020;
414;2;0;"31,78";"110,85";ALTO TREVIGIANO SERVIZI S.R.L.;Z3F2BAC0F4;SALDO Fatt.n. 62202000000312  del 12/03/2020 SERVIZIO IDRICO: OTT 2019-GENN 2020;17-04-2020;413;0;102;1;Spese correnti;3;Acquisto di beni e servizi;2;Acquisto di servizi;5;Utenze e canoni;5;Acqua;17-04-2020;
414;3;0;"59,70";"110,85";ALTO TREVIGIANO SERVIZI S.R.L.;Z3F2BAC0F4;SALDO Fatt.n. 62202000000310  del 12/03/2020 SERVIZIO IDRICO: OTT 2019-GENN 2020;17-04-2020;413;0;102;1;Spese correnti;3;Acquisto di beni e servizi;2;Acquisto di servizi;5;Utenze e canoni;5;Acqua;17-04-2020;
415;1;0;"13,89";"158,01";ALTO TREVIGIANO SERVIZI S.R.L.;Z3F2BAC0F4;SALDO Fatt.n. 62202000000308  del 12/03/2020 SERVIZIO IDRICO: OTT 2019-GENN 2020;17-04-2020;561;2;100;1;Spese correnti;3;Acquisto di beni e servizi;2;Acquisto di servizi;5;Utenze e canoni;5;Acqua;17-04-2020;
415;2;0;"15,94";"158,01";ALTO TREVIGIANO SERVIZI S.R.L.;Z3F2BAC0F4;SALDO Fatt.n. 62202000000303  del 12/03/2020 SERVIZIO IDRICO: OTT 2019- GENN 2020;17-04-2020;561;2;100;1;Spese correnti;3;Acquisto di beni e servizi;2;Acquisto di servizi;5;Utenze e canoni;5;Acqua;17-04-2020;
415;3;0;"47,19";"158,01";ALTO TREVIGIANO SERVIZI S.R.L.;Z3F2BAC0F4;SALDO Fatt.n. 62202000000327  del 12/03/2020 SERVIZIO IDRICO: OTT 2019-GENN 2020;17-04-2020;561;2;100;1;Spese correnti;3;Acquisto di beni e servizi;2;Acquisto di servizi;5;Utenze e canoni;5;Acqua;17-04-2020;
415;4;0;"80,99";"158,01";ALTO TREVIGIANO SERVIZI S.R.L.;Z3F2BAC0F4;SALDO Fatt.n. 62202000000329  del 12/03/2020 SERVIZIO IDRICO: OTT 2019-GENN 2020;17-04-2020;561;2;100;1;Spese correnti;3;Acquisto di beni e servizi;2;Acquisto di servizi;5;Utenze e canoni;5;Acqua;17-04-2020;
416;1;0;"166,55";"166,55";ALTO TREVIGIANO SERVIZI S.R.L.;Z3F2BAC0F4;SALDO Fatt.n. 62202000000326  del 12/03/2020 SERVIZIO IDRICO: OTT 2019-GENN 2020;17-04-2020;252;0;104;1;Spese correnti;3;Acquisto di beni e servizi;2;Acquisto di servizi;5;Utenze e canoni;5;Acqua;17-04-2020;
417;1;0;"6,96";"6,96";ALTO TREVIGIANO SERVIZI S.R.L.;Z3F2BAC0F4;SALDO Fatt.n. 62202000000304  del 12/03/2020 SERVIZIO IDRICO: OTT 2019-GENN 2020;17-04-2020;313;2;101;1;Spese correnti;3;Acquisto di beni e servizi;2;Acquisto di servizi;5;Utenze e canoni;5;Acqua;17-04-2020;
418;1;0;"866,69";"866,69";LA FONTESE DI GIANNI BROLESE & C. S.A.S.;Z192C3A13E;SALDO Fatt.n. 34/F  del 31/03/2020 FORNITURA CARTA PER FOTOCOPIATORI COMUNALI;17-04-2020;37;0;73;1;Spese correnti;3;Acquisto di beni e servizi;1;Acquisto di beni;2;Altri beni di consumo;1;"Carta, cancelleria e stampati";17-04-2020;
419;1;0;"24,40";"24,40";MyO S.P.A.;Z7D2BF81C2;SALDO Fatt.n. 2040/200007014  del 13/03/2020 FORNITURA MATERIALE PER ELEZIONI;17-04-2020;9;2;34;1;Spese correnti;3;Acquisto di beni e servizi;1;Acquisto di beni;2;Altri beni di consumo;10;Beni per consultazioni elettorali;17-04-2020;
420;1;0;"4.788,22";"4.788,22";STUDIO SMANIOTTO & MOROSIN;Z49292B1FC;SALDO Fatt.n. 10  del 12/03/2020 MIGLIORAMENTO SISMICO PLESSO SCOLASTICO;17-04-2020;779;0;372;2;Spese in conto capitale;2;Investimenti fissi lordi e acquisto di terreni;1;Beni materiali;9;Beni immobili;3;Fabbricati ad uso scolastico;17-04-2020;
421;1;0;"56,40";"56,40";FERRONATO S.R.L.;Z7C26AD935;SALDO Fatt.n. P1  del 29/02/2020 FORNITURA MATERIALE EDILE;17-04-2020;591;0;670;1;Spese correnti;3;Acquisto di beni e servizi;1;Acquisto di beni;2;Altri beni di consumo;999;Altri beni e materiali di consumo n.a.c.;17-04-2020;
422;1;0;"7.637,20";"7.637,20";ACCATRE S.R.L.;ZA02B5B268;SALDO Fatt.n. 200326/1  del 10/03/2020 SERVIZI INFORMATICI;17-04-2020;39;0;83;1;Spese correnti;3;Acquisto di beni e servizi;2;Acquisto di servizi;19;Servizi informatici e di telecomunicazioni;999;Altri servizi informatici e di telecomunicazioni n.a.c.;17-04-2020;
423;1;0;"45,14";"45,14";RED BOX SISTEMI S.R.L.;Z132C33C99;SALDO Fatt.n. 93  del 29/02/2020 SERVIZI INFORMATICI;17-04-2020;33;0;79;1;Spese correnti;3;Acquisto di beni e servizi;1;Acquisto di beni;2;Altri beni di consumo;6;Materiale informatico;17-04-2020;
424;1;0;"200,00";"400,00";SONDA COOPERATIVA SOCIALE ONLUS; ;SALDO Fatt.n. 66/PA/2020  del 29/02/2020 RETTE PER UFF. SOCIALE - UTENTE M.E.- FEBBRAIO 2020;17-04-2020;576;0;84;1;Spese correnti;4;Trasferimenti correnti;2;Trasferimenti correnti a Famiglie;2;Interventi assistenziali;999;Altri assegni e sussidi assistenziali;17-04-2020;
424;2;0;"200,00";"400,00";SONDA COOPERATIVA SOCIALE ONLUS; ;SALDO Fatt.n. 90/PA/2020  del 31/03/2020 RETTE PERSONA BISOGNOSA-MARZO 2020;17-04-2020;576;0;84;1;Spese correnti;4;Trasferimenti correnti;2;Trasferimenti correnti a Famiglie;2;Interventi assistenziali;999;Altri assegni e sussidi assistenziali;17-04-2020;
425;1;0;"12,70";"265,96";ABACO S.P.A.;ZB919D1F1A;SALDO Fatt.n. 2020140001419  del 02/04/2020 RISCOSIONE COATTIVA TRIBUTI - MARZO 2020;17-04-2020;121;0;475;1;Spese correnti;3;Acquisto di beni e servizi;2;Acquisto di servizi;3;Aggi di riscossione;999;Altri aggi di riscossione n.a.c.;17-04-2020;
425;2;0;"253,26";"265,96";ABACO S.P.A.;ZB919D1F1A;SALDO Fatt.n. 2020140001003  del 03/03/2020 RISCOSSIONE COATTIVA TRIBUTI - FEBBRAIO 2020;17-04-2020;121;0;475;1;Spese correnti;3;Acquisto di beni e servizi;2;Acquisto di servizi;3;Aggi di riscossione;999;Altri aggi di riscossione n.a.c.;17-04-2020;
426;1;0;"1.440,00";"1.440,00";N.O.I.  "NUOVI ORIZZONTI INFORMATICI" COOP.SOC.ONLUS;Z5F268727B;SALDO Fatt.n. 129  del 29/02/2020 SERVIZIO GESTIONE BIBLIOTECA-FEBBRAIO 2020;17-04-2020;302;1;553;1;Spese correnti;3;Acquisto di beni e servizi;2;Acquisto di servizi;16;Servizi amministrativi;999;Altre spese per servizi amministrativi;17-04-2020;
427;1;0;"49,07";"3.528,08";A.S. DI ANDREATTA GIUSEPPE & C. S.R.L.;ZB1282AB4D;ACCONTO Fatt.n. 182  del 29/02/2020 OPERE ELETTRICHE SCUOLE;17-04-2020;601;0;567;1;Spese correnti;3;Acquisto di beni e servizi;2;Acquisto di servizi;15;Contratti di servizio pubblico;15;Contratti di servizio per l'illuminazione pubblica;17-04-2020;
427;2;0;"3.479,01";"3.528,08";A.S. DI ANDREATTA GIUSEPPE & C. S.R.L.;ZB1282AB4D;SALDO Fatt.n. 167  del 29/02/2020 MANUTENZIONE ORDINARIA IMP. ELETTRICI COMUNE;17-04-2020;601;0;567;1;Spese correnti;3;Acquisto di beni e servizi;2;Acquisto di servizi;15;Contratti di servizio pubblico;15;Contratti di servizio per l'illuminazione pubblica;17-04-2020;
428;1;0;"449,80";"449,80";A.S. DI ANDREATTA GIUSEPPE & C. S.R.L.;Z692B0DDEB;SALDO Fatt.n. 182  del 29/02/2020 OPERE ELETTRICHE SCUOLE;17-04-2020;1008;3;581;2;Spese in conto capitale;2;Investimenti fissi lordi e acquisto di terreni;1;Beni materiali;9;Beni immobili;12;Infrastrutture stradali;17-04-2020;
429;1;0;"6.000,00";"6.000,00";TONIOLO MOBILI SNC di Toniolo Mauro & C.;ZDF2B4F096;SALDO Fatt.n. 14  del 25/02/2020 RIPARAZIONE GIOSTRE PARCHI PUBBLICI;17-04-2020;888;0;621;2;Spese in conto capitale;2;Investimenti fissi lordi e acquisto di terreni;1;Beni materiali;9;Beni immobili;16;Impianti sportivi;17-04-2020;
430;1;0;"85,40";"85,40";GI.MA. S.A.S. DI ZILLI G. & C.;ZCC2C0CDDC;SALDO Fatt.n. 311  del 03/03/2020 RACCOLTA E SMALTIMENTO CARCASSE ANIMALI;17-04-2020;178;5;76;1;Spese correnti;3;Acquisto di beni e servizi;2;Acquisto di servizi;99;Altri servizi;999;Altri servizi diversi n.a.c.;17-04-2020;
431;1;0;"8.296,00";"8.296,00";BOXXAPPS S.R.L.;ZF3257CC13;SALDO Fatt.n. 200150/1  del 05/03/2020 CONVENZIONE PER SERVIZI DI ASSISTENZA PER L'ANNO 2020;17-04-2020;39;0;427;1;Spese correnti;3;Acquisto di beni e servizi;2;Acquisto di servizi;19;Servizi informatici e di telecomunicazioni;1;Gestione e manutenzione applicazioni;17-04-2020;
432;1;0;"953,39";"953,39";VERDE IDEA DI BOTTER MICHELE;ZC22B3D05B;SALDO Fatt.n. 2P  del 28/02/2020 LAVORI DI SISTEMAZIONE DEL VERDE PUBBLICO;17-04-2020;532;0;656;1;Spese correnti;3;Acquisto di beni e servizi;2;Acquisto di servizi;9;Manutenzione ordinaria e riparazioni;12;Manutenzione ordinaria e riparazioni di terreni e beni materiali non prodotti;17-04-2020;
433;1;0;"4.489,60";"4.489,60";BIGATELLO S.A.S.;ZE62B289C2;SALDO Fatt.n. FVI/435  del 28/02/2020 FORNITURA INFORMATICA;17-04-2020;771;0;609;2;Spese in conto capitale;2;Investimenti fissi lordi e acquisto di terreni;1;Beni materiali;7;Hardware;2;Postazioni di lavoro;17-04-2020;
434;1;0;"66,90";"66,90";MAZZAROLO S.R.L.;Z6D2B8CF82;SALDO Fatt.n. 2020_3_4  del 29/02/2020 MANUTENZIONE AUTOMEZZI COMUNALI;17-04-2020;590;1;9;1;Spese correnti;3;Acquisto di beni e servizi;2;Acquisto di servizi;9;Manutenzione ordinaria e riparazioni;1;"Manutenzione ordinaria e riparazioni di mezzi di trasporto ad uso civile, di sicurezza e ordine pubblico";17-04-2020;
435;1;0;"287,61";"287,61";UNICOOPER SERVIZI S.C.R.L.;ZDB2BDF192;ACCONTO Fatt.n. 312  del 29/02/2020 PULIZIE CENTRO LA ROGGIA - FEBBRAIO 2020;17-04-2020;561;4;48;1;Spese correnti;3;Acquisto di beni e servizi;2;Acquisto di servizi;9;Manutenzione ordinaria e riparazioni;8;Manutenzione ordinaria e riparazioni di beni immobili;17-04-2020;
436;1;0;"579,81";"579,81";UNICOOPER SERVIZI S.C.R.L.;ZDB2BDF192;SALDO Fatt.n. 312  del 29/02/2020 PULIZIE CENTRO LA ROGGIA - FEBBRAIO 2020;17-04-2020;34;2;45;1;Spese correnti;3;Acquisto di beni e servizi;2;Acquisto di servizi;13;Servizi ausiliari per il funzionamento dell'ente;2;Servizi di pulizia e lavanderia;17-04-2020;
437;1;0;"1.781,82";"3.563,64";UNICOOPER SERVIZI S.C.R.L.;ZDB2BDF192;SALDO Fatt.n. 262  del 29/02/2020 PULIZIE EDIFICI - FEBBRAIO 2020;17-04-2020;34;2;45;1;Spese correnti;3;Acquisto di beni e servizi;2;Acquisto di servizi;13;Servizi ausiliari per il funzionamento dell'ente;2;Servizi di pulizia e lavanderia;17-04-2020;
437;2;0;"1.781,82";"3.563,64";UNICOOPER SERVIZI S.C.R.L.;ZDB2BDF192;SALDO Fatt.n. 488  del 31/03/2020 PULIZIE EDIFICI COMUNALI - MARZO 2020;17-04-2020;34;2;45;1;Spese correnti;3;Acquisto di beni e servizi;2;Acquisto di servizi;13;Servizi ausiliari per il funzionamento dell'ente;2;Servizi di pulizia e lavanderia;17-04-2020;
438;1;0;"28,06";"595,36";SICURITALIA IVRI S.P.A.;Z3827208DE;SALDO Fatt.n. 9117003120  del 31/03/2020 SERVIZI ISPETTIVI SCUOLA PRIMARIA- MARZO 2020;17-04-2020;34;0;88;1;Spese correnti;3;Acquisto di beni e servizi;2;Acquisto di servizi;5;Utenze e canoni;999;Utenze e canoni per altri servizi n.a.c.;17-04-2020;
438;2;0;"567,30";"595,36";SICURITALIA IVRI S.P.A.;Z3827208DE;SALDO Fatt.n. 9117002543  del 02/03/2020 SERVIZI ISPETTIVI ED. COMUNALI - MARZO 2020;17-04-2020;34;0;88;1;Spese correnti;3;Acquisto di beni e servizi;2;Acquisto di servizi;5;Utenze e canoni;999;Utenze e canoni per altri servizi n.a.c.;17-04-2020;
439;1;0;"28,06";"28,06";SICURITALIA IVRI S.P.A.;Z3827208DE;SALDO Fatt.n. 9117001603  del 29/02/2020 SERVIZI ISPETTIVI - FEBBRAIO 2020;17-04-2020;71;0;89;1;Spese correnti;3;Acquisto di beni e servizi;2;Acquisto di servizi;5;Utenze e canoni;999;Utenze e canoni per altri servizi n.a.c.;17-04-2020;
440;1;0;"957,70";"957,70";INFOTEAM SRL;ZB42BC59F8;SALDO Fatt.n. 00000000337  del 29/02/2020 RINNOVO LICENZE UFF. COMUNALI;17-04-2020;39;1;39;1;Spese correnti;3;Acquisto di beni e servizi;2;Acquisto di servizi;7;Utilizzo di beni di terzi;6;Licenze d'uso per software;17-04-2020;
441;1;0;"1.606,20";"3.280,20";CASA DI RIPOSO 'AITA'; ;SALDO Fatt.n. 94/B  del 11/03/2020 RETTE PER ANZIANI  -FEBBRAIO 2020;20-04-2020;560;0;55;1;Spese correnti;3;Acquisto di beni e servizi;2;Acquisto di servizi;15;Contratti di servizio pubblico;8;Contratti di servizio di assistenza sociale residenziale e semiresidenziale;20-04-2020;
441;2;0;"1.674,00";"3.280,20";CASA DI RIPOSO 'AITA'; ;SALDO Fatt.n. 136/B  del 06/04/2020 RETTE PER ANZIANI- MARZO 2020;20-04-2020;560;0;55;1;Spese correnti;3;Acquisto di beni e servizi;2;Acquisto di servizi;15;Contratti di servizio pubblico;8;Contratti di servizio di assistenza sociale residenziale e semiresidenziale;20-04-2020;
442;1;0;"-153,64";"12.475,65";SOCIETA' CONTARINA S.P.A.;Z132BA4E25;SALDO Fatt.n. 0000775/VET  del 18/03/2020 NOTA DI CREDITO - TARIFFA GESTIONE RIFIUTI URBANI -ACCONTO 2020-CONGUAGIO 2019;20-04-2020;463;0;115;1;Spese correnti;3;Acquisto di beni e servizi;2;Acquisto di servizi;15;Contratti di servizio pubblico;4;Contratti di servizio per la raccolta rifiuti;20-04-2020;
442;2;0;"514,21";"12.475,65";SOCIETA' CONTARINA S.P.A.;Z132BA4E25;SALDO Fatt.n. 0000383/VET  del 18/03/2020 TARIFFA GESTIONE RIFIUTI URBANI - ACCONTO 2020 E CONGUALIO 2019;20-04-2020;463;0;115;1;Spese correnti;3;Acquisto di beni e servizi;2;Acquisto di servizi;15;Contratti di servizio pubblico;4;Contratti di servizio per la raccolta rifiuti;20-04-2020;
442;3;0;"552,58";"12.475,65";SOCIETA' CONTARINA S.P.A.;Z132BA4E25;"SALDO Fatt.n. 0000386/VET  del 18/03/2020 TARIFFA GESTIONE RIFIUTI URBANI - ACCONTO 2020, CONGUAGLIO 2019";20-04-2020;463;0;115;1;Spese correnti;3;Acquisto di beni e servizi;2;Acquisto di servizi;15;Contratti di servizio pubblico;4;Contratti di servizio per la raccolta rifiuti;20-04-2020;
442;4;0;"587,62";"12.475,65";SOCIETA' CONTARINA S.P.A.;Z132BA4E25;SALDO Fatt.n. 0000378/VET  del 18/03/2020 TARIFFA GESTIONE RIFIUTI URBANI -ACCONTO 2020-CONGUAGLIO 2019;20-04-2020;463;0;115;1;Spese correnti;3;Acquisto di beni e servizi;2;Acquisto di servizi;15;Contratti di servizio pubblico;4;Contratti di servizio per la raccolta rifiuti;20-04-2020;
442;5;0;"636,64";"12.475,65";SOCIETA' CONTARINA S.P.A.;Z132BA4E25;"SALDO Fatt.n. 0000379/VET  del 18/03/2020 TARIFFA GESTIONE RIFIUTI URBANI - ACCONTO 2020, CONGUALGIO 2019";20-04-2020;463;0;115;1;Spese correnti;3;Acquisto di beni e servizi;2;Acquisto di servizi;15;Contratti di servizio pubblico;4;Contratti di servizio per la raccolta rifiuti;20-04-2020;
442;6;0;"678,52";"12.475,65";SOCIETA' CONTARINA S.P.A.;Z132BA4E25;SALDO Fatt.n. 0000384/VET  del 18/03/2020 TARIFFA GESTIONE RIFIUTI URBANI -ACCONTO 2020-ACCONTO 2019;20-04-2020;463;0;115;1;Spese correnti;3;Acquisto di beni e servizi;2;Acquisto di servizi;15;Contratti di servizio pubblico;4;Contratti di servizio per la raccolta rifiuti;20-04-2020;
442;7;0;"690,65";"12.475,65";SOCIETA' CONTARINA S.P.A.;Z132BA4E25;SALDO Fatt.n. 0000385/VET  del 18/03/2020 TARIFFA GESTIONE RIFIUTI URBANI -ACCONTO 2020-CONGUAGLIO 2019;20-04-2020;463;0;115;1;Spese correnti;3;Acquisto di beni e servizi;2;Acquisto di servizi;15;Contratti di servizio pubblico;4;Contratti di servizio per la raccolta rifiuti;20-04-2020;
442;8;0;"713,83";"12.475,65";SOCIETA' CONTARINA S.P.A.;Z132BA4E25;SALDO Fatt.n. 0000382/VET  del 18/03/2020 TARIFFA GESTIONE RIFIUTI URBANI - ACCONTO 2020-CONGUAGLIO 2019;20-04-2020;463;0;115;1;Spese correnti;3;Acquisto di beni e servizi;2;Acquisto di servizi;15;Contratti di servizio pubblico;4;Contratti di servizio per la raccolta rifiuti;20-04-2020;
442;9;0;"802,61";"12.475,65";SOCIETA' CONTARINA S.P.A.;Z132BA4E25;SALDO Fatt.n. 0000380/VET  del 18/03/2020 TARIFFA GESTIONE RIFIUTI URBANI - ACONTO 2020 E CONGUAGLIO 2019;20-04-2020;463;0;115;1;Spese correnti;3;Acquisto di beni e servizi;2;Acquisto di servizi;15;Contratti di servizio pubblico;4;Contratti di servizio per la raccolta rifiuti;20-04-2020;
442;10;0;"856,13";"12.475,65";SOCIETA' CONTARINA S.P.A.;Z132BA4E25;SALDO Fatt.n. 0000377/VET  del 18/03/2020 TARIFFA GESTIONE RIFIUTI URBANI - CONGUAGLIO 2019-ACCONTO 2020;20-04-2020;463;0;115;1;Spese correnti;3;Acquisto di beni e servizi;2;Acquisto di servizi;15;Contratti di servizio pubblico;4;Contratti di servizio per la raccolta rifiuti;20-04-2020;
442;11;0;"1.005,71";"12.475,65";SOCIETA' CONTARINA S.P.A.;Z132BA4E25;SALDO Fatt.n. 0000847/VET  del 15/04/2020 TARIFFA GESTIONE RIFIUTI URBANI - ACCONTO 2020-CONGUAGLIO 2019;20-04-2020;463;0;115;1;Spese correnti;3;Acquisto di beni e servizi;2;Acquisto di servizi;15;Contratti di servizio pubblico;4;Contratti di servizio per la raccolta rifiuti;20-04-2020;
442;12;0;"1.143,19";"12.475,65";SOCIETA' CONTARINA S.P.A.;Z132BA4E25;"SALDO Fatt.n. 0000381/VET  del 18/03/2020 TARIFFA GESTIONE RIFIUTI URBANI - ACCONTO 2020, CONGUAGLIO 2019";20-04-2020;463;0;115;1;Spese correnti;3;Acquisto di beni e servizi;2;Acquisto di servizi;15;Contratti di servizio pubblico;4;Contratti di servizio per la raccolta rifiuti;20-04-2020;
442;13;0;"1.923,57";"12.475,65";SOCIETA' CONTARINA S.P.A.;Z132BA4E25;SALDO Fatt.n. 0000845/VET  del 15/04/2020 TARIFFA GESTIONE RIFIUTI URBANI -ACCONTO 2020-CONGUAGLIO 2019;20-04-2020;463;0;115;1;Spese correnti;3;Acquisto di beni e servizi;2;Acquisto di servizi;15;Contratti di servizio pubblico;4;Contratti di servizio per la raccolta rifiuti;20-04-2020;
442;14;0;"2.524,03";"12.475,65";SOCIETA' CONTARINA S.P.A.;Z132BA4E25;SALDO Fatt.n. 0000846/VET  del 15/04/2020 TARIFFA GESTIONE RIFIUTI URBANI -ACCONTO 2020-CONGUAGLIO 2019;20-04-2020;463;0;115;1;Spese correnti;3;Acquisto di beni e servizi;2;Acquisto di servizi;15;Contratti di servizio pubblico;4;Contratti di servizio per la raccolta rifiuti;20-04-2020;
443;1;0;"451,42";"451,42";SERVIZIO ELETTRICO NAZIONALE SpA;7134285639;SALDO Fatt.n. 263556202002922  del 09/04/2020 SERVIZIO ELETTRICO: MARZO APRILE 2020;20-04-2020;34;0;333;1;Spese correnti;3;Acquisto di beni e servizi;2;Acquisto di servizi;5;Utenze e canoni;4;Energia elettrica;20-04-2020;
444;1;0;"770,53";"770,53";SERVIZIO ELETTRICO NAZIONALE SpA;7134285639;SALDO Fatt.n. 263554302002022  del 09/04/2020 SERVIZIO ELETTRICO: MARZO APRILE 2020;20-04-2020;235;0;335;1;Spese correnti;3;Acquisto di beni e servizi;2;Acquisto di servizi;5;Utenze e canoni;4;Energia elettrica;20-04-2020;
445;1;0;"75,91";"75,91";SERVIZIO ELETTRICO NAZIONALE SpA;7134285639;SALDO Fatt.n. 263551155002022  del 09/04/2020 SERVIZIO ELETTRICO: MARZO-APRILE 2020;20-04-2020;235;0;335;1;Spese correnti;3;Acquisto di beni e servizi;2;Acquisto di servizi;5;Utenze e canoni;4;Energia elettrica;20-04-2020;
446;1;0;"459,23";"459,23";SERVIZIO ELETTRICO NAZIONALE SpA;7134285639;SALDO Fatt.n. 263555226004536  del 09/04/2020 SERVIZIO ELETTRICO: MARZO-APRILE 2020;20-04-2020;413;0;337;1;Spese correnti;3;Acquisto di beni e servizi;2;Acquisto di servizi;5;Utenze e canoni;4;Energia elettrica;20-04-2020;
447;1;0;"164,25";"164,25";SERVIZIO ELETTRICO NAZIONALE SpA;7134285639;SALDO Fatt.n. 263556805005522  del 09/04/2020 SERVIZIO ELETTRICO: MARZO APRILE 2020;20-04-2020;310;0;338;1;Spese correnti;3;Acquisto di beni e servizi;2;Acquisto di servizi;5;Utenze e canoni;4;Energia elettrica;20-04-2020;
448;1;0;"392,57";"896,42";SERVIZIO ELETTRICO NAZIONALE SpA;7134285639;SALDO Fatt.n. 263558703001122  del 09/04/2020 SERVIZIO ELETTRICO: MARZO-APRILE 2020;20-04-2020;530;0;340;1;Spese correnti;3;Acquisto di beni e servizi;2;Acquisto di servizi;5;Utenze e canoni;4;Energia elettrica;20-04-2020;
448;2;0;"503,85";"896,42";SERVIZIO ELETTRICO NAZIONALE SpA;7134285639;SALDO Fatt.n. 263557855000532  del 09/04/2020 SERVIZIO ELETTRICO: MARZO 2020;20-04-2020;530;0;340;1;Spese correnti;3;Acquisto di beni e servizi;2;Acquisto di servizi;5;Utenze e canoni;4;Energia elettrica;20-04-2020;
449;1;0;"45,54";"356,69";SERVIZIO ELETTRICO NAZIONALE SpA;7134285639;SALDO Fatt.n. 263556405046126  del 09/04/2020 SERVIZIO ELETTRICO: MARZO-APRILE 2020;20-04-2020;561;2;341;1;Spese correnti;3;Acquisto di beni e servizi;2;Acquisto di servizi;5;Utenze e canoni;4;Energia elettrica;20-04-2020;
449;2;0;"311,15";"356,69";SERVIZIO ELETTRICO NAZIONALE SpA;7134285639;SALDO Fatt.n. 263552205013413  del 03/04/2020 SERVIZIO ELETTRICO: MARZO 2020;20-04-2020;561;2;341;1;Spese correnti;3;Acquisto di beni e servizi;2;Acquisto di servizi;5;Utenze e canoni;4;Energia elettrica;20-04-2020;
450;1;0;"251,14";"251,14";BIM PIAVE NUOVE ENERGIE S.R.L.; ;ACCONTO Fatt.n. 9000202  del 13/02/2020 Anno termico 2019/2020 - 01/07/2019-31/12/2019 - Sede Municipale;21-04-2020;561;2;203;1;Spese correnti;3;Acquisto di beni e servizi;2;Acquisto di servizi;5;Utenze e canoni;6;Gas;21-04-2020;
451;1;0;"3.306,44";"7.223,43";BIM PIAVE NUOVE ENERGIE S.R.L.; ;SALDO Fatt.n. 9000202  del 13/02/2020 Anno termico 2019/2020 - 01/07/2019-31/12/2019 - Sede Municipale;21-04-2020;34;0;399;1;Spese correnti;3;Acquisto di beni e servizi;2;Acquisto di servizi;5;Utenze e canoni;6;Gas;21-04-2020;
451;2;0;"3.916,99";"7.223,43";BIM PIAVE NUOVE ENERGIE S.R.L.; ;SALDO Fatt.n. 9000204  del 13/02/2020 Anno termico 2019/2020 - acqua calda 01/07/2019-31/12/2019 - Villa Rubelli;21-04-2020;34;0;399;1;Spese correnti;3;Acquisto di beni e servizi;2;Acquisto di servizi;5;Utenze e canoni;6;Gas;21-04-2020;
452;1;0;"464,82";"464,82";BIM PIAVE NUOVE ENERGIE S.R.L.; ;SALDO Fatt.n. 9000201  del 13/02/2020 Anno termico 2019/2020 - Impianti Comunali;21-04-2020;530;0;200;1;Spese correnti;3;Acquisto di beni e servizi;2;Acquisto di servizi;5;Utenze e canoni;6;Gas;21-04-2020;
453;1;0;"315,43";"1.177,48";BIM PIAVE NUOVE ENERGIE S.R.L.; ;SALDO Fatt.n. 9000208  del 13/02/2020 Anno termico 2019/2020 -01/07/2019-31/12/2019 - Scuola Primaria CÃ  Rainati;21-04-2020;235;0;400;1;Spese correnti;3;Acquisto di beni e servizi;2;Acquisto di servizi;5;Utenze e canoni;6;Gas;21-04-2020;
453;2;0;"862,05";"1.177,48";BIM PIAVE NUOVE ENERGIE S.R.L.; ;SALDO Fatt.n. 9000203  del 13/02/2020 Anno termico 2019/2020 - 01/07/2019-31/12/2019 - Ex Scuola Primaria Sopracastello;21-04-2020;235;0;400;1;Spese correnti;3;Acquisto di beni e servizi;2;Acquisto di servizi;5;Utenze e canoni;6;Gas;21-04-2020;
454;1;0;"2.478,50";"2.478,50";BIM PIAVE NUOVE ENERGIE S.R.L.; ;SALDO Fatt.n. 9000205  del 13/02/2020 Anno termico 2019/2020 -  01/07/2019-31/12/2019 - Polivalente "La Roggia";21-04-2020;561;2;203;1;Spese correnti;3;Acquisto di beni e servizi;2;Acquisto di servizi;5;Utenze e canoni;6;Gas;21-04-2020;
455;1;0;"2.203,50";"4.806,75";CASA DI RIPOSO 'AITA'; ;SALDO Fatt.n. 101/B  del 12/03/2020 SERVIZIO DI A.D. - GENNAIO 2020;21-04-2020;562;1;240;1;Spese correnti;3;Acquisto di beni e servizi;2;Acquisto di servizi;15;Contratti di servizio pubblico;9;Contratti di servizio di assistenza sociale domiciliare;21-04-2020;
455;2;0;"2.603,25";"4.806,75";CASA DI RIPOSO 'AITA'; ;SALDO Fatt.n. 103/B  del 26/03/2020 SERVIZIO DI A.D. - FEBBRAIO 2020;21-04-2020;562;1;240;1;Spese correnti;3;Acquisto di beni e servizi;2;Acquisto di servizi;15;Contratti di servizio pubblico;9;Contratti di servizio di assistenza sociale domiciliare;21-04-2020;
456;1;0;"514,18";"514,18";AS.COM SERVIZI DEL MANDAMENTO S.R.L.; ;SALDO Fatt.n. 00011/02  del 04/03/2020 LOCAZIONE CENTRO PER LIMPIEGO;21-04-2020;515;0;89;1;Spese correnti;4;Trasferimenti correnti;1;Trasferimenti correnti a Amministrazioni Pubbliche;2;Trasferimenti correnti a Amministrazioni Locali;999;Trasferimenti correnti a altre Amministrazioni Locali n.a.c.;21-04-2020;
457;1;0;"116,11";"116,11";SPRINT OFFICE S.r.l.;ZC92C3DB77;SALDO Fatt.n. H65/18  del 31/03/2020 FORNITURA CANCELLERIA PER UFF. POL. LOCALE;21-04-2020;37;0;81;1;Spese correnti;3;Acquisto di beni e servizi;1;Acquisto di beni;2;Altri beni di consumo;1;"Carta, cancelleria e stampati";21-04-2020;
458;1;0;"2.074,00";"2.074,00";BOXXAPPS S.R.L.;ZB52AE48FA;SALDO Fatt.n. 200371/1  del 02/04/2020 CONVENZIONE SISTEMI INFORMATICI;21-04-2020;39;0;545;1;Spese correnti;3;Acquisto di beni e servizi;2;Acquisto di servizi;19;Servizi informatici e di telecomunicazioni;6;Servizi di sicurezza;21-04-2020;
459;1;0;"1.962,42";"1.962,42";OLIVETTI S.P.A.;ZC92648F71;SALDO Fatt.n. A20020201000013242  del 31/03/2020 CONTRATTO FOTOCOPIATORI-1 TRIMESTRE 2020;21-04-2020;235;0;510;1;Spese correnti;3;Acquisto di beni e servizi;2;Acquisto di servizi;5;Utenze e canoni;999;Utenze e canoni per altri servizi n.a.c.;21-04-2020;
460;1;0;"103,20";"488,28";KUWAIT PETROLEUM ITALIA S.P.A.;Z5B2CB3D93;SALDO Fatt.n. PJ02414720  del 31/03/2020 CARBURANTE AUTO VIABILITA' - MARZO 2020;21-04-2020;590;0;111;1;Spese correnti;3;Acquisto di beni e servizi;1;Acquisto di beni;2;Altri beni di consumo;2;"Carburanti, combustibili e lubrificanti";21-04-2020;
460;2;0;"385,08";"488,28";KUWAIT PETROLEUM ITALIA S.P.A.;Z5B2CB3D93;SALDO Fatt.n. PJ02414719  del 31/03/2020 CARBURANTE AUTO VIABILITA' - MARZO 2020;21-04-2020;590;0;111;1;Spese correnti;3;Acquisto di beni e servizi;1;Acquisto di beni;2;Altri beni di consumo;2;"Carburanti, combustibili e lubrificanti";21-04-2020;
461;1;0;"117,02";"117,02";KUWAIT PETROLEUM ITALIA S.P.A.;Z5B2CB3D93;SALDO Fatt.n. PJ02414722  del 31/03/2020 CARBURANTE AUTO VIGILI - MARZO 2020;21-04-2020;179;0;109;1;Spese correnti;3;Acquisto di beni e servizi;1;Acquisto di beni;2;Altri beni di consumo;2;"Carburanti, combustibili e lubrificanti";21-04-2020;
462;1;0;"60,02";"60,02";KUWAIT PETROLEUM ITALIA S.P.A.;Z5B2CB3D93;SALDO Fatt.n. PJ02414721  del 31/03/2020 CARBURANTE AUTO UFF. SOCIALE - MARZO 2020;21-04-2020;571;0;110;1;Spese correnti;3;Acquisto di beni e servizi;1;Acquisto di beni;2;Altri beni di consumo;2;"Carburanti, combustibili e lubrificanti";21-04-2020;
463;1;0;"1.460,34";"1.460,34";DIGITALBLU S.N.C. DI TASCA LUIGI;Z732B2A1AB;SALDO Fatt.n. FDL00000054  del 31/03/2020 GRUPPO DI CONTINUITA PER MUSEO MULTIMEDIALE;21-04-2020;782;0;601;2;Spese in conto capitale;2;Investimenti fissi lordi e acquisto di terreni;1;Beni materiali;5;Attrezzature;999;Attrezzature n.a.c.;21-04-2020;
464;1;0;"200,36";"200,36";BELLNET INTERNATIONAL S.R.L.;Z752BFBD5F;SALDO Fatt.n. FATTPA 685_20  del 31/03/2020 TRAFFICO TELEFONICO APRILE 2020;21-04-2020;34;0;58;1;Spese correnti;3;Acquisto di beni e servizi;2;Acquisto di servizi;5;Utenze e canoni;1;Telefonia fissa;21-04-2020;
465;1;0;"432,14";"432,14";A.S. DI ANDREATTA GIUSEPPE & C. S.R.L.;ZB1282AB4D;SALDO Fatt.n. 234  del 31/03/2020 MANUTENZIONE IMP. ELETTRICI SCUOLE - MARZO 2020;21-04-2020;601;0;567;1;Spese correnti;3;Acquisto di beni e servizi;2;Acquisto di servizi;15;Contratti di servizio pubblico;15;Contratti di servizio per l'illuminazione pubblica;21-04-2020;
466;1;0;"7.145,80";"7.145,80";COOPERATIVA AGRICOLA S.ZENONE S.C.R.L.;Z2428A71E3;SALDO Fatt.n. 120  del 30/03/2020 SALDO LAVORI ANNO 2019;21-04-2020;1007;0;283;2;Spese in conto capitale;2;Investimenti fissi lordi e acquisto di terreni;1;Beni materiali;9;Beni immobili;12;Infrastrutture stradali;21-04-2020;
467;1;0;"163,25";"163,25";POSTE ITALIANE SPA - PROVENTI POLO LOGISTICO;ZC42B68711;SALDO Fatt.n. 1020077289  del 07/04/2020 RACCOMANDATE;21-04-2020;34;3;633;1;Spese correnti;3;Acquisto di beni e servizi;2;Acquisto di servizi;16;Servizi amministrativi;2;Spese postali;21-04-2020;
468;1;0;"169,80";"1.598,95";CENTRO RESIDENZIALE PER ANZIANI DOMENICO SARTOR; ;SALDO Fatt.n. 77/E  del 31/03/2020 RETTE PERSONA BISOGNOSA - MARZO 2020;21-04-2020;560;0;40;1;Spese correnti;3;Acquisto di beni e servizi;2;Acquisto di servizi;15;Contratti di servizio pubblico;8;Contratti di servizio di assistenza sociale residenziale e semiresidenziale;21-04-2020;
468;2;0;"1.429,15";"1.598,95";CENTRO RESIDENZIALE PER ANZIANI DOMENICO SARTOR; ;SALDO Fatt.n. 46/E  del 29/02/2020 RETTE X UFF. SOCIALE -FEBBRAIO 2020;21-04-2020;560;0;40;1;Spese correnti;3;Acquisto di beni e servizi;2;Acquisto di servizi;15;Contratti di servizio pubblico;8;Contratti di servizio di assistenza sociale residenziale e semiresidenziale;21-04-2020;
469;1;0;"1.279,78";"1.279,78";TIPOGRAFIA BATTAGIN SRL;Z402C3A3E9;SALDO Fatt.n. 1/P  del 31/03/2020 STAMPA MATERIALE INFORMATICO PER LA CITTADINANZA;21-04-2020;41;1;80;1;Spese correnti;3;Acquisto di beni e servizi;2;Acquisto di servizi;99;Altri servizi;999;Altri servizi diversi n.a.c.;21-04-2020;
470;1;0;"1.115,00";"1.115,00";NOIGROUP Coop. Soc. a R.L.;Z5F268727B;SALDO Fatt.n. 214  del 31/03/2020 SERVIZIO GESTIONE BIBLIOTECA - MARZO 2020;21-04-2020;302;1;553;1;Spese correnti;3;Acquisto di beni e servizi;2;Acquisto di servizi;16;Servizi amministrativi;999;Altre spese per servizi amministrativi;21-04-2020;
471;1;0;"218,69";"218,69";COSTRUZIONI GENERALI GIRARDINI S.p.A.;ZB72CB5A4B;SALDO Fatt.n. 0000045/E  del 31/03/2020 FORNITURA CONGLOMERATO BITUMINOSO;23-04-2020;591;0;135;1;Spese correnti;3;Acquisto di beni e servizi;1;Acquisto di beni;2;Altri beni di consumo;999;Altri beni e materiali di consumo n.a.c.;23-04-2020;
472;1;0;"2.018,54";"2.018,54";E.N.P.A. ENTE NAZIONALE PROTEZIONE ANIMALI ONLUS;Z3F2C6A54F;SALDO Fatt.n. 92/PA  del 17/01/2020 CUSTODIA E MANTENIMENTO CANI: OTT - DICEM. 2019;23-04-2020;180;0;133;1;Spese correnti;3;Acquisto di beni e servizi;2;Acquisto di servizi;15;Contratti di servizio pubblico;11;Contratti di servizio per la lotta al randagismo;23-04-2020;
473;1;0;"30.943,50";"30.943,50";A.T.E.R. - AZIENDA TERRIT. EDILIZIA RESIDENZIALE; ;ACCONTO Fatt.n. G7/2020  del 10/01/2020 CANONE AFFITTO CENTRO POLIVALENTE ATER - 1 SEMESTRE 2020;24-04-2020;561;0;43;1;Spese correnti;3;Acquisto di beni e servizi;2;Acquisto di servizi;7;Utilizzo di beni di terzi;1;Locazione di beni immobili;24-04-2020;
474;1;0;"7.537,25";"7.537,25";NOMINATIVI DIVERSI; ;CONTRIBUTO REGIONALE BUONO LIBRI E CONTENUTI DIDATTICI ALTERNATIVI. ANNO SCOLASTICO FORMATIVO 2019/2020. IMPEGNO E LIQUIDAZIONE AI BENEFICIARI.;27-04-2020;558;1;644;1;Spese correnti;4;Trasferimenti correnti;2;Trasferimenti correnti a Famiglie;2;Interventi assistenziali;999;Altri assegni e sussidi assistenziali;27-04-2020;
475;1;0;"1.440,07";"8.641,44";OMESSO NOMINATIVO NEL RISPETTO DELLA NORMATIVA SULLA PROTEZIONE DATI PERSONALI; ;LIQUIDAZIONE CONTRIBUTO REGIONALE DI CUI ALLA DGR N. 705/2019 - LINEA DI INTERVENTO N. 2 - PROGRAMMA DI INTERVENTI ECONOMICI STRAORDINARI A FAVORE DELLE FAMIGLIE IN DIFFFICOLTA RESIDENTI IN VENETO. ANNO 2019.;27-04-2020;502;0;64;1;Spese correnti;4;Trasferimenti correnti;2;Trasferimenti correnti a Famiglie;2;Interventi assistenziali;999;Altri assegni e sussidi assistenziali;27-04-2020;
475;2;0;"5.761,30";"8.641,44";OMESSO NOMINATIVO NEL RISPETTO DELLA NORMATIVA SULLA PROTEZIONE DATI PERSONALI; ;LIQUIDAZIONE CONTRIBUTO REGIONALE DI CUI ALLA DGR N. 705/2019 - LINEA DI INTERVENTO N. 2 - PROGRAMMA DI INTERVENTI ECONOMICI STRAORDINARI A FAVORE DELLE FAMIGLIE IN DIFFFICOLTA RESIDENTI IN VENETO. ANNO 2019.;27-04-2020;502;0;64;1;Spese correnti;4;Trasferimenti correnti;2;Trasferimenti correnti a Famiglie;2;Interventi assistenziali;999;Altri assegni e sussidi assistenziali;27-04-2020;
475;3;0;"1.440,07";"8.641,44";OMESSO NOMINATIVO NEL RISPETTO DELLA NORMATIVA SULLA PROTEZIONE DATI PERSONALI; ;LIQUIDAZIONE CONTRIBUTO REGIONALE DI CUI ALLA DGR N. 705/2019 - LINEA DI INTERVENTO N. 2 - PROGRAMMA DI INTERVENTI ECONOMICI STRAORDINARI A FAVORE DELLE FAMIGLIE IN DIFFFICOLTA RESIDENTI IN VENETO. ANNO 2019.;27-04-2020;502;0;64;1;Spese correnti;4;Trasferimenti correnti;2;Trasferimenti correnti a Famiglie;2;Interventi assistenziali;999;Altri assegni e sussidi assistenziali;27-04-2020;
476;1;0;"1.640,00";"1.640,00";PARROCCHIA DI S. FRANCESCO D'ASSISI; ;"LIQUIDAZIONE CONTRIBUTO ANNO 2015 IN ATTUAZIONE ALLA L.R. 20.08.1987, N. 44 - DISCIPLINA DEL FONDO PER LE OPERE DI URBANIZZAZIONE A FAVORE DELLE PARROCCHIE DI SAN ZENONE E DI CA RAINATI.";28-04-2020;1074;0;510;2;Spese in conto capitale;3;Contributi agli investimenti;4;Contributi agli investimenti a Istituzioni Sociali Private;1;Contributi agli investimenti a Istituzioni Sociali Private;1;Contributi agli investimenti a Istituzioni Sociali Private;28-04-2020;
477;1;0;"2.033,00";"2.033,00";PARROCCHIA DI S. FRANCESCO D'ASSISI; ;"LIQUIDAZIONE CONTRIBUTO ANNO 2016 IN ATTUAZIONE  ALLA L.R. 20.08.1987 , N. 44 - DISCIPLINA DEL FONDO PER LE OPERE DI URBANIZZAZIONE A FAVORE DELLA PARROCCHIA DI CA RAINATI.";28-04-2020;1074;0;555;2;Spese in conto capitale;3;Contributi agli investimenti;4;Contributi agli investimenti a Istituzioni Sociali Private;1;Contributi agli investimenti a Istituzioni Sociali Private;1;Contributi agli investimenti a Istituzioni Sociali Private;28-04-2020;
478;1;0;"4.900,00";"4.900,00";GAZZOLA ROBERTO; ;"INDENNIZZO PER CESSIONE VOLONTARIA, IN LUOGO DI ESPROPRIAZIONE, DI RELITTO STRADALE IN VIA VIVALDI AL SIG. GAZZOLA ROBERTO.";28-04-2020;888;0;631;2;Spese in conto capitale;2;Investimenti fissi lordi e acquisto di terreni;1;Beni materiali;9;Beni immobili;16;Impianti sportivi;28-04-2020;
479;1;0;"9,50";"9,50";BERTONCELLO PAOLA ECONOMO COMUNALE; ;Rimborso bolletta N.     1 del  16-01-20 Acquisto beni per organizzazione rinfresco in data 11/01/2020 open day sede municipale.;04-05-2020;3;1;5;1;Spese correnti;3;Acquisto di beni e servizi;1;Acquisto di beni;2;Altri beni di consumo;9;Beni per attività di rappresentanza;04-05-2020;
480;1;0;"4,00";"4,00";BERTONCELLO PAOLA ECONOMO COMUNALE; ;Rimborso bolletta N.     2 del  16-01-20 Acquisto beni per organizzazione rinfresco in data 11/01/2020 open day sede municipale.;04-05-2020;3;1;6;1;Spese correnti;3;Acquisto di beni e servizi;1;Acquisto di beni;2;Altri beni di consumo;9;Beni per attività di rappresentanza;04-05-2020;
481;1;0;"39,95";"39,95";BERTONCELLO PAOLA ECONOMO COMUNALE; ;Rimborso bolletta N.     3 del  06-03-20 Acquisto n. 5 bottiglie di amuchina a seguito direttiva regionale in materia di contrasto alla diffusione del "Coronavirus COVID-19".;04-05-2020;37;0;86;1;Spese correnti;3;Acquisto di beni e servizi;1;Acquisto di beni;2;Altri beni di consumo;999;Altri beni e materiali di consumo n.a.c.;04-05-2020;
482;1;0;"35,00";"35,00";BERTONCELLO PAOLA ECONOMO COMUNALE; ;Rimborso bolletta N.     4 del  06-03-20 Acquisto n. 15 bottiglie alcool denaturato per sanificazione ambienti scolastici.;04-05-2020;37;0;87;1;Spese correnti;3;Acquisto di beni e servizi;1;Acquisto di beni;2;Altri beni di consumo;999;Altri beni e materiali di consumo n.a.c.;04-05-2020;
485;1;0;"930,32";"930,32";NOIGROUP Coop. Soc. a R.L.;ZDE2A28443;"SALDO Fatt.n. 144  del 29/02/2020 APERTURA, CHIUSURA E BIGLIETTERIA DEL MUSEO - FEBBRAIO 2020";05-05-2020;303;0;490;1;Spese correnti;3;Acquisto di beni e servizi;2;Acquisto di servizi;99;Altri servizi;999;Altri servizi diversi n.a.c.;05-05-2020;
486;1;0;"427,73";"427,73";NOIGROUP Coop. Soc. a R.L.;ZDE2A28443;"SALDO Fatt.n. 189  del 31/03/2020 APERTURA, CHIUSURA E BIGLIETTERIA MUSEO MULTIM.";05-05-2020;303;0;490;1;Spese correnti;3;Acquisto di beni e servizi;2;Acquisto di servizi;99;Altri servizi;999;Altri servizi diversi n.a.c.;05-05-2020;
487;1;0;"6.000,00";"6.000,00";BIM PIAVE NUOVE ENERGIE S.R.L.; ;ACCONTO Fatt.n. 9000209  del 13/02/2020 acqua calda 01/07/2019-31/12/2019 - Palestra;05-05-2020;252;0;401;1;Spese correnti;3;Acquisto di beni e servizi;2;Acquisto di servizi;5;Utenze e canoni;6;Gas;05-05-2020;
488;1;0;"2.046,68";"2.046,68";BIM PIAVE NUOVE ENERGIE S.R.L.; ;SALDO Fatt.n. 9000209  del 13/02/2020 acqua calda 01/07/2019-31/12/2019 - Palestra;05-05-2020;235;0;400;1;Spese correnti;3;Acquisto di beni e servizi;2;Acquisto di servizi;5;Utenze e canoni;6;Gas;05-05-2020;
489;1;0;"-11.970,35";"621,77";BIM PIAVE NUOVE ENERGIE S.R.L.; ;SALDO Fatt.n. 9000307  del 20/02/2020 NOTA DI CREDITO;05-05-2020;252;0;121;1;Spese correnti;3;Acquisto di beni e servizi;2;Acquisto di servizi;5;Utenze e canoni;6;Gas;05-05-2020;
489;2;0;"1.869,10";"621,77";BIM PIAVE NUOVE ENERGIE S.R.L.; ;SALDO Fatt.n. 9000207  del 13/02/2020 Anno termico 2019/2020 - 01/07/2019-31/12/2019 - Scuola Primaria Liedolo;05-05-2020;252;0;121;1;Spese correnti;3;Acquisto di beni e servizi;2;Acquisto di servizi;5;Utenze e canoni;6;Gas;05-05-2020;
489;3;0;"10.723,02";"621,77";BIM PIAVE NUOVE ENERGIE S.R.L.; ;SALDO Fatt.n. 9000206  del 13/02/2020 Anno termico 2019/2020 - acqua calda 01/07/2019-31/12/2019 - Scuola Secondaria/Primaria;05-05-2020;252;0;121;1;Spese correnti;3;Acquisto di beni e servizi;2;Acquisto di servizi;5;Utenze e canoni;6;Gas;05-05-2020;
490;1;0;"732,85";"2.922,96";BIM PIAVE NUOVE ENERGIE S.R.L.; ;SALDO Fatt.n. 9000872  del 20/04/2020 acqua calda 01/01/2020-29/02/2020 - Ex Scuola Primaria;05-05-2020;561;2;118;1;Spese correnti;3;Acquisto di beni e servizi;2;Acquisto di servizi;5;Utenze e canoni;6;Gas;05-05-2020;
490;2;0;"2.190,11";"2.922,96";BIM PIAVE NUOVE ENERGIE S.R.L.; ;SALDO Fatt.n. 9000874  del 20/04/2020 acqua calda 01/01/2020-29/02/2020 - Polivalente "La Roggia";05-05-2020;561;2;118;1;Spese correnti;3;Acquisto di beni e servizi;2;Acquisto di servizi;5;Utenze e canoni;6;Gas;05-05-2020;
491;1;0;"3.635,65";"3.635,65";BIM PIAVE NUOVE ENERGIE S.R.L.; ;SALDO Fatt.n. 9000871  del 20/04/2020 acqua calda 01/01/2020-29/02/2020 - Sede Municipale;05-05-2020;34;0;116;1;Spese correnti;3;Acquisto di beni e servizi;2;Acquisto di servizi;5;Utenze e canoni;6;Gas;05-05-2020;
492;1;0;"2.543,88";"2.543,88";BIM PIAVE NUOVE ENERGIE S.R.L.; ;SALDO Fatt.n. 9000873  del 20/04/2020 acqua calda 01/01/2020-29/02/2020 - Villa Rubelli;05-05-2020;310;0;117;1;Spese correnti;3;Acquisto di beni e servizi;2;Acquisto di servizi;5;Utenze e canoni;6;Gas;05-05-2020;
493;1;0;"4.761,77";"4.761,77";BIM PIAVE NUOVE ENERGIE S.R.L.; ;SALDO Fatt.n. 9000878  del 20/04/2020 acqua calda 01/01/2020-29/02/2020 - Palestra;05-05-2020;530;0;120;1;Spese correnti;3;Acquisto di beni e servizi;2;Acquisto di servizi;5;Utenze e canoni;6;Gas;05-05-2020;
494;1;0;"315,43";"10.965,17";BIM PIAVE NUOVE ENERGIE S.R.L.; ;SALDO Fatt.n. 9000877  del 20/04/2020 acqua calda 01/01/2020-29/02/2020 - Scuola Primaria;05-05-2020;252;0;121;1;Spese correnti;3;Acquisto di beni e servizi;2;Acquisto di servizi;5;Utenze e canoni;6;Gas;05-05-2020;
494;2;0;"1.628,61";"10.965,17";BIM PIAVE NUOVE ENERGIE S.R.L.; ;SALDO Fatt.n. 9000876  del 20/04/2020 acqua calda 01/01/2020-29/02/2020 - Scuola Primaria Liedolo;05-05-2020;252;0;121;1;Spese correnti;3;Acquisto di beni e servizi;2;Acquisto di servizi;5;Utenze e canoni;6;Gas;05-05-2020;
494;3;0;"9.021,13";"10.965,17";BIM PIAVE NUOVE ENERGIE S.R.L.; ;SALDO Fatt.n. 9000875  del 20/04/2020 acqua calda 01/01/2020-29/02/2020 - Scuola Secondaria/Primaria;05-05-2020;252;0;121;1;Spese correnti;3;Acquisto di beni e servizi;2;Acquisto di servizi;5;Utenze e canoni;6;Gas;05-05-2020;
495;1;0;"6,14";"64,86";TIM S.P.A.;ZE429271DF;SALDO Fatt.n. 8E00232245  del 06/04/2020 LINEA TELEFONICA - 3 BIM 2020;06-05-2020;311;0;396;1;Spese correnti;3;Acquisto di beni e servizi;2;Acquisto di servizi;5;Utenze e canoni;999;Utenze e canoni per altri servizi n.a.c.;06-05-2020;
495;2;0;"58,72";"64,86";TIM S.P.A.;ZE429271DF;SALDO Fatt.n. 8E00231784  del 06/04/2020 LINEA ISDN - 3 BIM 2020;06-05-2020;311;0;396;1;Spese correnti;3;Acquisto di beni e servizi;2;Acquisto di servizi;5;Utenze e canoni;999;Utenze e canoni per altri servizi n.a.c.;06-05-2020;
496;1;0;"1.250,07";"1.250,07";TESORERIA PROVINCIALE DELLO STATO; ;VERSAMENTO I.V.A. A DEBITO COMMERCIALE RELATIVA AL PRIMO TRIMESTRE 2020 - COD. IVA 614E;06-05-2020;660;0;0;1;Spese correnti;10;Altre spese correnti;3;Versamenti IVA a debito;1;Versamenti IVA a debito per le gestioni commerciali;1;Versamenti IVA a debito per le gestioni commerciali;06-05-2020;
498;1;0;"6.714,00";"6.714,00";I.P.A.TERRE ASOLO E M. GRAPPA C/O FONDAZIONE LA FORNACE; ;IMPEGNO E LIQUIDAZIONE DELLA QUOTA DI ADESIONE ALLINTESA PROGRAMMATICA DAREA TERRE DI ASOLO E MONTE GRAPPA (I.P.A.)  ANNO 2020.;06-05-2020;511;0;138;1;Spese correnti;4;Trasferimenti correnti;1;Trasferimenti correnti a Amministrazioni Pubbliche;2;Trasferimenti correnti a Amministrazioni Locali;3;Trasferimenti correnti a Comuni;06-05-2020;
499;1;0;"-85,08";"40,51";TIM S.P.A.;ZE429271DF;SALDO Fatt.n. 8E00228957  del 06/04/2020 LINEA TELEFONICA - 3 BIM 2020;07-05-2020;311;0;396;1;Spese correnti;3;Acquisto di beni e servizi;2;Acquisto di servizi;5;Utenze e canoni;999;Utenze e canoni per altri servizi n.a.c.;07-05-2020;
499;2;0;"-63,28";"40,51";TIM S.P.A.;ZE429271DF;SALDO Fatt.n. 8E00231926  del 06/04/2020 LINEA TELEFONICA - 3 BIM 2020;07-05-2020;311;0;396;1;Spese correnti;3;Acquisto di beni e servizi;2;Acquisto di servizi;5;Utenze e canoni;999;Utenze e canoni per altri servizi n.a.c.;07-05-2020;
499;3;0;"188,87";"40,51";TIM S.P.A.;ZE429271DF;SALDO Fatt.n. 7X01569656  del 15/04/2020 LINEA TELEFONICA - 3 BIM 2020;07-05-2020;311;0;396;1;Spese correnti;3;Acquisto di beni e servizi;2;Acquisto di servizi;5;Utenze e canoni;999;Utenze e canoni per altri servizi n.a.c.;07-05-2020;
500;1;0;"12.410,72";"12.410,72";Mobilita' di Marca S.P.A.;7976331491;SALDO Fatt.n. 000131  del 09/03/2020 TRASPORTO SCOLASTICO-FEBBRAIO 2020;07-05-2020;275;1;376;1;Spese correnti;3;Acquisto di beni e servizi;2;Acquisto di servizi;15;Contratti di servizio pubblico;2;Contratti di servizio di trasporto scolastico;07-05-2020;
501;1;0;"29,99";"29,99";OMESSO NOMINATIVO NEL RISPETTO DELLA NORMATIVA SULLA PROTEZIONE DATI PERSONALI; ;CONTRIBUTO ECONOMICO STRAORDINARIO: FATTURA A.T.S. DAL 01.10.2019 AL 31.01.2020.;07-05-2020;576;0;140;1;Spese correnti;4;Trasferimenti correnti;2;Trasferimenti correnti a Famiglie;2;Interventi assistenziali;999;Altri assegni e sussidi assistenziali;07-05-2020;
502;1;0;"243,46";"243,46";OMESSO NOMINATIVO NEL RISPETTO DELLA NORMATIVA SULLA PROTEZIONE DATI PERSONALI; ;FORNITURA PASTI MESE MARZO 2020 DA CASA DI RIPOSO AITA: FATT. N. 122/B DEL 31/03/2020.;07-05-2020;576;0;501;1;Spese correnti;4;Trasferimenti correnti;2;Trasferimenti correnti a Famiglie;2;Interventi assistenziali;999;Altri assegni e sussidi assistenziali;07-05-2020;
503;1;0;"324,34";"324,34";OMESSO NOMINATIVO NEL RISPETTO DELLA NORMATIVA SULLA PROTEZIONE DATI PERSONALI; ;FATTURA CASA DI RIPOSO AITA N. 119/B DEL 31/03/2020 - FATT. S.E.N. N. 263556805039013 DEL 07/04/2020 - FATTURA A.T.S. N. 61202000034339 DEL 12/03/2020..;07-05-2020;576;0;90;1;Spese correnti;4;Trasferimenti correnti;2;Trasferimenti correnti a Famiglie;2;Interventi assistenziali;999;Altri assegni e sussidi assistenziali;07-05-2020;
504;1;0;"929,15";"929,15";TIM S.P.A.;ZE429271DF;SALDO Fatt.n. 4220420800013404  del 06/04/2020 LINEA TELEFONICA - 3 BIM 2020;08-05-2020;34;0;392;1;Spese correnti;3;Acquisto di beni e servizi;2;Acquisto di servizi;5;Utenze e canoni;999;Utenze e canoni per altri servizi n.a.c.;08-05-2020;
505;1;0;"870,69";"870,69";IDEA GIARDINO SNC;ZD427A2468;SALDO Fatt.n. 12  del 20/03/2020 VERDE PUBBLICO;08-05-2020;310;1;673;1;Spese correnti;3;Acquisto di beni e servizi;2;Acquisto di servizi;9;Manutenzione ordinaria e riparazioni;12;Manutenzione ordinaria e riparazioni di terreni e beni materiali non prodotti;08-05-2020;
506;1;0;"1.000,00";"1.000,00";AGENZIA DELLE ENTRATE - UFFICIO TERRIT. DI MONTEBELLUNA; ;"INDENNIZZO PER CESSIONE VOLONTARIA, IN LUOGO DI ESPROPRIAZIONE, DI RELITTO STRADALE IN VIA VIVALDI AL SIG. GAZZOLA ROBERTO. PAGAMENTO IMPOSTA DI REGISTRO ALLA AGENZIA DELLE ENTRATE.";12-05-2020;888;0;631;2;Spese in conto capitale;2;Investimenti fissi lordi e acquisto di terreni;1;Beni materiali;9;Beni immobili;16;Impianti sportivi;12-05-2020;
507;1;0;"507,09";"507,09";ANCI VENETO; ;IMPEGNO E LIQUIDAZIONE QUOTA ASSOCIATIVA AD ANCI VENETO - ANNO 2020.;12-05-2020;51;1;146;1;Spese correnti;3;Acquisto di beni e servizi;2;Acquisto di servizi;99;Altri servizi;3;Quote di associazioni;12-05-2020;
508;1;0;"610,00";"610,00";ASSOCIAZIONE COMUNI MARCA TREVIGIANA; ;IMPEGNO E LIQUIDAZIONE QUOTA ASSOCIATIVA ALLASSOCIAZIONE COMUNI DELLA MARCA TREVIGIANA - ANNO 2020.;12-05-2020;51;1;147;1;Spese correnti;3;Acquisto di beni e servizi;2;Acquisto di servizi;99;Altri servizi;3;Quote di associazioni;12-05-2020;
509;1;0;"293,00";"1.079,35";Farmacie Piu' SAS - Carinatese; ;SALDO Fatt.n. 12/PA  del 30/04/2020 PRODOTTI FARMACEUTICI;12-05-2020;563;0;125;1;Spese correnti;3;Acquisto di beni e servizi;1;Acquisto di beni;2;Altri beni di consumo;11;Generi alimentari;12-05-2020;
509;2;0;"786,35";"1.079,35";Farmacie Piu' SAS - Carinatese; ;SALDO Fatt.n. 13/PA  del 30/04/2020 PRODOTTI FARMACEUTICI;12-05-2020;563;0;125;1;Spese correnti;3;Acquisto di beni e servizi;1;Acquisto di beni;2;Altri beni di consumo;11;Generi alimentari;12-05-2020;
510;1;0;"3.480,75";"3.480,75";CASA DI RIPOSO 'AITA'; ;SALDO Fatt.n. 144/B  del 23/04/2020 SERVIZIO DI A.D. - MARZO 2020;12-05-2020;562;1;240;1;Spese correnti;3;Acquisto di beni e servizi;2;Acquisto di servizi;15;Contratti di servizio pubblico;9;Contratti di servizio di assistenza sociale domiciliare;12-05-2020;
511;1;0;"-50,06";"1.427,90";SUPERMERCATO FACCHIN DI FACCHIN A. & S.a.S.; ;SALDO Fatt.n. 72020  del 05/05/2020 ACQUISTO BENI PER EMERGENZA ALIMENTARE;12-05-2020;563;0;127;1;Spese correnti;3;Acquisto di beni e servizi;1;Acquisto di beni;2;Altri beni di consumo;11;Generi alimentari;12-05-2020;
511;2;0;"50,06";"1.427,90";SUPERMERCATO FACCHIN DI FACCHIN A. & S.a.S.; ;SALDO Fatt.n. 62020  del 05/05/2020 ACQUISTO BENI PER EMERGENZA ALIMENTARE;12-05-2020;563;0;127;1;Spese correnti;3;Acquisto di beni e servizi;1;Acquisto di beni;2;Altri beni di consumo;11;Generi alimentari;12-05-2020;
511;3;0;"1.427,90";"1.427,90";SUPERMERCATO FACCHIN DI FACCHIN A. & S.a.S.; ;SALDO Fatt.n. 52020  del 30/04/2020 ACQUISTO BENI PER EMERGENZA ALIMENTARE;12-05-2020;563;0;127;1;Spese correnti;3;Acquisto di beni e servizi;1;Acquisto di beni;2;Altri beni di consumo;11;Generi alimentari;12-05-2020;
512;1;0;"5,68";"674,50";MAXI DI SRL; ;SALDO Fatt.n. D38520999000034  del 14/04/2020 ACQUISTO BENI PER EMERGENZA ALIMENTARE;12-05-2020;563;0;126;1;Spese correnti;3;Acquisto di beni e servizi;1;Acquisto di beni;2;Altri beni di consumo;11;Generi alimentari;12-05-2020;
512;2;0;"7,97";"674,50";MAXI DI SRL; ;SALDO Fatt.n. D38520999000030  del 14/04/2020 ACQUISTO BENI PER EMERGENZA ALIMENTARE;12-05-2020;563;0;126;1;Spese correnti;3;Acquisto di beni e servizi;1;Acquisto di beni;2;Altri beni di consumo;11;Generi alimentari;12-05-2020;
512;3;0;"9,45";"674,50";MAXI DI SRL; ;SALDO Fatt.n. D38520999000035  del 14/04/2020 ACQUISTO BENI PER EMERGENZA ALIMENTARE;12-05-2020;563;0;126;1;Spese correnti;3;Acquisto di beni e servizi;1;Acquisto di beni;2;Altri beni di consumo;11;Generi alimentari;12-05-2020;
512;4;0;"30,73";"674,50";MAXI DI SRL; ;SALDO Fatt.n. D38520999000032  del 14/04/2020 ACQUISTO BENI PER EMERGENZA ALIMENTARE;12-05-2020;563;0;126;1;Spese correnti;3;Acquisto di beni e servizi;1;Acquisto di beni;2;Altri beni di consumo;11;Generi alimentari;12-05-2020;
512;5;0;"45,65";"674,50";MAXI DI SRL; ;SALDO Fatt.n. D38520999000028  del 14/04/2020 ACQUISTO BENI PER EMERGENZA ALIMENTARE;12-05-2020;563;0;126;1;Spese correnti;3;Acquisto di beni e servizi;1;Acquisto di beni;2;Altri beni di consumo;11;Generi alimentari;12-05-2020;
512;6;0;"65,64";"674,50";MAXI DI SRL; ;SALDO Fatt.n. D38520999000029  del 14/04/2020 ACQUISTO BENI PER EMERGENZA ALIMENTARE;12-05-2020;563;0;126;1;Spese correnti;3;Acquisto di beni e servizi;1;Acquisto di beni;2;Altri beni di consumo;11;Generi alimentari;12-05-2020;
512;7;0;"83,33";"674,50";MAXI DI SRL; ;SALDO Fatt.n. D38520999000031  del 14/04/2020 ACQUSTO BENI PER EMERGENZA ALIMENTARE;12-05-2020;563;0;126;1;Spese correnti;3;Acquisto di beni e servizi;1;Acquisto di beni;2;Altri beni di consumo;11;Generi alimentari;12-05-2020;
512;8;0;"118,00";"674,50";MAXI DI SRL; ;SALDO Fatt.n. D38520999000026  del 10/04/2020 ACQUISTO BENI PER EMERGENZA ALIMENTARE;12-05-2020;563;0;126;1;Spese correnti;3;Acquisto di beni e servizi;1;Acquisto di beni;2;Altri beni di consumo;11;Generi alimentari;12-05-2020;
512;9;0;"129,34";"674,50";MAXI DI SRL; ;SALDO Fatt.n. D38520999000027  del 10/04/2020 ACQUISTO BENI PER EMERGENZA SANITARIA;12-05-2020;563;0;126;1;Spese correnti;3;Acquisto di beni e servizi;1;Acquisto di beni;2;Altri beni di consumo;11;Generi alimentari;12-05-2020;
512;10;0;"178,71";"674,50";MAXI DI SRL; ;SALDO Fatt.n. D38520999000045  del 17/04/2020 ACQUISTO BENI PER EMERGENZA ALIMENTARE;12-05-2020;563;0;126;1;Spese correnti;3;Acquisto di beni e servizi;1;Acquisto di beni;2;Altri beni di consumo;11;Generi alimentari;12-05-2020;
513;1;0;"22,82";"809,65";MAXI DI SRL; ;SALDO Fatt.n. D38520999000033  del 14/04/2020 ACQUISTO BENI PER EMERGENZA ALIMENTARE;12-05-2020;563;0;126;1;Spese correnti;3;Acquisto di beni e servizi;1;Acquisto di beni;2;Altri beni di consumo;11;Generi alimentari;12-05-2020;
513;2;0;"39,04";"809,65";MAXI DI SRL; ;SALDO Fatt.n. D38520999000036  del 15/04/2020 ACQUISTO BENI PER EMERGENZA ALIMENTARE;12-05-2020;563;0;126;1;Spese correnti;3;Acquisto di beni e servizi;1;Acquisto di beni;2;Altri beni di consumo;11;Generi alimentari;12-05-2020;
513;3;0;"47,82";"809,65";MAXI DI SRL; ;SALDO Fatt.n. D38520999000042  del 15/04/2020 ACQUISTO BENI PER EMERGENZA ALIMENTARE;12-05-2020;563;0;126;1;Spese correnti;3;Acquisto di beni e servizi;1;Acquisto di beni;2;Altri beni di consumo;11;Generi alimentari;12-05-2020;
513;4;0;"50,79";"809,65";MAXI DI SRL; ;SALDO Fatt.n. D38520999000037  del 15/04/2020 ACQUISTO BENI PER EMERGENZA ALIMENTARE;12-05-2020;563;0;126;1;Spese correnti;3;Acquisto di beni e servizi;1;Acquisto di beni;2;Altri beni di consumo;11;Generi alimentari;12-05-2020;
513;5;0;"57,51";"809,65";MAXI DI SRL; ;SALDO Fatt.n. D38520999000041  del 15/04/2020 ACQUISTO BENI PER EMERGENZA ALIMENTARE;12-05-2020;563;0;126;1;Spese correnti;3;Acquisto di beni e servizi;1;Acquisto di beni;2;Altri beni di consumo;11;Generi alimentari;12-05-2020;
513;6;0;"76,76";"809,65";MAXI DI SRL; ;SALDO Fatt.n. D38520999000038  del 15/04/2020 ACQUISTO BENI PER EMERGENZA ALIMENTARE;12-05-2020;563;0;126;1;Spese correnti;3;Acquisto di beni e servizi;1;Acquisto di beni;2;Altri beni di consumo;11;Generi alimentari;12-05-2020;
513;7;0;"78,22";"809,65";MAXI DI SRL; ;SALDO Fatt.n. D38520999000040  del 15/04/2020 ACQUISTO BENI PER EMERGENZA ALIMENTARE;12-05-2020;563;0;126;1;Spese correnti;3;Acquisto di beni e servizi;1;Acquisto di beni;2;Altri beni di consumo;11;Generi alimentari;12-05-2020;
513;8;0;"90,97";"809,65";MAXI DI SRL; ;SALDO Fatt.n. D38520999000039  del 15/04/2020 ACQUISTO BENI PER EMERGENZA ALIMENTARE;12-05-2020;563;0;126;1;Spese correnti;3;Acquisto di beni e servizi;1;Acquisto di beni;2;Altri beni di consumo;11;Generi alimentari;12-05-2020;
513;9;0;"93,80";"809,65";MAXI DI SRL; ;SALDO Fatt.n. D38520999000043  del 16/04/2020 ACQUISTO BENI PER EMERGENZA ALIMENTARE;12-05-2020;563;0;126;1;Spese correnti;3;Acquisto di beni e servizi;1;Acquisto di beni;2;Altri beni di consumo;11;Generi alimentari;12-05-2020;
513;10;0;"97,85";"809,65";MAXI DI SRL; ;SALDO Fatt.n. D38520999000046  del 17/04/2020 ACQUISTO BENI PER EMERGENZA ALIMENTARE;12-05-2020;563;0;126;1;Spese correnti;3;Acquisto di beni e servizi;1;Acquisto di beni;2;Altri beni di consumo;11;Generi alimentari;12-05-2020;
513;11;0;"154,07";"809,65";MAXI DI SRL; ;SALDO Fatt.n. D38520999000044  del 16/04/2020 ACQUISTO BENI PER EMERGENZA ALIMENTARE;12-05-2020;563;0;126;1;Spese correnti;3;Acquisto di beni e servizi;1;Acquisto di beni;2;Altri beni di consumo;11;Generi alimentari;12-05-2020;
514;1;0;"74,23";"1.127,63";MAXI DI SRL; ;SALDO Fatt.n. D38520999000048  del 17/04/2020 ACQUISTO BENI PER EMERGENZA ALIMENTARE;12-05-2020;563;0;126;1;Spese correnti;3;Acquisto di beni e servizi;1;Acquisto di beni;2;Altri beni di consumo;11;Generi alimentari;12-05-2020;
514;2;0;"85,06";"1.127,63";MAXI DI SRL; ;SALDO Fatt.n. D38520999000051  del 20/04/2020 ACQUISTO BENI PER EMERGENZA ALIMENTARE;12-05-2020;563;0;126;1;Spese correnti;3;Acquisto di beni e servizi;1;Acquisto di beni;2;Altri beni di consumo;11;Generi alimentari;12-05-2020;
514;3;0;"88,47";"1.127,63";MAXI DI SRL; ;SALDO Fatt.n. D38520999000060  del 21/04/2020 ACQUISTO BENI PER EMERGENZA ALIMENTARE;12-05-2020;563;0;126;1;Spese correnti;3;Acquisto di beni e servizi;1;Acquisto di beni;2;Altri beni di consumo;11;Generi alimentari;12-05-2020;
514;4;0;"88,66";"1.127,63";MAXI DI SRL; ;SALDO Fatt.n. D38520999000059  del 21/04/2020 ACQUISTO BENI PER EMERGENZA ALIMENTARE;12-05-2020;563;0;126;1;Spese correnti;3;Acquisto di beni e servizi;1;Acquisto di beni;2;Altri beni di consumo;11;Generi alimentari;12-05-2020;
514;5;0;"108,58";"1.127,63";MAXI DI SRL; ;SALDO Fatt.n. D38520999000054  del 21/04/2020 ACQUISTO BENI PER EMERGENZA ALIMENTARE;12-05-2020;563;0;126;1;Spese correnti;3;Acquisto di beni e servizi;1;Acquisto di beni;2;Altri beni di consumo;11;Generi alimentari;12-05-2020;
514;6;0;"113,60";"1.127,63";MAXI DI SRL; ;SALDO Fatt.n. D38520999000047  del 17/04/2020 ACQUISTO BENI PER EMERGENZA FAMILIARE;12-05-2020;563;0;126;1;Spese correnti;3;Acquisto di beni e servizi;1;Acquisto di beni;2;Altri beni di consumo;11;Generi alimentari;12-05-2020;
514;7;0;"123,63";"1.127,63";MAXI DI SRL; ;SALDO Fatt.n. D38520999000050  del 20/04/2020 ACQUISTO BENI PER EMERGENZA ALIMENTARE;12-05-2020;563;0;126;1;Spese correnti;3;Acquisto di beni e servizi;1;Acquisto di beni;2;Altri beni di consumo;11;Generi alimentari;12-05-2020;
514;8;0;"134,45";"1.127,63";MAXI DI SRL; ;SALDO Fatt.n. D38520999000055  del 21/04/2020 ACQUISTO BENI PER EMERGENZA ALIMENTARE;12-05-2020;563;0;126;1;Spese correnti;3;Acquisto di beni e servizi;1;Acquisto di beni;2;Altri beni di consumo;11;Generi alimentari;12-05-2020;
514;9;0;"136,29";"1.127,63";MAXI DI SRL; ;SALDO Fatt.n. D38520999000052  del 20/04/2020 ACQUISTO BENI PER EMERGENZA ALIMENTARE;12-05-2020;563;0;126;1;Spese correnti;3;Acquisto di beni e servizi;1;Acquisto di beni;2;Altri beni di consumo;11;Generi alimentari;12-05-2020;
514;10;0;"174,66";"1.127,63";MAXI DI SRL; ;SALDO Fatt.n. D38520999000053  del 20/04/2020 ACQUISTO BENI PER EMERGENZA ALIMENTARE;12-05-2020;563;0;126;1;Spese correnti;3;Acquisto di beni e servizi;1;Acquisto di beni;2;Altri beni di consumo;11;Generi alimentari;12-05-2020;
515;1;0;"25,18";"1.031,82";MAXI DI SRL; ;SALDO Fatt.n. D38520999000070  del 24/04/2020 ACQUISTO BENI PER EMERGENZA ALIMENTARE;12-05-2020;563;0;126;1;Spese correnti;3;Acquisto di beni e servizi;1;Acquisto di beni;2;Altri beni di consumo;11;Generi alimentari;12-05-2020;
515;2;0;"42,64";"1.031,82";MAXI DI SRL; ;SALDO Fatt.n. D38520999000069  del 24/04/2020 ACQUISTO BENI PER EMERGENZA ALIMENTARE;12-05-2020;563;0;126;1;Spese correnti;3;Acquisto di beni e servizi;1;Acquisto di beni;2;Altri beni di consumo;11;Generi alimentari;12-05-2020;
515;3;0;"45,79";"1.031,82";MAXI DI SRL; ;SALDO Fatt.n. D38520999000072  del 24/04/2020 ACQUISTO BENI PER EMERGENZA ALIMENTARE;12-05-2020;563;0;126;1;Spese correnti;3;Acquisto di beni e servizi;1;Acquisto di beni;2;Altri beni di consumo;11;Generi alimentari;12-05-2020;
515;4;0;"48,07";"1.031,82";MAXI DI SRL; ;SALDO Fatt.n. D38520999000071  del 24/04/2020 ACQUISTO BENI PER EMERGENZA ALIMENTARE;12-05-2020;563;0;126;1;Spese correnti;3;Acquisto di beni e servizi;1;Acquisto di beni;2;Altri beni di consumo;11;Generi alimentari;12-05-2020;
515;5;0;"55,46";"1.031,82";MAXI DI SRL; ;SALDO Fatt.n. D38520999000061  del 21/04/2020 ACQUISTO BENI PER EMERGENZA ALIMENTARE;12-05-2020;563;0;126;1;Spese correnti;3;Acquisto di beni e servizi;1;Acquisto di beni;2;Altri beni di consumo;11;Generi alimentari;12-05-2020;
515;6;0;"56,73";"1.031,82";MAXI DI SRL; ;SALDO Fatt.n. D38520999000063  del 22/04/2020 ACQUISTO BENI PER EMERGENZA ALIMENTARE;12-05-2020;563;0;126;1;Spese correnti;3;Acquisto di beni e servizi;1;Acquisto di beni;2;Altri beni di consumo;11;Generi alimentari;12-05-2020;
515;7;0;"61,15";"1.031,82";MAXI DI SRL; ;SALDO Fatt.n. D38520999000066  del 24/04/2020 ACQUISTO BENI PER EMERGENZA ALIMENTARE;12-05-2020;563;0;126;1;Spese correnti;3;Acquisto di beni e servizi;1;Acquisto di beni;2;Altri beni di consumo;11;Generi alimentari;12-05-2020;
515;8;0;"65,94";"1.031,82";MAXI DI SRL; ;SALDO Fatt.n. D38520999000064  del 22/04/2020 ACQUISTO BENI PER EMERGENZA ALIMENTARE;12-05-2020;563;0;126;1;Spese correnti;3;Acquisto di beni e servizi;1;Acquisto di beni;2;Altri beni di consumo;11;Generi alimentari;12-05-2020;
515;9;0;"72,54";"1.031,82";MAXI DI SRL; ;SALDO Fatt.n. D38520999000067  del 24/04/2020 ACQUISTO BENI PER EMERGENZA ALIMENTARE;12-05-2020;563;0;126;1;Spese correnti;3;Acquisto di beni e servizi;1;Acquisto di beni;2;Altri beni di consumo;11;Generi alimentari;12-05-2020;
515;10;0;"99,44";"1.031,82";MAXI DI SRL; ;SALDO Fatt.n. D38520999000062  del 22/04/2020 ACQUISTO BENI PER EMERGENZA ALIMENTARE;12-05-2020;563;0;126;1;Spese correnti;3;Acquisto di beni e servizi;1;Acquisto di beni;2;Altri beni di consumo;11;Generi alimentari;12-05-2020;
515;11;0;"112,64";"1.031,82";MAXI DI SRL; ;SALDO Fatt.n. D38520999000057  del 21/04/2020 ACQUISTO BENI PER EMERGENZA ALIMENTARE;12-05-2020;563;0;126;1;Spese correnti;3;Acquisto di beni e servizi;1;Acquisto di beni;2;Altri beni di consumo;11;Generi alimentari;12-05-2020;
515;12;0;"168,09";"1.031,82";MAXI DI SRL; ;SALDO Fatt.n. D38520999000056  del 21/04/2020 ACQUISTO BENI PER ACQUISTO EMERGENZA ALIMENTARE;12-05-2020;563;0;126;1;Spese correnti;3;Acquisto di beni e servizi;1;Acquisto di beni;2;Altri beni di consumo;11;Generi alimentari;12-05-2020;
515;13;0;"178,15";"1.031,82";MAXI DI SRL; ;SALDO Fatt.n. D38520999000058  del 21/04/2020 ACQUISTO BENI PER EMERGENZA ALIMENTARE;12-05-2020;563;0;126;1;Spese correnti;3;Acquisto di beni e servizi;1;Acquisto di beni;2;Altri beni di consumo;11;Generi alimentari;12-05-2020;
516;1;0;"28,06";"28,06";SICURITALIA IVRI S.P.A.;Z3827208DE;SALDO Fatt.n. 9117004717  del 30/04/2020 SERVIZI ISPETTIVI - APRILE 2020;13-05-2020;34;0;88;1;Spese correnti;3;Acquisto di beni e servizi;2;Acquisto di servizi;5;Utenze e canoni;999;Utenze e canoni per altri servizi n.a.c.;13-05-2020;
517;1;0;"308,66";"308,66";SICURITALIA IVRI S.P.A.;Z3827208DE;ACCONTO Fatt.n. 9117003812  del 14/04/2020 SERVIZI ISPETTIVI - APRILE 2020;13-05-2020;71;0;89;1;Spese correnti;3;Acquisto di beni e servizi;2;Acquisto di servizi;5;Utenze e canoni;999;Utenze e canoni per altri servizi n.a.c.;13-05-2020;
518;1;0;"258,64";"258,64";SICURITALIA IVRI S.P.A.;Z3827208DE;SALDO Fatt.n. 9117003812  del 14/04/2020 SERVIZI ISPETTIVI - APRILE 2020;13-05-2020;561;2;90;1;Spese correnti;3;Acquisto di beni e servizi;2;Acquisto di servizi;5;Utenze e canoni;999;Utenze e canoni per altri servizi n.a.c.;13-05-2020;
519;1;0;"43,45";"382,43";MAXI DI SRL; ;SALDO Fatt.n. D38520999000091  del 30/04/2020 ACQUISTO BENI PER EMERGENZA ALIMENTARE;13-05-2020;563;0;126;1;Spese correnti;3;Acquisto di beni e servizi;1;Acquisto di beni;2;Altri beni di consumo;11;Generi alimentari;13-05-2020;
519;2;0;"74,96";"382,43";MAXI DI SRL; ;SALDO Fatt.n. D38520999000088  del 29/04/2020 ACQUISTO BENI PER EMERGENZA ALIMENTARE;13-05-2020;563;0;126;1;Spese correnti;3;Acquisto di beni e servizi;1;Acquisto di beni;2;Altri beni di consumo;11;Generi alimentari;13-05-2020;
519;3;0;"77,37";"382,43";MAXI DI SRL; ;SALDO Fatt.n. D38520999000090  del 30/04/2020 ACQUISTO BENI PER EMERGENZA ALIMENTARE;13-05-2020;563;0;126;1;Spese correnti;3;Acquisto di beni e servizi;1;Acquisto di beni;2;Altri beni di consumo;11;Generi alimentari;13-05-2020;
519;4;0;"89,10";"382,43";MAXI DI SRL; ;SALDO Fatt.n. D38520999000093  del 30/04/2020 ACQUISTO BENI PER EMERGENZA ALIMENTARE;13-05-2020;563;0;126;1;Spese correnti;3;Acquisto di beni e servizi;1;Acquisto di beni;2;Altri beni di consumo;11;Generi alimentari;13-05-2020;
519;5;0;"97,55";"382,43";MAXI DI SRL; ;SALDO Fatt.n. D38520999000087  del 29/04/2020 ACQUSTO BENI PER EMERGENZA ALIMENTARE;13-05-2020;563;0;126;1;Spese correnti;3;Acquisto di beni e servizi;1;Acquisto di beni;2;Altri beni di consumo;11;Generi alimentari;13-05-2020;
521;1;0;"47,10";"971,32";MAXI DI SRL; ;SALDO Fatt.n. D38520999000078  del 28/04/2020 ACQUISTO BENI PER EMERGENZA ALIMENTARE;13-05-2020;563;0;126;1;Spese correnti;3;Acquisto di beni e servizi;1;Acquisto di beni;2;Altri beni di consumo;11;Generi alimentari;13-05-2020;
521;2;0;"61,72";"971,32";MAXI DI SRL; ;SALDO Fatt.n. D38520999000075  del 28/04/2020 ACQUISTO BENI PER MERGENZA ALIMENTARE;13-05-2020;563;0;126;1;Spese correnti;3;Acquisto di beni e servizi;1;Acquisto di beni;2;Altri beni di consumo;11;Generi alimentari;13-05-2020;
521;3;0;"65,52";"971,32";MAXI DI SRL; ;SALDO Fatt.n. D38520999000077  del 28/04/2020 ACQUISTO BENI PER EMERGENZA ALIMENTARE;13-05-2020;563;0;126;1;Spese correnti;3;Acquisto di beni e servizi;1;Acquisto di beni;2;Altri beni di consumo;11;Generi alimentari;13-05-2020;
521;4;0;"70,45";"971,32";MAXI DI SRL; ;SALDO Fatt.n. D38520999000080  del 29/04/2020 ACQUISTO BENI PER EMERGENZA ALIMENTARE;13-05-2020;563;0;126;1;Spese correnti;3;Acquisto di beni e servizi;1;Acquisto di beni;2;Altri beni di consumo;11;Generi alimentari;13-05-2020;
521;5;0;"88,52";"971,32";MAXI DI SRL; ;SALDO Fatt.n. D38520999000074  del 27/04/2020 ACQUISTO BENI PER EMERGENZA ALIMENTARE;13-05-2020;563;0;126;1;Spese correnti;3;Acquisto di beni e servizi;1;Acquisto di beni;2;Altri beni di consumo;11;Generi alimentari;13-05-2020;
521;6;0;"89,34";"971,32";MAXI DI SRL; ;SALDO Fatt.n. D38520999000076  del 28/04/2020 ACQUISTO BENI PER EMERGENZA ALIMENTARE;13-05-2020;563;0;126;1;Spese correnti;3;Acquisto di beni e servizi;1;Acquisto di beni;2;Altri beni di consumo;11;Generi alimentari;13-05-2020;
521;7;0;"97,87";"971,32";MAXI DI SRL; ;SALDO Fatt.n. D38520999000073  del 27/04/2020 ACQUISTO BENI PER EMERGENZA ALIMENTARE;13-05-2020;563;0;126;1;Spese correnti;3;Acquisto di beni e servizi;1;Acquisto di beni;2;Altri beni di consumo;11;Generi alimentari;13-05-2020;
521;8;0;"135,33";"971,32";MAXI DI SRL; ;SALDO Fatt.n. D38520999000068  del 24/04/2020 ACQUISTO BENI PER EMERGENZA ALIMENTARE;13-05-2020;563;0;126;1;Spese correnti;3;Acquisto di beni e servizi;1;Acquisto di beni;2;Altri beni di consumo;11;Generi alimentari;13-05-2020;
521;9;0;"146,22";"971,32";MAXI DI SRL; ;SALDO Fatt.n. D38520999000081  del 29/04/2020 ACQUISTO BENI PER EMERGENZA ALIMENTARE;13-05-2020;563;0;126;1;Spese correnti;3;Acquisto di beni e servizi;1;Acquisto di beni;2;Altri beni di consumo;11;Generi alimentari;13-05-2020;
521;10;0;"169,25";"971,32";MAXI DI SRL; ;SALDO Fatt.n. D38520999000079  del 28/04/2020 ACQUISTO BENI PER EMERGENZA ALIMENTARE;13-05-2020;563;0;126;1;Spese correnti;3;Acquisto di beni e servizi;1;Acquisto di beni;2;Altri beni di consumo;11;Generi alimentari;13-05-2020;
522;1;0;"378,00";"378,00";KIRIKU' SOCIETA' COOPERATIVA SOCIALE ONLUS;Z0E2BFC1F7;SALDO Fatt.n. 297  del 10/04/2020 SPESE PER PRESTAZIONI SOCIALI;15-05-2020;559;0;57;1;Spese correnti;3;Acquisto di beni e servizi;2;Acquisto di servizi;99;Altri servizi;999;Altri servizi diversi n.a.c.;15-05-2020;
523;1;0;"226,90";"226,90";POSTE ITALIANE SPA - PROVENTI POLO LOGISTICO;ZC42B68711;SALDO Fatt.n. 1020105723  del 28/04/2020 PRODOTTI POSTALI - MARZO 2020;15-05-2020;34;3;633;1;Spese correnti;3;Acquisto di beni e servizi;2;Acquisto di servizi;16;Servizi amministrativi;2;Spese postali;15-05-2020;
528;1;0;"86,51";"86,51";OMESSO NOMINATIVO NEL RISPETTO DELLA NORMATIVA SULLA PROTEZIONE DATI PERSONALI; ;FATTURA CONTARINA N. 689/0001701 DEL 01/04/2020.;15-05-2020;576;0;90;1;Spese correnti;4;Trasferimenti correnti;2;Trasferimenti correnti a Famiglie;2;Interventi assistenziali;999;Altri assegni e sussidi assistenziali;15-05-2020;
529;1;0;"161,93";"161,93";OMESSO NOMINATIVO NEL RISPETTO DELLA NORMATIVA SULLA PROTEZIONE DATI PERSONALI; ;FATTURA CONTARINA N. 689/0001639 DEL 01/04/2020.;15-05-2020;576;0;140;1;Spese correnti;4;Trasferimenti correnti;2;Trasferimenti correnti a Famiglie;2;Interventi assistenziali;999;Altri assegni e sussidi assistenziali;15-05-2020;
530;1;0;"5.695,24";"5.695,24";TEC.SE. SRL;ZD929FFFBA;SALDO Fatt.n. 195  del 29/04/2020 INTERVENTI DI RIFACIMENTO SEGNALETICA STRADALE;18-05-2020;745;0;625;2;Spese in conto capitale;2;Investimenti fissi lordi e acquisto di terreni;1;Beni materiali;9;Beni immobili;12;Infrastrutture stradali;18-05-2020;
559;1;0;"5.961,21";"5.961,21";AMMINISTRATORI COMUNALI; ;Indennita` di carica MESE DI: MAGGIO 20;18-05-2020;2;0;1;1;Spese correnti;3;Acquisto di beni e servizi;2;Acquisto di servizi;1;Organi e incarichi istituzionali dell'amministrazione;1;Organi istituzionali dell'amministrazione - Indennità;18-05-2020;
565;1;0;"4.519,60";"4.519,60";SUPERMERCATO F.LLI BORDIGNON S.N.C.; ;SALDO Fatt.n. 0000000001  del 30/04/2020 ACQUISTO BENI PER EMERGENZA ALIMENTARE;19-05-2020;563;0;128;1;Spese correnti;3;Acquisto di beni e servizi;1;Acquisto di beni;2;Altri beni di consumo;11;Generi alimentari;19-05-2020;
566;1;0;"2.015,00";"2.015,00";OPERE PIE D'ONIGO; ;SALDO Fatt.n. 118/2  del 06/04/2020 RETTE PERSONA BISOGNOSA;19-05-2020;560;0;113;1;Spese correnti;3;Acquisto di beni e servizi;2;Acquisto di servizi;15;Contratti di servizio pubblico;8;Contratti di servizio di assistenza sociale residenziale e semiresidenziale;19-05-2020;
567;1;0;"-5.680,11";"5.679,10";BOXXAPPS S.R.L.;Z912B39FDA;SALDO Fatt.n. 200471/1  del 15/05/2020 NOTA DI CREDITO;19-05-2020;744;1;612;2;Spese in conto capitale;2;Investimenti fissi lordi e acquisto di terreni;1;Beni materiali;9;Beni immobili;999;Beni immobili n.a.c.;19-05-2020;
567;2;0;"5.679,10";"5.679,10";BOXXAPPS S.R.L.;Z912B39FDA;SALDO Fatt.n. 200472/1  del 15/05/2020 SPOSTAMENTO SERVER;19-05-2020;744;1;612;2;Spese in conto capitale;2;Investimenti fissi lordi e acquisto di terreni;1;Beni materiali;9;Beni immobili;999;Beni immobili n.a.c.;19-05-2020;
567;3;0;"5.680,11";"5.679,10";BOXXAPPS S.R.L.;Z912B39FDA;SALDO Fatt.n. 200417/1  del 17/04/2020 SPOSTAMENTO SERVER- FT ERRATA;19-05-2020;744;1;612;2;Spese in conto capitale;2;Investimenti fissi lordi e acquisto di terreni;1;Beni materiali;9;Beni immobili;999;Beni immobili n.a.c.;19-05-2020;
568;1;0;"-1.057,74";"1.057,73";K.D. DISINFESTAZIONI & DERATTIZZAZIONI S.R.L.;Z752829F0D;SALDO Fatt.n. FPA 3/20  del 12/05/2020 NOTA DI CREDITO;19-05-2020;510;1;221;1;Spese correnti;3;Acquisto di beni e servizi;2;Acquisto di servizi;99;Altri servizi;999;Altri servizi diversi n.a.c.;19-05-2020;
568;2;0;"1.057,73";"1.057,73";K.D. DISINFESTAZIONI & DERATTIZZAZIONI S.R.L.;Z752829F0D;SALDO Fatt.n. FPA 4/20  del 12/05/2020 DERATIZZAZIONE;19-05-2020;510;1;221;1;Spese correnti;3;Acquisto di beni e servizi;2;Acquisto di servizi;99;Altri servizi;999;Altri servizi diversi n.a.c.;19-05-2020;
568;3;0;"1.057,74";"1.057,73";K.D. DISINFESTAZIONI & DERATTIZZAZIONI S.R.L.;Z752829F0D;SALDO Fatt.n. FPA 1/20  del 06/03/2020 DERATIZZAZIONE - FT ERRATA;19-05-2020;510;1;221;1;Spese correnti;3;Acquisto di beni e servizi;2;Acquisto di servizi;99;Altri servizi;999;Altri servizi diversi n.a.c.;19-05-2020;
569;1;0;"619,15";"619,15";ITALWARE S.R.L.;ZBD2B2FE2B;SALDO Fatt.n. 20001325  del 17/04/2020 PC PORTATILE PER UFFICI COMUNALI;19-05-2020;743;3;677;2;Spese in conto capitale;2;Investimenti fissi lordi e acquisto di terreni;1;Beni materiali;6;Macchine per ufficio;1;Macchine per ufficio;19-05-2020;
570;1;0;"514,60";"514,60";ELETTRAUTO GHENO DIEGO;Z7F2B4292B;SALDO Fatt.n. 100001  del 17/04/2020 LAVORI DI MANUTENZIONE AUTO COMUNALI;19-05-2020;179;1;674;1;Spese correnti;3;Acquisto di beni e servizi;2;Acquisto di servizi;9;Manutenzione ordinaria e riparazioni;1;"Manutenzione ordinaria e riparazioni di mezzi di trasporto ad uso civile, di sicurezza e ordine pubblico";19-05-2020;
571;1;0;"999,79";"999,79";F.A.P. S.N.C.;Z912C15CCB;SALDO Fatt.n. 82/fe  del 10/04/2020 DIVISE PER VIGILI;19-05-2020;175;0;67;1;Spese correnti;3;Acquisto di beni e servizi;1;Acquisto di beni;2;Altri beni di consumo;4;Vestiario;19-05-2020;
572;1;0;"201,02";"201,02";BELLNET INTERNATIONAL S.R.L.;Z752BFBD5F;SALDO Fatt.n. FATTPA 918_20  del 30/04/2020 TRAFFICO TELEFONICO - MAGGIO 2020;19-05-2020;34;0;58;1;Spese correnti;3;Acquisto di beni e servizi;2;Acquisto di servizi;5;Utenze e canoni;1;Telefonia fissa;19-05-2020;
573;1;0;"321,96";"321,96";IDROTERMICA MAZZAROLO S.R.L.;Z2C2C428C4;SALDO Fatt.n. 1/PA  del 27/04/2020 MANUTENZIONE ORDINARIA UFF. COMUNALI;19-05-2020;532;0;130;1;Spese correnti;3;Acquisto di beni e servizi;2;Acquisto di servizi;9;Manutenzione ordinaria e riparazioni;4;Manutenzione ordinaria e riparazioni di impianti e macchinari;19-05-2020;
574;1;0;"335,50";"335,50";PEDERIVA ITALO;ZDD2C42678;SALDO Fatt.n. 1/PA  del 05/05/2020 NOLEGGIO PIATTAFORMA PER ALBERO NATALIZIO;19-05-2020;510;3;132;1;Spese correnti;3;Acquisto di beni e servizi;2;Acquisto di servizi;9;Manutenzione ordinaria e riparazioni;11;Manutenzione ordinaria e riparazioni di altri beni materiali;19-05-2020;
575;1;0;"1.041,60";"1.041,60";KIRIKU' SOCIETA' COOPERATIVA SOCIALE ONLUS;ZFA2BFBEE7;SALDO Fatt.n. 312  del 30/04/2020 EDUCATIVA DOMICILIARE - APRILE 2020;19-05-2020;559;0;56;1;Spese correnti;3;Acquisto di beni e servizi;2;Acquisto di servizi;99;Altri servizi;999;Altri servizi diversi n.a.c.;19-05-2020;
576;1;0;"1.823,85";"1.823,85";KIRIKU' SOCIETA' COOPERATIVA SOCIALE ONLUS;Z6D274937A;SALDO Fatt.n. 321  del 30/04/2020 SPAZIO EDUCATIVO POMERIDIANO - APRILE 2020;19-05-2020;559;0;106;1;Spese correnti;3;Acquisto di beni e servizi;2;Acquisto di servizi;99;Altri servizi;999;Altri servizi diversi n.a.c.;19-05-2020;
577;1;0;"2.174,17";"2.174,17";A.S. DI ANDREATTA GIUSEPPE & C. S.R.L.;ZB1282AB4D;SALDO Fatt.n. 288  del 30/04/2020 MANUTENZIONE PUBBLICA ILLUMINAZIONE;19-05-2020;601;0;567;1;Spese correnti;3;Acquisto di beni e servizi;2;Acquisto di servizi;15;Contratti di servizio pubblico;15;Contratti di servizio per l'illuminazione pubblica;19-05-2020;
578;1;0;"3.640,00";"3.640,00";SARTOR ROBERTO;Z4E28253D4;SALDO Fatt.n. FATTPA 7_20  del 07/05/2020 REDAZIONE VARIANTE AL PATI;19-05-2020;881;3;190;2;Spese in conto capitale;2;Investimenti fissi lordi e acquisto di terreni;3;Beni immateriali;5;Incarichi professionali per la realizzazione di investimenti;1;Incarichi professionali per la realizzazione di investimenti;19-05-2020;
579;1;0;"44.000,00";"44.000,00";C.S.M. ACCIAIO SRL;6867174B3F;SALDO Fatt.n. 65  del 30/04/2020 ACCONTO LAVORI ADEGUAMENTO SISMICO;19-05-2020;889;0;538;2;Spese in conto capitale;2;Investimenti fissi lordi e acquisto di terreni;1;Beni materiali;9;Beni immobili;16;Impianti sportivi;19-05-2020;
580;1;0;"11.958,27";"11.958,27";A.S. DI ANDREATTA GIUSEPPE & C. S.R.L.;Z4B2C3A003;SALDO Fatt.n. 289  del 30/04/2020 SISTEMA DI CONTROLLO TRANSITI E ACCESSI;19-05-2020;1007;0;85;2;Spese in conto capitale;2;Investimenti fissi lordi e acquisto di terreni;1;Beni materiali;9;Beni immobili;12;Infrastrutture stradali;19-05-2020;
581;1;0;"904,53";"904,53";FARMACIA AGOSTINI DR. GIOVANNA; ;SALDO Fatt.n. 15 / PA  del 07/05/2020 ACQUISTO BENI PER EMERGENZA SANITARIA;19-05-2020;563;0;124;1;Spese correnti;3;Acquisto di beni e servizi;1;Acquisto di beni;2;Altri beni di consumo;11;Generi alimentari;19-05-2020;
582;1;0;"5.000,00";"5.000,00";ATTIVITA' MOTORIE LA TORRE; ;"LIQUIDAZIONE SECONDA RATA CONTRIBUTO ALLASSOCIAZIONE ATTIVITA MOTORIA LA TORRE A.S.D. DI FONTE (TV) PER IL SERVIZIO DI GESTIONE, SORVEGLIANZA E PULIZIA DELLA PALESTRA COMUNALE DEL CAPOLUOGO CON ANNESSI IMPIANTI SPORTIVI ESTERNI E PARCO GIOCHI. PERIO";20-05-2020;533;0;48;1;Spese correnti;4;Trasferimenti correnti;1;Trasferimenti correnti a Amministrazioni Pubbliche;4;Trasferimenti correnti a organismi interni e/o unità locali della amministrazione;1;Trasferimenti correnti a organismi interni e/o unità locali della amministrazione;20-05-2020;
583;1;0;"1.195,92";"1.195,92";CAZZIOLA ROBERTO;ZCA2AD033D;SALDO Fatt.n. FATTPA 10_20  del 06/05/2020 REDAZIONE CENSIMENTO;20-05-2020;850;0;544;2;Spese in conto capitale;2;Investimenti fissi lordi e acquisto di terreni;3;Beni immateriali;5;Incarichi professionali per la realizzazione di investimenti;1;Incarichi professionali per la realizzazione di investimenti;20-05-2020;
584;1;0;"82,40";"841,64";KUWAIT PETROLEUM ITALIA S.P.A.;Z5B2CB3D93;SALDO Fatt.n. PJ02492706  del 30/04/2020 CARBURANTE AUTO COMUNALI-APRILE 2020;20-05-2020;590;0;111;1;Spese correnti;3;Acquisto di beni e servizi;1;Acquisto di beni;2;Altri beni di consumo;2;"Carburanti, combustibili e lubrificanti";20-05-2020;
584;2;0;"213,99";"841,64";KUWAIT PETROLEUM ITALIA S.P.A.;Z5B2CB3D93;SALDO Fatt.n. PJ02492708  del 30/04/2020 CARBURANTE AUTO COMUNALI - APRILE 2020;20-05-2020;590;0;111;1;Spese correnti;3;Acquisto di beni e servizi;1;Acquisto di beni;2;Altri beni di consumo;2;"Carburanti, combustibili e lubrificanti";20-05-2020;
584;3;0;"545,25";"841,64";KUWAIT PETROLEUM ITALIA S.P.A.;Z5B2CB3D93;SALDO Fatt.n. PJ02492705  del 30/04/2020 CARBURANTE AUTO COMUNALI-APRILE 2020;20-05-2020;590;0;111;1;Spese correnti;3;Acquisto di beni e servizi;1;Acquisto di beni;2;Altri beni di consumo;2;"Carburanti, combustibili e lubrificanti";20-05-2020;
585;1;0;"6.200,00";"6.200,00";F.C.D. UNION EZZELINA; ;"IMPEGNO DI SPESA E LIQUIDAZIONE TERZA E QUARTA RATA CONTRIBUTO ALLA F.C.D. UNION EZZELINA DI SAN ZENONE DEGLI EZZELINI (TV) PER IL SERVIZIO DI GESTIONE, SORVEGLIANZA E PULIZIA DELL IMPIANTO SPORTIVO DEL CAPOLUOGO  E DEGLI SPOGLIATOI CALCIO DELLA PALE";20-05-2020;533;0;162;1;Spese correnti;4;Trasferimenti correnti;1;Trasferimenti correnti a Amministrazioni Pubbliche;4;Trasferimenti correnti a organismi interni e/o unità locali della amministrazione;1;Trasferimenti correnti a organismi interni e/o unità locali della amministrazione;20-05-2020;
586;1;0;"1.210,00";"1.210,00";O.D.V. PROTEZIONE CIVILE DI SAN ZENONE DEGLI EZZELINI; ;LIQUIDAZIONE DEL PRIMO E SECONDO ACCONTO DEL CONTRIBUTO ALL ORGANIZZAZIONE  DI VOLONTARIATO (O.D.V.)  PROTEZIONE CIVILE DI SAN ZENONE DEGLI EZZELINI - ANNO 2020.;20-05-2020;382;1;114;1;Spese correnti;4;Trasferimenti correnti;1;Trasferimenti correnti a Amministrazioni Pubbliche;4;Trasferimenti correnti a organismi interni e/o unità locali della amministrazione;1;Trasferimenti correnti a organismi interni e/o unità locali della amministrazione;20-05-2020;
587;1;0;"97,98";"97,98";KUWAIT PETROLEUM ITALIA S.P.A.;Z5B2CB3D93;SALDO Fatt.n. PJ02492707  del 30/04/2020 CARBURANTE AUTO UFF. SOCIALE-APRILE 2020;20-05-2020;571;0;110;1;Spese correnti;3;Acquisto di beni e servizi;1;Acquisto di beni;2;Altri beni di consumo;2;"Carburanti, combustibili e lubrificanti";20-05-2020;
591;1;0;"3.303,04";"3.303,04";COMUNE DI CASTELLO DI GODEGO; ;RIMBORSO AL COMUNE DI CASTELLO DI GODEGO DELLE SPESE PER SEGRETERIA CONVENZIONATA E PER PERSONALE IN COMANDO PRESSO LUFFICIO ECONOMICO FINANZIARIO NEGLI ANNI 2017-2018.;20-05-2020;221;0;611;1;Spese correnti;4;Trasferimenti correnti;4;Trasferimenti correnti a Istituzioni Sociali Private;1;Trasferimenti correnti a Istituzioni Sociali Private;1;Trasferimenti correnti a Istituzioni Sociali Private;20-05-2020;
592;1;0;"417,03";"417,03";COMUNE DI CASTELLO DI GODEGO; ;RIMBORSO AL COMUNE DI CASTELLO DI GODEGO DELLE SPESE PER SEGRETERIA CONVENZIONATA E PER PERSONALE IN COMANDO PRESSO LUFFICIO ECONOMICO FINANZIARIO NEGLI ANNI 2017-2018.;20-05-2020;334;0;612;1;Spese correnti;4;Trasferimenti correnti;1;Trasferimenti correnti a Amministrazioni Pubbliche;4;Trasferimenti correnti a organismi interni e/o unità locali della amministrazione;1;Trasferimenti correnti a organismi interni e/o unità locali della amministrazione;20-05-2020;
593;1;0;"102,29";"102,29";OMESSO NOMINATIVO NEL RISPETTO DELLA NORMATIVA SULLA PROTEZIONE DATI PERSONALI; ;FATTURA SERVIZIO ELETTRICO NAZIONALE BIMESTRE: APRILE - MAGGIO 2020.;21-05-2020;576;0;140;1;Spese correnti;4;Trasferimenti correnti;2;Trasferimenti correnti a Famiglie;2;Interventi assistenziali;999;Altri assegni e sussidi assistenziali;21-05-2020;
594;1;0;"85,66";"85,66";OMESSO NOMINATIVO NEL RISPETTO DELLA NORMATIVA SULLA PROTEZIONE DATI PERSONALI; ;SALDO FATT. N. 157/B DEL 30/04/2020 CASA DI RIPOSO AITA.;22-05-2020;576;0;90;1;Spese correnti;4;Trasferimenti correnti;2;Trasferimenti correnti a Famiglie;2;Interventi assistenziali;999;Altri assegni e sussidi assistenziali;22-05-2020;
595;1;0;"275,02";"275,02";OMESSO NOMINATIVO NEL RISPETTO DELLA NORMATIVA SULLA PROTEZIONE DATI PERSONALI; ;FATTURA CASA DI RIPOSO AITA N. 160/B DEL 30/04/2020.;22-05-2020;576;0;501;1;Spese correnti;4;Trasferimenti correnti;2;Trasferimenti correnti a Famiglie;2;Interventi assistenziali;999;Altri assegni e sussidi assistenziali;22-05-2020;
596;1;0;"20,70";"842,03";MAXI DI SRL; ;SALDO Fatt.n. D38520999000089  del 29/04/2020 ACQUISTO BENI PER EMERGENZA ALIMENTARE;22-05-2020;563;0;126;1;Spese correnti;3;Acquisto di beni e servizi;1;Acquisto di beni;2;Altri beni di consumo;11;Generi alimentari;22-05-2020;
596;2;0;"56,75";"842,03";MAXI DI SRL; ;SALDO Fatt.n. D38520999000085  del 29/04/2020 ACQUISTO  BENI PER EMERGENZA ALIMENTARE;22-05-2020;563;0;126;1;Spese correnti;3;Acquisto di beni e servizi;1;Acquisto di beni;2;Altri beni di consumo;11;Generi alimentari;22-05-2020;
596;3;0;"67,17";"842,03";MAXI DI SRL; ;SALDO Fatt.n. D38520999000092  del 30/04/2020 ACQUISTO BENI PER EMERGENZA ALIMENTARE;22-05-2020;563;0;126;1;Spese correnti;3;Acquisto di beni e servizi;1;Acquisto di beni;2;Altri beni di consumo;11;Generi alimentari;22-05-2020;
596;4;0;"80,37";"842,03";MAXI DI SRL; ;SALDO Fatt.n. D38520999000096  del 04/05/2020 ACQUISTO BENI PER EMERGENZA ALIMENTARE;22-05-2020;563;0;126;1;Spese correnti;3;Acquisto di beni e servizi;1;Acquisto di beni;2;Altri beni di consumo;11;Generi alimentari;22-05-2020;
596;5;0;"91,91";"842,03";MAXI DI SRL; ;SALDO Fatt.n. D38520999000095  del 04/05/2020 ACQUISTO BENI PER EMERGENZA ALIMENTARE;22-05-2020;563;0;126;1;Spese correnti;3;Acquisto di beni e servizi;1;Acquisto di beni;2;Altri beni di consumo;11;Generi alimentari;22-05-2020;
596;6;0;"93,32";"842,03";MAXI DI SRL; ;SALDO Fatt.n. D38520999000082  del 29/04/2020 ACQUISTO BENI PER EMERGENZA ALIMENTARE;22-05-2020;563;0;126;1;Spese correnti;3;Acquisto di beni e servizi;1;Acquisto di beni;2;Altri beni di consumo;11;Generi alimentari;22-05-2020;
596;7;0;"96,61";"842,03";MAXI DI SRL; ;SALDO Fatt.n. D38520999000094  del 30/04/2020 ACQUISTO BENI PER EMERGENZA ALIMENTARE;22-05-2020;563;0;126;1;Spese correnti;3;Acquisto di beni e servizi;1;Acquisto di beni;2;Altri beni di consumo;11;Generi alimentari;22-05-2020;
596;8;0;"105,32";"842,03";MAXI DI SRL; ;SALDO Fatt.n. D38520999000086  del 29/04/2020 ACQUISTO BENI PER EMERGENZA ALIMENTARE;22-05-2020;563;0;126;1;Spese correnti;3;Acquisto di beni e servizi;1;Acquisto di beni;2;Altri beni di consumo;11;Generi alimentari;22-05-2020;
596;9;0;"110,05";"842,03";MAXI DI SRL; ;SALDO Fatt.n. D38520999000084  del 29/04/2020 ACQUISTO BENI PER EMERGENZA ALIMENTARE;22-05-2020;563;0;126;1;Spese correnti;3;Acquisto di beni e servizi;1;Acquisto di beni;2;Altri beni di consumo;11;Generi alimentari;22-05-2020;
596;10;0;"119,83";"842,03";MAXI DI SRL; ;SALDO Fatt.n. D38520999000083  del 29/04/2020 ACQUISTO BENI PER EMERGENZA ALIMENTARE;22-05-2020;563;0;126;1;Spese correnti;3;Acquisto di beni e servizi;1;Acquisto di beni;2;Altri beni di consumo;11;Generi alimentari;22-05-2020;
597;1;0;"8,72";"749,68";MAXI DI SRL; ;SALDO Fatt.n. D38520999000103  del 06/05/2020 ACQUISTO BENI PER EMERGENZA ALIMENTARE;22-05-2020;563;0;126;1;Spese correnti;3;Acquisto di beni e servizi;1;Acquisto di beni;2;Altri beni di consumo;11;Generi alimentari;22-05-2020;
597;2;0;"31,59";"749,68";MAXI DI SRL; ;SALDO Fatt.n. D38520999000102  del 06/05/2020 ACQUISTO BENI PER EMERGENZA ALIMENTARE;22-05-2020;563;0;126;1;Spese correnti;3;Acquisto di beni e servizi;1;Acquisto di beni;2;Altri beni di consumo;11;Generi alimentari;22-05-2020;
597;3;0;"36,71";"749,68";MAXI DI SRL; ;SALDO Fatt.n. D38520999000106  del 07/05/2020 ACQUISTO BENI PER EMERGENZA ALIMENTARE;22-05-2020;563;0;126;1;Spese correnti;3;Acquisto di beni e servizi;1;Acquisto di beni;2;Altri beni di consumo;11;Generi alimentari;22-05-2020;
597;4;0;"43,90";"749,68";MAXI DI SRL; ;SALDO Fatt.n. D38520999000105  del 06/05/2020 ACQUISTO BENI PER EMERGENZA ALIMENTARE;22-05-2020;563;0;126;1;Spese correnti;3;Acquisto di beni e servizi;1;Acquisto di beni;2;Altri beni di consumo;11;Generi alimentari;22-05-2020;
597;5;0;"88,87";"749,68";MAXI DI SRL; ;SALDO Fatt.n. D38520999000100  del 05/05/2020 ACQUISTO BENI PER EMERGENZA ALIMENTARE;22-05-2020;563;0;126;1;Spese correnti;3;Acquisto di beni e servizi;1;Acquisto di beni;2;Altri beni di consumo;11;Generi alimentari;22-05-2020;
597;6;0;"93,31";"749,68";MAXI DI SRL; ;SALDO Fatt.n. D38520999000101  del 05/05/2020 ACQUISTO BENI PER EMERGENZA ALIMENTARE;22-05-2020;563;0;126;1;Spese correnti;3;Acquisto di beni e servizi;1;Acquisto di beni;2;Altri beni di consumo;11;Generi alimentari;22-05-2020;
597;7;0;"93,79";"749,68";MAXI DI SRL; ;SALDO Fatt.n. D38520999000098  del 05/05/2020 ACQUISTO BENI PER EMERGENZA ALIMENTARE;22-05-2020;563;0;126;1;Spese correnti;3;Acquisto di beni e servizi;1;Acquisto di beni;2;Altri beni di consumo;11;Generi alimentari;22-05-2020;
597;8;0;"96,25";"749,68";MAXI DI SRL; ;SALDO Fatt.n. D38520999000104  del 06/05/2020 ACQUISTO BENI PER EMERGENZA ALIMENTARE;22-05-2020;563;0;126;1;Spese correnti;3;Acquisto di beni e servizi;1;Acquisto di beni;2;Altri beni di consumo;11;Generi alimentari;22-05-2020;
597;9;0;"101,70";"749,68";MAXI DI SRL; ;SALDO Fatt.n. D38520999000099  del 05/05/2020 ACQUISTO BENI PER EMERGENZA ALIMENTARE;22-05-2020;563;0;126;1;Spese correnti;3;Acquisto di beni e servizi;1;Acquisto di beni;2;Altri beni di consumo;11;Generi alimentari;22-05-2020;
597;10;0;"154,84";"749,68";MAXI DI SRL; ;SALDO Fatt.n. D38520999000097  del 04/05/2020 ACQUISTO BENI PER EMERGENZA ALIMENTARE;22-05-2020;563;0;126;1;Spese correnti;3;Acquisto di beni e servizi;1;Acquisto di beni;2;Altri beni di consumo;11;Generi alimentari;22-05-2020;
600;1;0;"29,01";"415,78";MAXI DI SRL; ;SALDO Fatt.n. D38520999000113  del 11/05/2020 ACQUISTO BENI PER EMERGENZA ALIMENTARE;22-05-2020;563;0;126;1;Spese correnti;3;Acquisto di beni e servizi;1;Acquisto di beni;2;Altri beni di consumo;11;Generi alimentari;22-05-2020;
600;2;0;"30,02";"415,78";MAXI DI SRL; ;SALDO Fatt.n. D38520999000112  del 11/05/2020 ACQUISTO BENI PER EMERGENZA ALIMENTARE;22-05-2020;563;0;126;1;Spese correnti;3;Acquisto di beni e servizi;1;Acquisto di beni;2;Altri beni di consumo;11;Generi alimentari;22-05-2020;
600;3;0;"35,63";"415,78";MAXI DI SRL; ;SALDO Fatt.n. D38520999000116  del 12/05/2020 ACQUISTO BENI PER EMERGENZA ALIMENTARE;22-05-2020;563;0;126;1;Spese correnti;3;Acquisto di beni e servizi;1;Acquisto di beni;2;Altri beni di consumo;11;Generi alimentari;22-05-2020;
600;4;0;"40,38";"415,78";MAXI DI SRL; ;SALDO Fatt.n. D38520999000109  del 08/05/2020 ACQUISTO BENI PER EMERGENZA ALIMENTARE;22-05-2020;563;0;126;1;Spese correnti;3;Acquisto di beni e servizi;1;Acquisto di beni;2;Altri beni di consumo;11;Generi alimentari;22-05-2020;
600;5;0;"50,23";"415,78";MAXI DI SRL; ;SALDO Fatt.n. D38520999000110  del 08/05/2020 ACQUISTO BENI PER EMERGENZA SANITARIA;22-05-2020;563;0;126;1;Spese correnti;3;Acquisto di beni e servizi;1;Acquisto di beni;2;Altri beni di consumo;11;Generi alimentari;22-05-2020;
600;6;0;"61,01";"415,78";MAXI DI SRL; ;SALDO Fatt.n. D38520999000108  del 08/05/2020 ACQUISTO BENI PER EMERGENZA SANITARIA;22-05-2020;563;0;126;1;Spese correnti;3;Acquisto di beni e servizi;1;Acquisto di beni;2;Altri beni di consumo;11;Generi alimentari;22-05-2020;
600;7;0;"67,49";"415,78";MAXI DI SRL; ;SALDO Fatt.n. D38520999000114  del 11/05/2020 ACQUISTO BENI PER EMERGENZA ALIMENTARE;22-05-2020;563;0;126;1;Spese correnti;3;Acquisto di beni e servizi;1;Acquisto di beni;2;Altri beni di consumo;11;Generi alimentari;22-05-2020;
600;8;0;"102,01";"415,78";MAXI DI SRL; ;SALDO Fatt.n. D38520999000117  del 12/05/2020 ACQUISTO BENI PER EMERGENZA ALIMENTARE;22-05-2020;563;0;126;1;Spese correnti;3;Acquisto di beni e servizi;1;Acquisto di beni;2;Altri beni di consumo;11;Generi alimentari;22-05-2020;
601;1;0;"268,00";"268,00";AZIENDA U.L.S.S. N.2  MARCA TREVIGIANA; ;IMPEGNO DI SPESA PER LE PRESTAZIONI EFFETTUATE DAL SERVIZIO VETERINARIO DELLAZIENDA U.L.S.S. N. 2 MARCA TREVIGIANA PRESSO IL CANILE SANITARIO.;22-05-2020;180;0;172;1;Spese correnti;3;Acquisto di beni e servizi;2;Acquisto di servizi;15;Contratti di servizio pubblico;11;Contratti di servizio per la lotta al randagismo;22-05-2020;
602;1;0;"600,00";"600,00";COMANDO PROVINCIALE VIGILI DEL FUOCO-SERV.PREV.INCENDI; ;IMPEGNO DI SPESA E LIQUIDAZIONE ONERI DI ISTRUTTORIA AL DIPARTIMENTO VIGILI DEL FUOCO PER VALUTAZIONE PROGETTO DEI LAVORI PER LISTITUZIONE DEL MUSEO DIDATTICO MULTIMEDIALE DELLANTICA PIEVE - CUP: C41B17000650006.;22-05-2020;313;1;170;1;Spese correnti;3;Acquisto di beni e servizi;2;Acquisto di servizi;9;Manutenzione ordinaria e riparazioni;9;"Manutenzione ordinaria e riparazioni di beni immobili di valore culturale, storico ed artistico";22-05-2020;
603;1;0;"1.217,80";"1.217,80";MINISTERO INFRASTR.-TESORER. PROV.LE DELLO STATO - ROMA;Z742CFCD30;LIQUIDAZIONE SPESA PER LA RIATTIVAZIONE DEL COLLEGAMENTO AL CED DELLA MOTORIZZAZIONE CIVILE  FORMULA ABBONAMENTO ANNO 2020  CIG: Z742CFCD30;25-05-2020;178;3;158;1;Spese correnti;3;Acquisto di beni e servizi;2;Acquisto di servizi;5;Utenze e canoni;3;Accesso a banche dati e a pubblicazioni on line;25-05-2020;
604;1;0;"4,06";"1.808,34";SERVIZIO ELETTRICO NAZIONALE SpA;7134285639;SALDO Fatt.n. 263553405085026  del 05/05/2020 ENERGIA ELETTRICA - MAGGIO 2020;26-05-2020;600;0;342;1;Spese correnti;3;Acquisto di beni e servizi;2;Acquisto di servizi;5;Utenze e canoni;4;Energia elettrica;26-05-2020;
604;2;0;"38,65";"1.808,34";SERVIZIO ELETTRICO NAZIONALE SpA;7134285639;SALDO Fatt.n. 263556202001026  del 05/05/2020 ENERGIA ELETTRICA-MAGGIO 2020;26-05-2020;600;0;342;1;Spese correnti;3;Acquisto di beni e servizi;2;Acquisto di servizi;5;Utenze e canoni;4;Energia elettrica;26-05-2020;
604;3;0;"52,08";"1.808,34";SERVIZIO ELETTRICO NAZIONALE SpA;7134285639;SALDO Fatt.n. 263552355001026  del 05/05/2020 ENERGIA ELETTRICA-MAGGIO 2020;26-05-2020;600;0;342;1;Spese correnti;3;Acquisto di beni e servizi;2;Acquisto di servizi;5;Utenze e canoni;4;Energia elettrica;26-05-2020;
604;4;0;"65,26";"1.808,34";SERVIZIO ELETTRICO NAZIONALE SpA;7134285639;SALDO Fatt.n. 263555226006526  del 05/05/2020 ENERGIA ELETTRICA - MAGGIO 2020;26-05-2020;600;0;342;1;Spese correnti;3;Acquisto di beni e servizi;2;Acquisto di servizi;5;Utenze e canoni;4;Energia elettrica;26-05-2020;
604;5;0;"105,29";"1.808,34";SERVIZIO ELETTRICO NAZIONALE SpA;7134285639;SALDO Fatt.n. 263553075001826  del 05/05/2020 ENERGIA ELETTRICA - MAGGIO 2020;26-05-2020;600;0;342;1;Spese correnti;3;Acquisto di beni e servizi;2;Acquisto di servizi;5;Utenze e canoni;4;Energia elettrica;26-05-2020;
604;6;0;"119,97";"1.808,34";SERVIZIO ELETTRICO NAZIONALE SpA;7134285639;SALDO Fatt.n. 263554605018526  del 05/05/2020 ENERGIA ELETTRICA-MAGGIO 2020;26-05-2020;600;0;342;1;Spese correnti;3;Acquisto di beni e servizi;2;Acquisto di servizi;5;Utenze e canoni;4;Energia elettrica;26-05-2020;
604;7;0;"226,86";"1.808,34";SERVIZIO ELETTRICO NAZIONALE SpA;7134285639;SALDO Fatt.n. 263557405021026  del 05/05/2020 ENERGIA ELETTRICA-MAGGIO 2020;26-05-2020;600;0;342;1;Spese correnti;3;Acquisto di beni e servizi;2;Acquisto di servizi;5;Utenze e canoni;4;Energia elettrica;26-05-2020;
604;8;0;"246,87";"1.808,34";SERVIZIO ELETTRICO NAZIONALE SpA;7134285639;SALDO Fatt.n. 263552205014426  del 05/05/2020 ENERGIA ELETTRICA-MAGGIO 2020;26-05-2020;600;0;342;1;Spese correnti;3;Acquisto di beni e servizi;2;Acquisto di servizi;5;Utenze e canoni;4;Energia elettrica;26-05-2020;
604;9;0;"463,43";"1.808,34";SERVIZIO ELETTRICO NAZIONALE SpA;7134285639;SALDO Fatt.n. 263552955069526  del 05/05/2020 ENERGIA ELETTRICA - MAGGIO 2020;26-05-2020;600;0;342;1;Spese correnti;3;Acquisto di beni e servizi;2;Acquisto di servizi;5;Utenze e canoni;4;Energia elettrica;26-05-2020;
604;10;0;"485,87";"1.808,34";SERVIZIO ELETTRICO NAZIONALE SpA;7134285639;SALDO Fatt.n. 263553056001026  del 05/05/2020 ENERGIA ELETTRICA-MAGGIO 2020;26-05-2020;600;0;342;1;Spese correnti;3;Acquisto di beni e servizi;2;Acquisto di servizi;5;Utenze e canoni;4;Energia elettrica;26-05-2020;
605;1;0;"9,80";"629,23";SERVIZIO ELETTRICO NAZIONALE SpA;7134285639;SALDO Fatt.n. 263554005004016  del 05/05/2020 ENERGIA ELETTRICA-MAGGIO 2020;26-05-2020;600;0;342;1;Spese correnti;3;Acquisto di beni e servizi;2;Acquisto di servizi;5;Utenze e canoni;4;Energia elettrica;26-05-2020;
605;2;0;"54,23";"629,23";SERVIZIO ELETTRICO NAZIONALE SpA;7134285639;SALDO Fatt.n. 263554455040026  del 05/05/2020 ENERGIA ELETTRICA: MAGGIO 2020;26-05-2020;600;0;342;1;Spese correnti;3;Acquisto di beni e servizi;2;Acquisto di servizi;5;Utenze e canoni;4;Energia elettrica;26-05-2020;
605;3;0;"215,34";"629,23";SERVIZIO ELETTRICO NAZIONALE SpA;7134285639;SALDO Fatt.n. 263552505054226  del 05/05/2020 ENERGIA ELETTRICA-MAGGIO 2020;26-05-2020;600;0;342;1;Spese correnti;3;Acquisto di beni e servizi;2;Acquisto di servizi;5;Utenze e canoni;4;Energia elettrica;26-05-2020;
605;4;0;"349,86";"629,23";SERVIZIO ELETTRICO NAZIONALE SpA;7134285639;SALDO Fatt.n. 263557855000726  del 05/05/2020 ENERGIA ELETTRICA-MAGGIO 2020;26-05-2020;600;0;342;1;Spese correnti;3;Acquisto di beni e servizi;2;Acquisto di servizi;5;Utenze e canoni;4;Energia elettrica;26-05-2020;
606;1;0;"1.209,00";"1.209,00";ASSOCIAZIONE VOLONTARIATO A.V.A.B.; ;"CONTRIBUTO ECONOMICO A FAVORE DELLASSOCIAZIONE INTERPARROCCHIALE VOLONTARI ASSISTENZA AMMALATI BISOGNOSI (A.V.A.B.), PER IL RINNOVO DEL PREMIO ASSICURATIVO - POLIZZE INFORTUNI E KASKO DEI VOLONTARI. PERIODO DAL 07.02.2020 AL 07.02.2021.";27-05-2020;574;0;174;1;Spese correnti;4;Trasferimenti correnti;1;Trasferimenti correnti a Amministrazioni Pubbliche;4;Trasferimenti correnti a organismi interni e/o unità locali della amministrazione;1;Trasferimenti correnti a organismi interni e/o unità locali della amministrazione;27-05-2020;
607;1;0;"295,47";"295,47";SERVIZIO ELETTRICO NAZIONALE SpA;7134285639;SALDO Fatt.n. 263556202002923  del 05/05/2020 ENERGIA ELETTRICA-MAGGIO 2020;28-05-2020;34;0;333;1;Spese correnti;3;Acquisto di beni e servizi;2;Acquisto di servizi;5;Utenze e canoni;4;Energia elettrica;28-05-2020;
608;1;0;"42,46";"42,46";SERVIZIO ELETTRICO NAZIONALE SpA;7134285639;SALDO Fatt.n. 263558005001246  del 05/05/2020 ENERGIA ELETTRICA - MAGGIO 2020;28-05-2020;561;2;341;1;Spese correnti;3;Acquisto di beni e servizi;2;Acquisto di servizi;5;Utenze e canoni;4;Energia elettrica;28-05-2020;
609;1;0;"115,80";"115,80";SERVIZIO ELETTRICO NAZIONALE SpA;7134285639;SALDO Fatt.n. 263556805005523  del 05/05/2020 ENERGIA ELETTRICA: MAGGIO 2020;28-05-2020;310;0;338;1;Spese correnti;3;Acquisto di beni e servizi;2;Acquisto di servizi;5;Utenze e canoni;4;Energia elettrica;28-05-2020;
610;1;0;"120,99";"322,24";SERVIZIO ELETTRICO NAZIONALE SpA;7134285639;SALDO Fatt.n. 263558703001123  del 05/05/2020 ENERGIA ELETTRICA-MAGGIO 2020;28-05-2020;530;0;340;1;Spese correnti;3;Acquisto di beni e servizi;2;Acquisto di servizi;5;Utenze e canoni;4;Energia elettrica;28-05-2020;
610;2;0;"201,25";"322,24";SERVIZIO ELETTRICO NAZIONALE SpA;7134285639;SALDO Fatt.n. 263557855000533  del 05/05/2020 ENERGIA ELETTRICA-MAGGIO 2020;28-05-2020;530;0;340;1;Spese correnti;3;Acquisto di beni e servizi;2;Acquisto di servizi;5;Utenze e canoni;4;Energia elettrica;28-05-2020;
611;1;0;"151,91";"151,91";SERVIZIO ELETTRICO NAZIONALE SpA;7134285639;SALDO Fatt.n. 263555226004537  del 08/05/2020 ENERGIA ELETTRICA - CIMITERO;28-05-2020;413;0;337;1;Spese correnti;3;Acquisto di beni e servizi;2;Acquisto di servizi;5;Utenze e canoni;4;Energia elettrica;28-05-2020;
612;1;0;"17,48";"2.798,71";SERVIZIO ELETTRICO NAZIONALE SpA;7134285639;SALDO Fatt.n. 263556405046127  del 05/05/2020 ENERGIA ELETTRICA-MAGGIO 2020;29-05-2020;252;0;336;1;Spese correnti;3;Acquisto di beni e servizi;2;Acquisto di servizi;5;Utenze e canoni;4;Energia elettrica;29-05-2020;
612;2;0;"50,48";"2.798,71";SERVIZIO ELETTRICO NAZIONALE SpA;7134285639;SALDO Fatt.n. 263553705034526  del 05/05/2020 ENERGIA ELETTRICA-MAGGIO 2020;29-05-2020;252;0;336;1;Spese correnti;3;Acquisto di beni e servizi;2;Acquisto di servizi;5;Utenze e canoni;4;Energia elettrica;29-05-2020;
612;3;0;"51,44";"2.798,71";SERVIZIO ELETTRICO NAZIONALE SpA;7134285639;SALDO Fatt.n. 263556405000516  del 05/05/2020 ENERGIA ELETTRICA-MAGGIO 2020;29-05-2020;252;0;336;1;Spese correnti;3;Acquisto di beni e servizi;2;Acquisto di servizi;5;Utenze e canoni;4;Energia elettrica;29-05-2020;
612;4;0;"79,82";"2.798,71";SERVIZIO ELETTRICO NAZIONALE SpA;7134285639;SALDO Fatt.n. 263552655019126  del 05/05/2020 ENERGIA ELETTRICA-MAGGIO 2020;29-05-2020;252;0;336;1;Spese correnti;3;Acquisto di beni e servizi;2;Acquisto di servizi;5;Utenze e canoni;4;Energia elettrica;29-05-2020;
612;5;0;"128,04";"2.798,71";SERVIZIO ELETTRICO NAZIONALE SpA;7134285639;SALDO Fatt.n. 263551755011426  del 05/05/2020 ENERGIA ELETTRICA-MAGGIO 2020;29-05-2020;252;0;336;1;Spese correnti;3;Acquisto di beni e servizi;2;Acquisto di servizi;5;Utenze e canoni;4;Energia elettrica;29-05-2020;
612;6;0;"147,19";"2.798,71";SERVIZIO ELETTRICO NAZIONALE SpA;7134285639;SALDO Fatt.n. 263558205009526  del 05/05/2020 ENERGIA ELETTRICA-MAGGIO 2020;29-05-2020;252;0;336;1;Spese correnti;3;Acquisto di beni e servizi;2;Acquisto di servizi;5;Utenze e canoni;4;Energia elettrica;29-05-2020;
612;7;0;"180,33";"2.798,71";SERVIZIO ELETTRICO NAZIONALE SpA;7134285639;SALDO Fatt.n. 263556423052026  del 05/05/2020 ENERGIA ELETTRICA-MAGGIO 2020;29-05-2020;252;0;336;1;Spese correnti;3;Acquisto di beni e servizi;2;Acquisto di servizi;5;Utenze e canoni;4;Energia elettrica;29-05-2020;
612;8;0;"309,98";"2.798,71";SERVIZIO ELETTRICO NAZIONALE SpA;7134285639;SALDO Fatt.n. 263554306019026  del 05/05/2020 ENERGIA ELETTRICA-MAGGIO 2020;29-05-2020;252;0;336;1;Spese correnti;3;Acquisto di beni e servizi;2;Acquisto di servizi;5;Utenze e canoni;4;Energia elettrica;29-05-2020;
612;9;0;"313,06";"2.798,71";SERVIZIO ELETTRICO NAZIONALE SpA;7134285639;SALDO Fatt.n. 263551603001526  del 05/05/2020 ENERGIA ELETTRICA-MAGGIO 2020;29-05-2020;252;0;336;1;Spese correnti;3;Acquisto di beni e servizi;2;Acquisto di servizi;5;Utenze e canoni;4;Energia elettrica;29-05-2020;
612;10;0;"1.520,89";"2.798,71";SERVIZIO ELETTRICO NAZIONALE SpA;7134285639;SALDO Fatt.n. 263554753017526  del 05/05/2020 ENERGIA ELETTRICA- MAGGIO 2020;29-05-2020;252;0;336;1;Spese correnti;3;Acquisto di beni e servizi;2;Acquisto di servizi;5;Utenze e canoni;4;Energia elettrica;29-05-2020;
613;1;0;"16,59";"4.553,62";SERVIZIO ELETTRICO NAZIONALE SpA;7134285639;SALDO Fatt.n. 263553255013526  del 05/05/2020 ENERGIA ELETTRICA-MAGGIO 2020;29-05-2020;252;0;336;1;Spese correnti;3;Acquisto di beni e servizi;2;Acquisto di servizi;5;Utenze e canoni;4;Energia elettrica;29-05-2020;
613;2;0;"84,35";"4.553,62";SERVIZIO ELETTRICO NAZIONALE SpA;7134285639;SALDO Fatt.n. 263558706024526  del 08/05/2020 ENERGIA ELETTRICA-MAGGIO 2020;29-05-2020;252;0;336;1;Spese correnti;3;Acquisto di beni e servizi;2;Acquisto di servizi;5;Utenze e canoni;4;Energia elettrica;29-05-2020;
613;3;0;"161,88";"4.553,62";SERVIZIO ELETTRICO NAZIONALE SpA;7134285639;SALDO Fatt.n. 263555806046326  del 05/05/2020 ENERGIA ELETTRICA-MAGGIO 2020;29-05-2020;252;0;336;1;Spese correnti;3;Acquisto di beni e servizi;2;Acquisto di servizi;5;Utenze e canoni;4;Energia elettrica;29-05-2020;
613;4;0;"424,32";"4.553,62";SERVIZIO ELETTRICO NAZIONALE SpA;7134285639;SALDO Fatt.n. 263552103001026  del 08/05/2020 ENERGIA ELETTRICA-MAGGIO 2020;29-05-2020;252;0;336;1;Spese correnti;3;Acquisto di beni e servizi;2;Acquisto di servizi;5;Utenze e canoni;4;Energia elettrica;29-05-2020;
613;5;0;"567,61";"4.553,62";SERVIZIO ELETTRICO NAZIONALE SpA;7134285639;SALDO Fatt.n. 263555802001026  del 05/05/2020 ENERGIA ELETTRICA- MAGGIO 2020;29-05-2020;252;0;336;1;Spese correnti;3;Acquisto di beni e servizi;2;Acquisto di servizi;5;Utenze e canoni;4;Energia elettrica;29-05-2020;
613;6;0;"569,36";"4.553,62";SERVIZIO ELETTRICO NAZIONALE SpA;7134285639;SALDO Fatt.n. 263552823001126  del 05/05/2020 ENERGIA ELETTRICA-MAGGIO 2020;29-05-2020;252;0;336;1;Spese correnti;3;Acquisto di beni e servizi;2;Acquisto di servizi;5;Utenze e canoni;4;Energia elettrica;29-05-2020;
613;7;0;"734,92";"4.553,62";SERVIZIO ELETTRICO NAZIONALE SpA;7134285639;SALDO Fatt.n. 263553556070026  del 05/05/2020 ENERGIA ELETTRICA-MAGGIO 2020;29-05-2020;252;0;336;1;Spese correnti;3;Acquisto di beni e servizi;2;Acquisto di servizi;5;Utenze e canoni;4;Energia elettrica;29-05-2020;
613;8;0;"923,82";"4.553,62";SERVIZIO ELETTRICO NAZIONALE SpA;7134285639;SALDO Fatt.n. 263557205052026  del 05/05/2020 ENERGIA ELETTRICA-MAGGIO 2020;29-05-2020;252;0;336;1;Spese correnti;3;Acquisto di beni e servizi;2;Acquisto di servizi;5;Utenze e canoni;4;Energia elettrica;29-05-2020;
613;9;0;"1.070,77";"4.553,62";SERVIZIO ELETTRICO NAZIONALE SpA;7134285639;SALDO Fatt.n. 263554153015526  del 05/05/2020 ENERGIA ELETTRICA-MAGGIO 2020;29-05-2020;252;0;336;1;Spese correnti;3;Acquisto di beni e servizi;2;Acquisto di servizi;5;Utenze e canoni;4;Energia elettrica;29-05-2020;
614;1;0;"129,64";"129,64";SERVIZIO ELETTRICO NAZIONALE SpA;7134285639;SALDO Fatt.n. 263558703010016  del 08/05/2020 ENERGIA ELETTRICA-MAGGIO 2020;29-05-2020;71;0;334;1;Spese correnti;3;Acquisto di beni e servizi;2;Acquisto di servizi;5;Utenze e canoni;4;Energia elettrica;29-05-2020;
615;1;0;"33,05";"2.658,56";SERVIZIO ELETTRICO NAZIONALE SpA;7134285639;SALDO Fatt.n. 263551155002023  del 05/05/2020 ENERGIA ELETTRICA-MAGGIO 2020;29-05-2020;235;0;335;1;Spese correnti;3;Acquisto di beni e servizi;2;Acquisto di servizi;5;Utenze e canoni;4;Energia elettrica;29-05-2020;
615;2;0;"115,79";"2.658,56";SERVIZIO ELETTRICO NAZIONALE SpA;7134285639;SALDO Fatt.n. 263555804069046  del 05/05/2020 ENERGIA ELETTRICA-MAGGIO 2020;29-05-2020;235;0;335;1;Spese correnti;3;Acquisto di beni e servizi;2;Acquisto di servizi;5;Utenze e canoni;4;Energia elettrica;29-05-2020;
615;3;0;"169,82";"2.658,56";SERVIZIO ELETTRICO NAZIONALE SpA;7134285639;SALDO Fatt.n. 263552205013414  del 26/05/2020 ENERGIA ELETTRICA-MAGGIO 2020;29-05-2020;235;0;335;1;Spese correnti;3;Acquisto di beni e servizi;2;Acquisto di servizi;5;Utenze e canoni;4;Energia elettrica;29-05-2020;
615;4;0;"295,47";"2.658,56";SERVIZIO ELETTRICO NAZIONALE SpA;7134285639;SALDO Fatt.n. 26355220501341A  del 26/05/2020 ENERGIA ELETTRICA-MAGGIO 2020;29-05-2020;235;0;335;1;Spese correnti;3;Acquisto di beni e servizi;2;Acquisto di servizi;5;Utenze e canoni;4;Energia elettrica;29-05-2020;
615;5;0;"383,53";"2.658,56";SERVIZIO ELETTRICO NAZIONALE SpA;7134285639;SALDO Fatt.n. 263554302002023  del 05/05/2020 ENERGIA ELETTRICA-MAGGIO 2020;29-05-2020;235;0;335;1;Spese correnti;3;Acquisto di beni e servizi;2;Acquisto di servizi;5;Utenze e canoni;4;Energia elettrica;29-05-2020;
615;6;0;"1.660,90";"2.658,56";SERVIZIO ELETTRICO NAZIONALE SpA;7134285639;SALDO Fatt.n. 263554355002022  del 18/05/2020 ENERGIA ELETTRICA-MAGGIO 2020;29-05-2020;235;0;335;1;Spese correnti;3;Acquisto di beni e servizi;2;Acquisto di servizi;5;Utenze e canoni;4;Energia elettrica;29-05-2020;
616;1;0;"43,31";"1.200,09";SERVIZIO ELETTRICO NAZIONALE SpA;7134285639;SALDO Fatt.n. 263553356000526  del 05/05/2020 ENERGIA ELETTRICA - MAGGIO 2020;29-05-2020;252;0;336;1;Spese correnti;3;Acquisto di beni e servizi;2;Acquisto di servizi;5;Utenze e canoni;4;Energia elettrica;29-05-2020;
616;2;0;"109,90";"1.200,09";SERVIZIO ELETTRICO NAZIONALE SpA;7134285639;SALDO Fatt.n. 263555505042026  del 05/05/2020 ENERGIA ELETTRICA-MAGGIO 2020;29-05-2020;252;0;336;1;Spese correnti;3;Acquisto di beni e servizi;2;Acquisto di servizi;5;Utenze e canoni;4;Energia elettrica;29-05-2020;
616;3;0;"110,03";"1.200,09";SERVIZIO ELETTRICO NAZIONALE SpA;7134285639;SALDO Fatt.n. 263558505000216  del 08/05/2020 ENERGIA ELETTRICA - MAGGIO 2020;29-05-2020;252;0;336;1;Spese correnti;3;Acquisto di beni e servizi;2;Acquisto di servizi;5;Utenze e canoni;4;Energia elettrica;29-05-2020;
616;4;0;"16,38";"1.200,09";SERVIZIO ELETTRICO NAZIONALE SpA;7134285639;SALDO Fatt.n. 263552355071026  del 15/05/2020 ENERGIA ELETTRICA-MAGGIO 2020;29-05-2020;252;0;336;1;Spese correnti;3;Acquisto di beni e servizi;2;Acquisto di servizi;5;Utenze e canoni;4;Energia elettrica;29-05-2020;
616;5;0;"16,38";"1.200,09";SERVIZIO ELETTRICO NAZIONALE SpA;7134285639;SALDO Fatt.n. 263552355070026  del 15/05/2020 ENERGIA ELETTRICA-MAGGIO 2020;29-05-2020;252;0;336;1;Spese correnti;3;Acquisto di beni e servizi;2;Acquisto di servizi;5;Utenze e canoni;4;Energia elettrica;29-05-2020;
616;6;0;"33,25";"1.200,09";SERVIZIO ELETTRICO NAZIONALE SpA;7134285639;SALDO Fatt.n. 263552955086026  del 15/05/2020 ENERGIA ELETTRICA-MAGGIO 2020;29-05-2020;252;0;336;1;Spese correnti;3;Acquisto di beni e servizi;2;Acquisto di servizi;5;Utenze e canoni;4;Energia elettrica;29-05-2020;
616;7;0;"40,20";"1.200,09";SERVIZIO ELETTRICO NAZIONALE SpA;7134285639;SALDO Fatt.n. 263558005001026  del 15/05/2020 SERVIZIO ELETTRICO - MAGGIO 2020;29-05-2020;252;0;336;1;Spese correnti;3;Acquisto di beni e servizi;2;Acquisto di servizi;5;Utenze e canoni;4;Energia elettrica;29-05-2020;
616;8;0;"49,78";"1.200,09";SERVIZIO ELETTRICO NAZIONALE SpA;7134285639;SALDO Fatt.n. 263551302001026  del 15/05/2020 ENERGIA ELETTRICA - MAGGIO 2020;29-05-2020;252;0;336;1;Spese correnti;3;Acquisto di beni e servizi;2;Acquisto di servizi;5;Utenze e canoni;4;Energia elettrica;29-05-2020;
616;9;0;"108,46";"1.200,09";SERVIZIO ELETTRICO NAZIONALE SpA;7134285639;SALDO Fatt.n. 263555005016525  del 18/05/2020 ENERGIA ELETTRICA-MAGGIO 2020;29-05-2020;252;0;336;1;Spese correnti;3;Acquisto di beni e servizi;2;Acquisto di servizi;5;Utenze e canoni;4;Energia elettrica;29-05-2020;
616;10;0;"112,19";"1.200,09";SERVIZIO ELETTRICO NAZIONALE SpA;7134285639;SALDO Fatt.n. 263553105005026  del 18/05/2020 ENERGIA ELETTRICA-MAGGIO 2020;29-05-2020;252;0;336;1;Spese correnti;3;Acquisto di beni e servizi;2;Acquisto di servizi;5;Utenze e canoni;4;Energia elettrica;29-05-2020;
616;11;0;"132,69";"1.200,09";SERVIZIO ELETTRICO NAZIONALE SpA;7134285639;SALDO Fatt.n. 263557855013526  del 05/05/2020 ENERGIA ELETTRICA-MAGGIO 2020;29-05-2020;252;0;336;1;Spese correnti;3;Acquisto di beni e servizi;2;Acquisto di servizi;5;Utenze e canoni;4;Energia elettrica;29-05-2020;
616;12;0;"427,52";"1.200,09";SERVIZIO ELETTRICO NAZIONALE SpA;7134285639;SALDO Fatt.n. 263556206005826  del 15/05/2020 ENERGIA ELETTRICA-MAGGIO 2020;29-05-2020;252;0;336;1;Spese correnti;3;Acquisto di beni e servizi;2;Acquisto di servizi;5;Utenze e canoni;4;Energia elettrica;29-05-2020;
648;1;0;"5.961,21";"5.961,21";AMMINISTRATORI COMUNALI; ;STIPENDI MESE DI: GIUGNO 20;05-06-2020;2;0;1;1;Spese correnti;3;Acquisto di beni e servizi;2;Acquisto di servizi;1;Organi e incarichi istituzionali dell'amministrazione;1;Organi istituzionali dell'amministrazione - Indennità;05-06-2020;
651;1;0;"200,00";"200,00";SONDA COOPERATIVA SOCIALE ONLUS; ;SALDO Fatt.n. 126/PA/2020  del 30/04/2020 CONTRIBUTI PER CASI SOCIO-ASSISTENZIALI;05-06-2020;576;0;84;1;Spese correnti;4;Trasferimenti correnti;2;Trasferimenti correnti a Famiglie;2;Interventi assistenziali;999;Altri assegni e sussidi assistenziali;05-06-2020;
652;1;0;"1.781,82";"1.781,82";UNICOOPER SERVIZI S.C.R.L.;ZDB2BDF192;SALDO Fatt.n. 682  del 30/04/2020 SERVIZIO PULIZIE UFF. COMUNALI -APRILE 2020;05-06-2020;34;2;45;1;Spese correnti;3;Acquisto di beni e servizi;2;Acquisto di servizi;13;Servizi ausiliari per il funzionamento dell'ente;2;Servizi di pulizia e lavanderia;05-06-2020;
653;1;0;"1.620,00";"1.620,00";CASA DI RIPOSO 'AITA'; ;SALDO Fatt.n. 178/B  del 11/05/2020 RETTE PER ANZIANI - MAGGIO 2020;05-06-2020;560;0;55;1;Spese correnti;3;Acquisto di beni e servizi;2;Acquisto di servizi;15;Contratti di servizio pubblico;8;Contratti di servizio di assistenza sociale residenziale e semiresidenziale;05-06-2020;
654;1;0;"1.950,00";"1.950,00";OPERE PIE D'ONIGO; ;SALDO Fatt.n. 157/2  del 12/05/2020 RETTE PER ANZIANI - MAGGIO 2020;05-06-2020;560;0;113;1;Spese correnti;3;Acquisto di beni e servizi;2;Acquisto di servizi;15;Contratti di servizio pubblico;8;Contratti di servizio di assistenza sociale residenziale e semiresidenziale;05-06-2020;
655;1;0;"1.276,12";"1.276,12";NUVOLAPOINT DI FLAJS ALESSANDRO;Z3D2CF566F;SALDO Fatt.n. 242/PA  del 14/05/2020 ACQUISTO DI DUE PERSONAL COMPUTER PER UFF. COMUNALI;05-06-2020;746;0;148;2;Spese in conto capitale;2;Investimenti fissi lordi e acquisto di terreni;1;Beni materiali;7;Hardware;999;Hardware n.a.c.;05-06-2020;
656;1;0;"385,52";"385,52";MAZZAROLO S.R.L.;ZF42CE7344;SALDO Fatt.n. 2020_3_9  del 07/05/2020 MANUTENZIONE AUTOMEZZI COMUNALI;05-06-2020;590;1;144;1;Spese correnti;3;Acquisto di beni e servizi;2;Acquisto di servizi;9;Manutenzione ordinaria e riparazioni;1;"Manutenzione ordinaria e riparazioni di mezzi di trasporto ad uso civile, di sicurezza e ordine pubblico";05-06-2020;
657;1;0;"181,35";"181,35";CERVINO S.R.L.;ZB92CD9C54;SALDO Fatt.n. 3/28  del 27/05/2020 INCARICO PER VERIFICA MESSA A TERRA IMP. ELETTRICO CASTELLARO;05-06-2020;313;1;143;1;Spese correnti;3;Acquisto di beni e servizi;2;Acquisto di servizi;9;Manutenzione ordinaria e riparazioni;4;Manutenzione ordinaria e riparazioni di impianti e macchinari;05-06-2020;
658;1;0;"186,20";"186,20";POSTE ITALIANE SPA - PROVENTI POLO LOGISTICO;ZC42B68711;SALDO Fatt.n. 1020139767  del 27/05/2020 PRODOTTI POSTALI - MAGGIO 2020;05-06-2020;34;3;633;1;Spese correnti;3;Acquisto di beni e servizi;2;Acquisto di servizi;16;Servizi amministrativi;2;Spese postali;05-06-2020;
659;1;0;"278,06";"278,06";MyO S.P.A.;Z012B67AB5;SALDO Fatt.n. 2040/200012246  del 27/05/2020 ACQUISTO CANCELLERIA;05-06-2020;37;0;635;1;Spese correnti;3;Acquisto di beni e servizi;1;Acquisto di beni;2;Altri beni di consumo;1;"Carta, cancelleria e stampati";05-06-2020;
660;1;0;"29,04";"276,59";MAXI DI SRL; ;SALDO Fatt.n. D38520999000121  del 28/05/2020 ACQUISTO BENI PER EMERGENZA ALIMENTARE;05-06-2020;563;0;126;1;Spese correnti;3;Acquisto di beni e servizi;1;Acquisto di beni;2;Altri beni di consumo;11;Generi alimentari;05-06-2020;
660;2;0;"51,75";"276,59";MAXI DI SRL; ;SALDO Fatt.n. D38520999000122  del 29/05/2020 ACQUISTO BENI PER EMERGENZA ALIMENTARE;05-06-2020;563;0;126;1;Spese correnti;3;Acquisto di beni e servizi;1;Acquisto di beni;2;Altri beni di consumo;11;Generi alimentari;05-06-2020;
660;3;0;"81,97";"276,59";MAXI DI SRL; ;SALDO Fatt.n. D38520999000120  del 25/05/2020 ACQUISTO BENI PER EMERGENZA ALIMENTARE;05-06-2020;563;0;126;1;Spese correnti;3;Acquisto di beni e servizi;1;Acquisto di beni;2;Altri beni di consumo;11;Generi alimentari;05-06-2020;
660;4;0;"113,83";"276,59";MAXI DI SRL; ;SALDO Fatt.n. D38520999000123  del 29/05/2020 ACQUISTO BENI PER EMERGENZA ALIMENTARE;05-06-2020;563;0;126;1;Spese correnti;3;Acquisto di beni e servizi;1;Acquisto di beni;2;Altri beni di consumo;11;Generi alimentari;05-06-2020;
661;1;0;"520,00";"520,00";SARTOR ROBERTO;Z892A62272;SALDO Fatt.n. FATTPA 8_20  del 29/05/2020 SPESE PER IL PATI;08-06-2020;881;1;506;2;Spese in conto capitale;2;Investimenti fissi lordi e acquisto di terreni;3;Beni immateriali;5;Incarichi professionali per la realizzazione di investimenti;1;Incarichi professionali per la realizzazione di investimenti;08-06-2020;
662;1;0;"17,20";"1.197,17";Farmacie Piu' SAS - Carinatese;ZC52D15894;SALDO Fatt.n. 17/PA  del 29/05/2020 ACQUISTO BENI PER EMERGENZA COVID;08-06-2020;563;0;125;1;Spese correnti;3;Acquisto di beni e servizi;1;Acquisto di beni;2;Altri beni di consumo;11;Generi alimentari;08-06-2020;
662;2;0;"520,94";"1.197,17";Farmacie Piu' SAS - Carinatese;ZC52D15894;SALDO Fatt.n. 16/PA  del 29/05/2020 ACQUISTO BENI PER EMERGENZA COVID;08-06-2020;563;0;125;1;Spese correnti;3;Acquisto di beni e servizi;1;Acquisto di beni;2;Altri beni di consumo;11;Generi alimentari;08-06-2020;
662;3;0;"659,03";"1.197,17";Farmacie Piu' SAS - Carinatese;ZC52D15894;SALDO Fatt.n. 18/PA  del 29/05/2020 ACQUISTO BENI PER EMERGENZA COVID;08-06-2020;563;0;125;1;Spese correnti;3;Acquisto di beni e servizi;1;Acquisto di beni;2;Altri beni di consumo;11;Generi alimentari;08-06-2020;
663;1;0;"291,91";"291,91";KYOCERA DOCUMENT SOLUTIONS ITALIA S.P.A.;ZF02648E30;ACCONTO Fatt.n. 1010613751  del 25/05/2020 COSTI NOLEGGIO FOTOPIATORI;08-06-2020;252;0;520;1;Spese correnti;3;Acquisto di beni e servizi;2;Acquisto di servizi;5;Utenze e canoni;999;Utenze e canoni per altri servizi n.a.c.;08-06-2020;
664;1;0;"1.062,55";"1.062,55";KYOCERA DOCUMENT SOLUTIONS ITALIA S.P.A.;ZF02648E30;SALDO Fatt.n. 1010613751  del 25/05/2020 COSTI NOLEGGIO FOTOPIATORI;08-06-2020;34;0;519;1;Spese correnti;3;Acquisto di beni e servizi;2;Acquisto di servizi;5;Utenze e canoni;999;Utenze e canoni per altri servizi n.a.c.;08-06-2020;
665;1;0;"320,24";"320,24";SICURITALIA IVRI S.P.A.;Z3827208DE;ACCONTO Fatt.n. 9117005299  del 04/05/2020 SERVIZI DI PRONTO INTERVENTO - MAGGIO 2020;08-06-2020;313;2;94;1;Spese correnti;3;Acquisto di beni e servizi;2;Acquisto di servizi;5;Utenze e canoni;999;Utenze e canoni per altri servizi n.a.c.;08-06-2020;
666;1;0;"247,06";"247,06";SICURITALIA IVRI S.P.A.;Z3827208DE;SALDO Fatt.n. 9117005299  del 04/05/2020 SERVIZI DI PRONTO INTERVENTO - MAGGIO 2020;08-06-2020;252;0;91;1;Spese correnti;3;Acquisto di beni e servizi;2;Acquisto di servizi;5;Utenze e canoni;999;Utenze e canoni per altri servizi n.a.c.;08-06-2020;
667;1;0;"450,00";"450,00";INFOTEAM SRL;ZD92A1EDE2;ACCONTO Fatt.n. 00000001177  del 13/05/2020 SERVIZI INFORMATICI;08-06-2020;313;2;488;1;Spese correnti;3;Acquisto di beni e servizi;2;Acquisto di servizi;5;Utenze e canoni;999;Utenze e canoni per altri servizi n.a.c.;08-06-2020;
668;1;0;"450,00";"450,00";INFOTEAM SRL;ZD92A1EDE2;ACCONTO Fatt.n. 00000001177  del 13/05/2020 SERVIZI INFORMATICI;08-06-2020;235;0;487;1;Spese correnti;3;Acquisto di beni e servizi;2;Acquisto di servizi;5;Utenze e canoni;999;Utenze e canoni per altri servizi n.a.c.;08-06-2020;
669;1;0;"1.000,00";"1.000,00";INFOTEAM SRL;ZD92A1EDE2;SALDO Fatt.n. 00000001177  del 13/05/2020 SERVIZI INFORMATICI;08-06-2020;34;0;486;1;Spese correnti;3;Acquisto di beni e servizi;2;Acquisto di servizi;5;Utenze e canoni;999;Utenze e canoni per altri servizi n.a.c.;08-06-2020;
670;1;0;"34,95";"34,95";FERRONATO S.R.L.;Z7C26AD935;SALDO Fatt.n. P2  del 30/04/2020 FORNITURA MATERIALI;08-06-2020;532;0;669;1;Spese correnti;3;Acquisto di beni e servizi;2;Acquisto di servizi;9;Manutenzione ordinaria e riparazioni;11;Manutenzione ordinaria e riparazioni di altri beni materiali;08-06-2020;
671;1;0;"1.245,66";"1.245,66";BIM PIAVE NUOVE ENERGIE S.R.L.; ;SALDO Fatt.n. 9001085  del 14/05/2020 Anno termico 2019/2020: marzo-aprile Villa Rubelli;08-06-2020;310;0;117;1;Spese correnti;3;Acquisto di beni e servizi;2;Acquisto di servizi;5;Utenze e canoni;6;Gas;08-06-2020;
672;1;0;"464,82";"3.752,71";BIM PIAVE NUOVE ENERGIE S.R.L.; ;SALDO Fatt.n. 9001082  del 14/05/2020 Anno termico 2019/2020 - Impianti comunali-Manutenzione;08-06-2020;34;0;116;1;Spese correnti;3;Acquisto di beni e servizi;2;Acquisto di servizi;5;Utenze e canoni;6;Gas;08-06-2020;
672;2;0;"3.287,89";"3.752,71";BIM PIAVE NUOVE ENERGIE S.R.L.; ;"SALDO Fatt.n. 9001083  del 14/05/2020 Anno termico 2019/2020 - Sede Municipale -marzo, aprile 2020";08-06-2020;34;0;116;1;Spese correnti;3;Acquisto di beni e servizi;2;Acquisto di servizi;5;Utenze e canoni;6;Gas;08-06-2020;
673;1;0;"217,10";"1.473,69";BIM PIAVE NUOVE ENERGIE S.R.L.; ;"SALDO Fatt.n. 9001084  del 14/05/2020 Anno termico 2019/2020 -Ex Scuola Primaria Sopracastello-marzo, aprile 2020";08-06-2020;561;2;118;1;Spese correnti;3;Acquisto di beni e servizi;2;Acquisto di servizi;5;Utenze e canoni;6;Gas;08-06-2020;
673;2;0;"1.256,59";"1.473,69";BIM PIAVE NUOVE ENERGIE S.R.L.; ;"SALDO Fatt.n. 9001086  del 14/05/2020 Anno termico 2019/2020 - Polivalente ""La Roggia""-marzo, aprile 2020";08-06-2020;561;2;118;1;Spese correnti;3;Acquisto di beni e servizi;2;Acquisto di servizi;5;Utenze e canoni;6;Gas;08-06-2020;
674;1;0;"1.754,30";"1.754,30";BIM PIAVE NUOVE ENERGIE S.R.L.; ;"SALDO Fatt.n. 9001090  del 14/05/2020 Anno termico 2019/2020 - Palestra CÃ  Rainati-marzo, aprile 2020";08-06-2020;530;0;120;1;Spese correnti;3;Acquisto di beni e servizi;2;Acquisto di servizi;5;Utenze e canoni;6;Gas;08-06-2020;
675;1;0;"2.564,25";"2.564,25";CASA DI RIPOSO 'AITA'; ;SALDO Fatt.n. 188/B  del 21/05/2020 SERVIZIO DI A.D. - MAGGIO 2020;08-06-2020;562;1;69;1;Spese correnti;3;Acquisto di beni e servizi;2;Acquisto di servizi;15;Contratti di servizio pubblico;9;Contratti di servizio di assistenza sociale domiciliare;08-06-2020;
676;1;0;"37.370,16";"37.370,16";COSTRUZIONI VIRAGO S.N.C.;7962522106;SALDO Fatt.n. 4/PA  del 10/06/2020 LAVORI DI EFFICIENTAMENTO ENERGETICO SCUOLE CA' RAINATI;15-06-2020;779;0;451;2;Spese in conto capitale;2;Investimenti fissi lordi e acquisto di terreni;1;Beni materiali;9;Beni immobili;3;Fabbricati ad uso scolastico;15-06-2020;
679;1;0;"3.050,00";"3.050,00";STUDIO CAVAGGIONI S.C.A.R.L.;Z5A2C384AE;SALDO Fatt.n. 111/FE/2020  del 27/05/2020 INCARICO PER SISTEMAZIONE STRADE E PIAZZE;16-06-2020;1010;0;82;2;Spese in conto capitale;2;Investimenti fissi lordi e acquisto di terreni;3;Beni immateriali;5;Incarichi professionali per la realizzazione di investimenti;1;Incarichi professionali per la realizzazione di investimenti;16-06-2020;
680;1;0;"-488,00";"488,00";CONNECTIS S.R. L.;ZEB2AF6042;SALDO Fatt.n. 107/10  del 08/06/2020 NOTA DI CREDITO;16-06-2020;341;0;556;1;Spese correnti;3;Acquisto di beni e servizi;2;Acquisto di servizi;19;Servizi informatici e di telecomunicazioni;2;Assistenza all'utente e formazione;16-06-2020;
680;2;0;"488,00";"488,00";CONNECTIS S.R. L.;ZEB2AF6042;SALDO Fatt.n. 92/10  del 12/05/2020 FATTURA ERRATA PER SPLIT PAYMENT;16-06-2020;341;0;556;1;Spese correnti;3;Acquisto di beni e servizi;2;Acquisto di servizi;19;Servizi informatici e di telecomunicazioni;2;Assistenza all'utente e formazione;16-06-2020;
680;3;0;"488,00";"488,00";CONNECTIS S.R. L.;ZEB2AF6042;SALDO Fatt.n. 108/10  del 08/06/2020 CANONE PER IMPOSTA DI SOGGIORNO ON LINE;16-06-2020;341;0;556;1;Spese correnti;3;Acquisto di beni e servizi;2;Acquisto di servizi;19;Servizi informatici e di telecomunicazioni;2;Assistenza all'utente e formazione;16-06-2020;
681;1;0;"44,82";"705,94";MAXI DI SRL; ;SALDO Fatt.n. D38520999000128  del 03/06/2020 ACQUISTO BENI PER EMERGENZA ALIMENTARE;16-06-2020;563;0;126;1;Spese correnti;3;Acquisto di beni e servizi;1;Acquisto di beni;2;Altri beni di consumo;11;Generi alimentari;16-06-2020;
681;2;0;"48,90";"705,94";MAXI DI SRL; ;SALDO Fatt.n. D38520999000127  del 03/06/2020 ACQUISTO BENI PER EMRGENZA ALIMENTARE;16-06-2020;563;0;126;1;Spese correnti;3;Acquisto di beni e servizi;1;Acquisto di beni;2;Altri beni di consumo;11;Generi alimentari;16-06-2020;
681;3;0;"58,67";"705,94";MAXI DI SRL; ;SALDO Fatt.n. D38520999000135  del 04/06/2020 ACQUISTO BENI PER EMERGENZA ALIMENTARE;16-06-2020;563;0;126;1;Spese correnti;3;Acquisto di beni e servizi;1;Acquisto di beni;2;Altri beni di consumo;11;Generi alimentari;16-06-2020;
681;4;0;"66,40";"705,94";MAXI DI SRL; ;SALDO Fatt.n. D38520999000125  del 01/06/2020 ACQUISTO BENI PER EMERGENZA ALIMENTARE;16-06-2020;563;0;126;1;Spese correnti;3;Acquisto di beni e servizi;1;Acquisto di beni;2;Altri beni di consumo;11;Generi alimentari;16-06-2020;
681;5;0;"70,03";"705,94";MAXI DI SRL; ;SALDO Fatt.n. D38520999000136  del 04/06/2020 ACQUISTO BENI PER EMERGENZA ALIMENTARE;16-06-2020;563;0;126;1;Spese correnti;3;Acquisto di beni e servizi;1;Acquisto di beni;2;Altri beni di consumo;11;Generi alimentari;16-06-2020;
681;6;0;"103,82";"705,94";MAXI DI SRL; ;SALDO Fatt.n. D38520999000129  del 03/06/2020 ACQUISTO BENI PER EMERGENZA ALIMENTARE;16-06-2020;563;0;126;1;Spese correnti;3;Acquisto di beni e servizi;1;Acquisto di beni;2;Altri beni di consumo;11;Generi alimentari;16-06-2020;
681;7;0;"123,90";"705,94";MAXI DI SRL; ;SALDO Fatt.n. D38520999000124  del 01/06/2020 ACQUISTO BENI PER EMERGENZA ALIMENTARE;16-06-2020;563;0;126;1;Spese correnti;3;Acquisto di beni e servizi;1;Acquisto di beni;2;Altri beni di consumo;11;Generi alimentari;16-06-2020;
681;8;0;"189,40";"705,94";MAXI DI SRL; ;SALDO Fatt.n. D38520999000126  del 03/06/2020 ACQUISTO BENI PER EMERGENZA ALIMENTARE;16-06-2020;563;0;126;1;Spese correnti;3;Acquisto di beni e servizi;1;Acquisto di beni;2;Altri beni di consumo;11;Generi alimentari;16-06-2020;
682;1;0;"314,15";"314,15";VERGATI S.R.L.;ZC02D09A00;SALDO Fatt.n. 711  del 26/05/2020 MANUTENZIONE ORDINARIA VILLA RUBELLI;16-06-2020;310;1;163;1;Spese correnti;3;Acquisto di beni e servizi;2;Acquisto di servizi;9;Manutenzione ordinaria e riparazioni;9;"Manutenzione ordinaria e riparazioni di beni immobili di valore culturale, storico ed artistico";16-06-2020;
683;1;0;"1.041,60";"1.041,60";KIRIKU' SOCIETA' COOPERATIVA SOCIALE ONLUS;ZFA2BFBEE7;SALDO Fatt.n. 339  del 31/05/2020 PRESTAZIONI PER SERVIZI SOCIALI;16-06-2020;559;0;56;1;Spese correnti;3;Acquisto di beni e servizi;2;Acquisto di servizi;99;Altri servizi;999;Altri servizi diversi n.a.c.;16-06-2020;
684;1;0;"28,06";"28,06";SICURITALIA IVRI S.P.A.;Z3827208DE;SALDO Fatt.n. 9117006044  del 31/05/2020 UTENZE E CANONI UFF. COMUNALI-MAGGIO 2020;16-06-2020;561;2;90;1;Spese correnti;3;Acquisto di beni e servizi;2;Acquisto di servizi;5;Utenze e canoni;999;Utenze e canoni per altri servizi n.a.c.;16-06-2020;
685;1;0;"226,59";"226,59";BELLNET INTERNATIONAL S.R.L.;Z752BFBD5F;SALDO Fatt.n. FATTPA 1180_20  del 31/05/2020 TRAFFICO TELEFONICO - MAGGIO 2020;16-06-2020;34;0;58;1;Spese correnti;3;Acquisto di beni e servizi;2;Acquisto di servizi;5;Utenze e canoni;1;Telefonia fissa;16-06-2020;
686;1;0;"2.015,00";"2.015,00";OPERE PIE D'ONIGO; ;SALDO Fatt.n. 183/2  del 04/06/2020 RETTE IN STRUTTURE PER ANZIANI;16-06-2020;560;0;113;1;Spese correnti;3;Acquisto di beni e servizi;2;Acquisto di servizi;15;Contratti di servizio pubblico;8;Contratti di servizio di assistenza sociale residenziale e semiresidenziale;16-06-2020;
687;1;0;"2.299,33";"2.299,33";MOBILI TONIOLO S.A.S. DI TONIOLO MAURO & C.;ZDF2B4F096;SALDO Fatt.n. 29  del 05/06/2020 RIPARAZIONE GIOSTRINE PARCHI PUBBLICI;16-06-2020;888;0;129;2;Spese in conto capitale;2;Investimenti fissi lordi e acquisto di terreni;1;Beni materiali;9;Beni immobili;16;Impianti sportivi;16-06-2020;
688;1;0;"200,00";"200,00";SONDA COOPERATIVA SOCIALE ONLUS; ;SALDO Fatt.n. 162/PA/2020  del 30/05/2020 RETTE PER PRESTAZIONI SOCIALI - MAGGIO 2020;16-06-2020;576;0;84;1;Spese correnti;4;Trasferimenti correnti;2;Trasferimenti correnti a Famiglie;2;Interventi assistenziali;999;Altri assegni e sussidi assistenziali;16-06-2020;
689;1;0;"19,14";"19,14";FERRONATO S.R.L.;Z7C26AD935;SALDO Fatt.n. P3  del 31/05/2020 ACQUISTO FERRAMENTA;16-06-2020;591;0;670;1;Spese correnti;3;Acquisto di beni e servizi;1;Acquisto di beni;2;Altri beni di consumo;999;Altri beni e materiali di consumo n.a.c.;16-06-2020;
690;1;0;"62,00";"62,00";KUWAIT PETROLEUM ITALIA S.P.A.;Z5B2CB3D93;SALDO Fatt.n. PJ02596829  del 31/05/2020 CARBURANTE AUTO UFF. SOCIALE - MAGGIO 2020;16-06-2020;571;0;110;1;Spese correnti;3;Acquisto di beni e servizi;1;Acquisto di beni;2;Altri beni di consumo;2;"Carburanti, combustibili e lubrificanti";16-06-2020;
691;1;0;"81,25";"276,73";KUWAIT PETROLEUM ITALIA S.P.A.;Z5B2CB3D93;SALDO Fatt.n. PJ02596828  del 31/05/2020 CARBURANTE AUTO VIABILITA' - MAGGIO 2020;16-06-2020;590;0;111;1;Spese correnti;3;Acquisto di beni e servizi;1;Acquisto di beni;2;Altri beni di consumo;2;"Carburanti, combustibili e lubrificanti";16-06-2020;
691;2;0;"195,48";"276,73";KUWAIT PETROLEUM ITALIA S.P.A.;Z5B2CB3D93;SALDO Fatt.n. PJ02596827  del 31/05/2020 CARBURANTE AUTO VIABILITA' - MAGGIO 2020;16-06-2020;590;0;111;1;Spese correnti;3;Acquisto di beni e servizi;1;Acquisto di beni;2;Altri beni di consumo;2;"Carburanti, combustibili e lubrificanti";16-06-2020;
692;1;0;"51,99";"51,99";KUWAIT PETROLEUM ITALIA S.P.A.;Z5B2CB3D93;SALDO Fatt.n. PJ02596830  del 31/05/2020 CARBURANTE AUTO VIGILI - MAGGIO 2020;16-06-2020;179;0;109;1;Spese correnti;3;Acquisto di beni e servizi;1;Acquisto di beni;2;Altri beni di consumo;2;"Carburanti, combustibili e lubrificanti";16-06-2020;
693;1;0;"253,00";"253,00";TECNO METAL S.R.L.;Z602C887C5;SALDO Fatt.n. 00004/R3  del 25/05/2020 FORNITURA E POSA IN OPERA DI MANIGLIONE ANTIPANICO PALESTRA;16-06-2020;235;1;95;1;Spese correnti;3;Acquisto di beni e servizi;2;Acquisto di servizi;9;Manutenzione ordinaria e riparazioni;3;Manutenzione ordinaria e riparazioni di mobili e arredi;16-06-2020;
694;1;0;"1.440,00";"1.440,00";N.O.I.  "NUOVI ORIZZONTI INFORMATICI" COOP.SOC.ONLUS;Z5F268727B;SALDO Fatt.n. 341  del 31/05/2020 GESTIONE BIBLIOTECA - MAGGIO 2020;16-06-2020;302;1;553;1;Spese correnti;3;Acquisto di beni e servizi;2;Acquisto di servizi;16;Servizi amministrativi;999;Altre spese per servizi amministrativi;16-06-2020;
695;1;0;"600,00";"15.900,00";AUTOSERRAIOTTO DI SERRAIOTTO FABIO;Z8E2D0EBA1;SALDO Fatt.n. 19/R  del 03/06/2020 SPESE PASSAGGIO PROPRIETA' PER ACQUISTO AUTOMEZZO NISSAN NAVARA;16-06-2020;1076;0;168;2;Spese in conto capitale;2;Investimenti fissi lordi e acquisto di terreni;1;Beni materiali;1;"Mezzi di trasporto ad uso civile, di sicurezza e ordine pubblico";1;Mezzi di trasporto stradali;16-06-2020;
695;2;0;"15.300,00";"15.900,00";AUTOSERRAIOTTO DI SERRAIOTTO FABIO;Z8E2D0EBA1;SALDO Fatt.n. 13/A  del 03/06/2020 ACQUISTO AUTOCARRO NISSAN NAVARA PER PROTEZIONE CIVILE;16-06-2020;1076;0;168;2;Spese in conto capitale;2;Investimenti fissi lordi e acquisto di terreni;1;Beni materiali;1;"Mezzi di trasporto ad uso civile, di sicurezza e ordine pubblico";1;Mezzi di trasporto stradali;16-06-2020;
696;1;0;"13.100,01";"13.100,01";FRATTIN AUTO SRL;Z602CEFDD2;SALDO Fatt.n. 202200001  del 03/06/2020 ACQUISTO FIAT TIPO PER UFFICI COMUNALI;16-06-2020;1078;0;157;2;Spese in conto capitale;2;Investimenti fissi lordi e acquisto di terreni;1;Beni materiali;1;"Mezzi di trasporto ad uso civile, di sicurezza e ordine pubblico";1;Mezzi di trasporto stradali;16-06-2020;
697;1;0;"1.395,68";"1.395,68";PATRON ALESSANDRO;Z862B5B920;SALDO Fatt.n. 19  del 25/05/2020 INCARICO PER MANUTENZIONE STRAORDINARIA SCUOLE;16-06-2020;745;0;35;2;Spese in conto capitale;2;Investimenti fissi lordi e acquisto di terreni;1;Beni materiali;9;Beni immobili;999;Beni immobili n.a.c.;16-06-2020;
698;1;0;"1.395,68";"1.395,68";PESCAROLLO ROBERTO;Z862B5B920;SALDO Fatt.n. 16/E  del 22/05/2020 INCARICO INTERVENTI DI MANUTENZIONE STRAORDINARI SCUOLE;16-06-2020;745;0;35;2;Spese in conto capitale;2;Investimenti fissi lordi e acquisto di terreni;1;Beni materiali;9;Beni immobili;999;Beni immobili n.a.c.;16-06-2020;
699;1;0;"234,72";"234,72";OMESSO NOMINATIVO NEL RISPETTO DELLA NORMATIVA SULLA PROTEZIONE DATI PERSONALI; ;CONTRIBUTO ECONOMICO STRAORDINARIO.;17-06-2020;576;0;183;1;Spese correnti;4;Trasferimenti correnti;2;Trasferimenti correnti a Famiglie;2;Interventi assistenziali;999;Altri assegni e sussidi assistenziali;17-06-2020;
700;1;0;"399,68";"399,68";OMESSO NOMINATIVO NEL RISPETTO DELLA NORMATIVA SULLA PROTEZIONE DATI PERSONALI; ;CONTRIBUTO ECONOMICO STRAORDINARIO.;17-06-2020;576;0;184;1;Spese correnti;4;Trasferimenti correnti;2;Trasferimenti correnti a Famiglie;2;Interventi assistenziali;999;Altri assegni e sussidi assistenziali;17-06-2020;
701;1;0;"250,00";"250,00";OMESSO NOMINATIVO NEL RISPETTO DELLA NORMATIVA SULLA PROTEZIONE DATI PERSONALI; ;CONTRIBUTO ECONOMICO STRAORDINARIO A SOSTEGNO DELLE FORNITURE DOMICILIARI.;17-06-2020;576;0;187;1;Spese correnti;4;Trasferimenti correnti;2;Trasferimenti correnti a Famiglie;2;Interventi assistenziali;999;Altri assegni e sussidi assistenziali;17-06-2020;
702;1;0;"4.700,00";"4.700,00";O.D.V. PROTEZIONE CIVILE DI SAN ZENONE DEGLI EZZELINI; ;LIQUIDAZIONE DEL TERZO ACCONTO DEL CONTRIBUTO ALLORGANIZZAZIONE DI VOLONTARIATO (O.D.V.) PROTEZIONE CIVILDE DI SAN ZENONE DEGLI EZZELINI - ANNO 2020.;17-06-2020;382;1;114;1;Spese correnti;4;Trasferimenti correnti;1;Trasferimenti correnti a Amministrazioni Pubbliche;4;Trasferimenti correnti a organismi interni e/o unità locali della amministrazione;1;Trasferimenti correnti a organismi interni e/o unità locali della amministrazione;17-06-2020;
703;1;0;"91,17";"91,17";ASCOTRADE S.P.A.;Z342D086E5;SALDO Fatt.n. 501960  del 22/04/2020 FORNITURA GAS - IMP. SPORTIVI;22-06-2020;71;0;171;1;Spese correnti;3;Acquisto di beni e servizi;2;Acquisto di servizi;5;Utenze e canoni;6;Gas;22-06-2020;
704;1;0;"3,66";"26,97";LA IDROFERRAMENTA SRL;Z192700D74;SALDO Fatt.n. 25/PA  del 31/03/2020 FORNITURA FERRAMENTA;22-06-2020;591;0;161;1;Spese correnti;3;Acquisto di beni e servizi;1;Acquisto di beni;2;Altri beni di consumo;999;Altri beni e materiali di consumo n.a.c.;22-06-2020;
704;2;0;"23,31";"26,97";LA IDROFERRAMENTA SRL;Z192700D74;SALDO Fatt.n. 32/PA  del 30/04/2020 FORNITURA FERRAMENTA;22-06-2020;591;0;161;1;Spese correnti;3;Acquisto di beni e servizi;1;Acquisto di beni;2;Altri beni di consumo;999;Altri beni e materiali di consumo n.a.c.;22-06-2020;
705;1;0;"58,56";"58,56";RED BOX SISTEMI S.R.L.;Z9D2D0780E;SALDO Fatt.n. 225  del 29/05/2020 SPESE INFORMATIZZAZIONE;22-06-2020;33;0;160;1;Spese correnti;3;Acquisto di beni e servizi;1;Acquisto di beni;2;Altri beni di consumo;6;Materiale informatico;22-06-2020;
706;1;0;"42,70";"42,70";RED BOX SISTEMI S.R.L.;Z032CFB693;SALDO Fatt.n. 220  del 29/05/2020 SPESE INFORMATIZZAZIONE;22-06-2020;33;0;156;1;Spese correnti;3;Acquisto di beni e servizi;1;Acquisto di beni;2;Altri beni di consumo;6;Materiale informatico;22-06-2020;
707;1;0;"171,09";"171,09";NOIGROUP Coop. Soc. a R.L.;ZDE2A28443;"SALDO Fatt.n. 340  del 31/05/2020 SERVIZIO DI APERTURA, CHIUSURA MUSEO A. PIEVE";22-06-2020;303;0;490;1;Spese correnti;3;Acquisto di beni e servizi;2;Acquisto di servizi;99;Altri servizi;999;Altri servizi diversi n.a.c.;22-06-2020;
708;1;0;"213,50";"213,50";CENTRO STUDI AMMINISTRATIVI DELLA M.T.;Z632CBDC9B;SALDO Fatt.n. 281/2020  del 08/06/2020 ESPLETAMENTO PRATICHE DI PENSIONE;22-06-2020;55;0;181;1;Spese correnti;3;Acquisto di beni e servizi;2;Acquisto di servizi;17;Servizi finanziari;1;Commissioni per servizi finanziari;22-06-2020;
709;1;0;"5.791,93";"5.791,93";C.S.M. ACCIAIO SRL;6867174B3F;SALDO Fatt.n. 81  del 11/06/2020 LAVORI DI RISTRUTTURAZIONE SCUOLE;22-06-2020;889;0;538;2;Spese in conto capitale;2;Investimenti fissi lordi e acquisto di terreni;1;Beni materiali;9;Beni immobili;16;Impianti sportivi;22-06-2020;
710;1;0;"1.712,40";"1.712,40";CASA DI RIPOSO 'AITA'; ;SALDO Fatt.n. 217/B  del 10/06/2020 RETTE PER ANZIANI - MAGGIO 2020;22-06-2020;560;0;55;1;Spese correnti;3;Acquisto di beni e servizi;2;Acquisto di servizi;15;Contratti di servizio pubblico;8;Contratti di servizio di assistenza sociale residenziale e semiresidenziale;22-06-2020;
711;1;0;"990,52";"990,52";TIPOGRAFIA BATTAGIN SRL;Z082D05D9F;SALDO Fatt.n. 5/P  del 31/05/2020 ACQUISTO PRODOTTI PER SANIFICAZIONE UFFICI COMUNALI;22-06-2020;37;0;159;1;Spese correnti;3;Acquisto di beni e servizi;1;Acquisto di beni;2;Altri beni di consumo;1;"Carta, cancelleria e stampati";22-06-2020;
712;1;0;"341,60";"341,60";UNICOOPER SERVIZI S.C.R.L.;ZDB2BDF192;SALDO Fatt.n. 847  del 31/05/2020 PULIZIE DI SANIFICAZIONE UFFICI COMUNALI DEL 15/05/2020;22-06-2020;34;2;45;1;Spese correnti;3;Acquisto di beni e servizi;2;Acquisto di servizi;13;Servizi ausiliari per il funzionamento dell'ente;2;Servizi di pulizia e lavanderia;22-06-2020;
713;1;0;"522,62";"522,62";AS.COM SERVIZI DEL MANDAMENTO S.R.L.; ;SALDO Fatt.n. 00024/02  del 12/06/2020 LOCAZIONE CENTRO PER L'IMPIEGO;22-06-2020;515;0;89;1;Spese correnti;4;Trasferimenti correnti;1;Trasferimenti correnti a Amministrazioni Pubbliche;2;Trasferimenti correnti a Amministrazioni Locali;999;Trasferimenti correnti a altre Amministrazioni Locali n.a.c.;22-06-2020;
714;1;0;"1.770,30";"1.770,30";UNA CASA PER L'UOMO - SOCIETA' COOPERATIVA SOCIALE;Z092CFD987;SALDO Fatt.n. FE/0000170  del 31/05/2020 RETTE PER PERSONE DISAGIATE - GENN-APRILE 2020;22-06-2020;559;0;155;1;Spese correnti;3;Acquisto di beni e servizi;2;Acquisto di servizi;99;Altri servizi;999;Altri servizi diversi n.a.c.;22-06-2020;
715;1;0;"73,16";"73,16";OMESSO NOMINATIVO NEL RISPETTO DELLA NORMATIVA SULLA PROTEZIONE DATI PERSONALI; ;FATTURA S.E.N. N. 263556805039014 DEL 09/06/2020 BIMESTRE MAGGIO-GIUGNO 2020.;24-06-2020;576;0;90;1;Spese correnti;4;Trasferimenti correnti;2;Trasferimenti correnti a Famiglie;2;Interventi assistenziali;999;Altri assegni e sussidi assistenziali;24-06-2020;
716;1;0;"1.000,00";"1.000,00";AUSER PROVINCIALE DI TREVISO -A.P.S.; ;PROGETTO "UNA RETE INTERGENERAZIONALE AMICA PER LE PERSONE ANZIANE FRAGILI E LE PERSONE DISABILI CHE DIVENTANO ANZIANE". COMPARTECIPAZIONE ECONOMICA DEI PARTNER DI PROGETTO.;24-06-2020;574;0;194;1;Spese correnti;4;Trasferimenti correnti;1;Trasferimenti correnti a Amministrazioni Pubbliche;4;Trasferimenti correnti a organismi interni e/o unità locali della amministrazione;1;Trasferimenti correnti a organismi interni e/o unità locali della amministrazione;24-06-2020;
717;1;0;"85,66";"85,66";OMESSO NOMINATIVO NEL RISPETTO DELLA NORMATIVA SULLA PROTEZIONE DATI PERSONALI; ;FATTURA CASA DI RIPOSO AITA N. 202/B DEL 31/05/2020.;24-06-2020;576;0;90;1;Spese correnti;4;Trasferimenti correnti;2;Trasferimenti correnti a Famiglie;2;Interventi assistenziali;999;Altri assegni e sussidi assistenziali;24-06-2020;
718;1;0;"253,98";"253,98";OMESSO NOMINATIVO NEL RISPETTO DELLA NORMATIVA SULLA PROTEZIONE DATI PERSONALI; ;FATTURA CASA DI RIPOSO AITA N. 205/B DEL 31/05/2020 - FORNITURA PASTI MESE DI MAGGIO 2020.;24-06-2020;576;0;501;1;Spese correnti;4;Trasferimenti correnti;2;Trasferimenti correnti a Famiglie;2;Interventi assistenziali;999;Altri assegni e sussidi assistenziali;24-06-2020;
720;1;0;"4.965,65";"4.965,65";ASSOCIAZIONE IL CICLAMINO; ;LIQUIDAZIONE QUOTA DEL 5 PER MILLE ESERCIZIO FINANZIARIO 2017 - ANNO DIMPOSTA 2016 .;25-06-2020;506;1;195;1;Spese correnti;4;Trasferimenti correnti;1;Trasferimenti correnti a Amministrazioni Pubbliche;4;Trasferimenti correnti a organismi interni e/o unità locali della amministrazione;1;Trasferimenti correnti a organismi interni e/o unità locali della amministrazione;25-06-2020;
721;1;0;"4.161,37";"4.161,37";ASSOCIAZIONE IL CICLAMINO; ;LIQUIDAZIONE QUOTA DEL 5 PER MILLE ESERCIZIO FINANZIARIO 2018 - ANNO DIMPOSTA 2017.;25-06-2020;506;1;196;1;Spese correnti;4;Trasferimenti correnti;1;Trasferimenti correnti a Amministrazioni Pubbliche;4;Trasferimenti correnti a organismi interni e/o unità locali della amministrazione;1;Trasferimenti correnti a organismi interni e/o unità locali della amministrazione;25-06-2020;
722;1;0;"27.000,00";"27.000,00";CABI BROKER DI ASSICURAZIONI S.R.L.;ZE52D22E1F;IMPEGNO DI SPESA E LIQUIDAZIONE DEI CONTRATTI ASSICURATIVI ANNO 2020 TRAMITE LO STUDIO DI INTERMEDIAZIONE ASSICURATIVA CABI - BROKER DI ASSICURAZIONI SRL - CIG : ZE52D22E1F.;25-06-2020;35;0;176;1;Spese correnti;10;Altre spese correnti;4;Premi di assicurazione;1;Premi di assicurazione contro i danni;999;Altri premi di assicurazione contro i danni;25-06-2020;
723;1;0;"110,00";"110,00";NERVO ANNA MARIA;Z792CD1B4E;SALDO Fatt.n. 6  del 12/05/2020 ACQUISTO CORONE DI ALLORO;26-06-2020;40;2;136;1;Spese correnti;3;Acquisto di beni e servizi;1;Acquisto di beni;2;Altri beni di consumo;9;Beni per attività di rappresentanza;26-06-2020;
724;1;0;"860,10";"860,10";TIPOGRAFIA BATTAGIN SRL;Z4A2AFE16D;ACCONTO Fatt.n. 4/P  del 31/05/2020 STAMPA CARTOLINE PER MUSEO MULTIMEDIALE;26-06-2020;305;0;639;1;Spese correnti;3;Acquisto di beni e servizi;2;Acquisto di servizi;16;Servizi amministrativi;999;Altre spese per servizi amministrativi;26-06-2020;
725;1;0;"1.683,60";"1.683,60";TIPOGRAFIA BATTAGIN SRL;Z4A2AFE16D;SALDO Fatt.n. 4/P  del 31/05/2020 STAMPA CARTOLINE PER MUSEO MULTIMEDIALE;26-06-2020;305;0;562;1;Spese correnti;3;Acquisto di beni e servizi;2;Acquisto di servizi;16;Servizi amministrativi;999;Altre spese per servizi amministrativi;26-06-2020;
726;1;0;"-3.720,42";"6.733,75";SUPERMERCATO FACCHIN DI FACCHIN A. & S.a.S.; ;SALDO Fatt.n. 112020  del 11/06/2020 NOTA DI CREDITO - ACQUISTO GENERI ALIMENTARI;26-06-2020;563;0;127;1;Spese correnti;3;Acquisto di beni e servizi;1;Acquisto di beni;2;Altri beni di consumo;11;Generi alimentari;26-06-2020;
726;2;0;"3.013,25";"6.733,75";SUPERMERCATO FACCHIN DI FACCHIN A. & S.a.S.; ;SALDO Fatt.n. FPA 15/20  del 15/06/2020 ACQUISTO BENI PER EMERGENZA ALIMENTARE;26-06-2020;563;0;127;1;Spese correnti;3;Acquisto di beni e servizi;1;Acquisto di beni;2;Altri beni di consumo;11;Generi alimentari;26-06-2020;
726;3;0;"3.720,42";"6.733,75";SUPERMERCATO FACCHIN DI FACCHIN A. & S.a.S.; ;SALDO Fatt.n. 102020  del 30/05/2020 FATTURA ERRATA - ACQUISTO GENERI ALIMENTARI;26-06-2020;563;0;127;1;Spese correnti;3;Acquisto di beni e servizi;1;Acquisto di beni;2;Altri beni di consumo;11;Generi alimentari;26-06-2020;
726;4;0;"3.720,50";"6.733,75";SUPERMERCATO FACCHIN DI FACCHIN A. & S.a.S.; ;SALDO Fatt.n. FPA 14/20  del 15/06/2020 ACQUISTO BENI PER MERGENZA ALIMENTARE;26-06-2020;563;0;127;1;Spese correnti;3;Acquisto di beni e servizi;1;Acquisto di beni;2;Altri beni di consumo;11;Generi alimentari;26-06-2020;
727;1;0;"43,77";"992,60";MAXI DI SRL; ;SALDO Fatt.n. D38520999000131  del 04/06/2020 ACQUISTO BENI PER EMERGENZA ALIMENTARE;26-06-2020;563;0;126;1;Spese correnti;3;Acquisto di beni e servizi;1;Acquisto di beni;2;Altri beni di consumo;11;Generi alimentari;26-06-2020;
727;2;0;"57,63";"992,60";MAXI DI SRL; ;SALDO Fatt.n. D38520999000141  del 05/06/2020 ACQUISTO BENI PER EMERGENZA ALIMENTARE;26-06-2020;563;0;126;1;Spese correnti;3;Acquisto di beni e servizi;1;Acquisto di beni;2;Altri beni di consumo;11;Generi alimentari;26-06-2020;
727;3;0;"81,66";"992,60";MAXI DI SRL; ;SALDO Fatt.n. D38520999000140  del 05/06/2020 ACQUISTO BENI PER EMERGENZA ALIMENTARE;26-06-2020;563;0;126;1;Spese correnti;3;Acquisto di beni e servizi;1;Acquisto di beni;2;Altri beni di consumo;11;Generi alimentari;26-06-2020;
727;4;0;"102,47";"992,60";MAXI DI SRL; ;SALDO Fatt.n. D38520999000142  del 05/06/2020 ACQUISTO BENI PER EMERGENZA ALIMENTARE;26-06-2020;563;0;126;1;Spese correnti;3;Acquisto di beni e servizi;1;Acquisto di beni;2;Altri beni di consumo;11;Generi alimentari;26-06-2020;
727;5;0;"109,68";"992,60";MAXI DI SRL; ;SALDO Fatt.n. D38520999000133  del 04/06/2020 ACQUISTO BENI PER EMERGENZA ALIMENTARE;26-06-2020;563;0;126;1;Spese correnti;3;Acquisto di beni e servizi;1;Acquisto di beni;2;Altri beni di consumo;11;Generi alimentari;26-06-2020;
727;6;0;"110,27";"992,60";MAXI DI SRL; ;SALDO Fatt.n. D38520999000132  del 04/06/2020 ACQUISTO BENI PER EMERGENZA ALIMENTARE;26-06-2020;563;0;126;1;Spese correnti;3;Acquisto di beni e servizi;1;Acquisto di beni;2;Altri beni di consumo;11;Generi alimentari;26-06-2020;
727;7;0;"147,53";"992,60";MAXI DI SRL; ;SALDO Fatt.n. D38520999000138  del 05/06/2020 ACQUISTO BENI PER EMERGENZA ALIMENTARE;26-06-2020;563;0;126;1;Spese correnti;3;Acquisto di beni e servizi;1;Acquisto di beni;2;Altri beni di consumo;11;Generi alimentari;26-06-2020;
727;8;0;"149,33";"992,60";MAXI DI SRL; ;SALDO Fatt.n. D38520999000145  del 08/06/2020 ACQUISTO BENI PER EMERGENZA ALIMENTARE;26-06-2020;563;0;126;1;Spese correnti;3;Acquisto di beni e servizi;1;Acquisto di beni;2;Altri beni di consumo;11;Generi alimentari;26-06-2020;
727;9;0;"190,26";"992,60";MAXI DI SRL; ;SALDO Fatt.n. D38520999000139  del 05/06/2020 ACQUISTO BENI PER EMERGENZA ALIMENTARE;26-06-2020;563;0;126;1;Spese correnti;3;Acquisto di beni e servizi;1;Acquisto di beni;2;Altri beni di consumo;11;Generi alimentari;26-06-2020;
728;1;0;"-1.830,00";"1.830,00";ORSO GIUSEPPE E LUCIANO S.N.C.;Z5F2C427CE;SALDO Fatt.n. 36  del 09/06/2020 NOTA DI CREDITO A STORNO FT 23 DEL 11/05/2020;26-06-2020;591;1;131;1;Spese correnti;3;Acquisto di beni e servizi;2;Acquisto di servizi;9;Manutenzione ordinaria e riparazioni;1;"Manutenzione ordinaria e riparazioni di mezzi di trasporto ad uso civile, di sicurezza e ordine pubblico";26-06-2020;
728;2;0;"1.830,00";"1.830,00";ORSO GIUSEPPE E LUCIANO S.N.C.;Z5F2C427CE;SALDO Fatt.n. 23  del 11/05/2020 FATTURA ERRATA - LAVORI DI MANUTENZIONE;26-06-2020;591;1;131;1;Spese correnti;3;Acquisto di beni e servizi;2;Acquisto di servizi;9;Manutenzione ordinaria e riparazioni;1;"Manutenzione ordinaria e riparazioni di mezzi di trasporto ad uso civile, di sicurezza e ordine pubblico";26-06-2020;
728;3;0;"1.830,00";"1.830,00";ORSO GIUSEPPE E LUCIANO S.N.C.;Z5F2C427CE;SALDO Fatt.n. 37  del 09/06/2020 LAVORI DI RIPARAZIONE;26-06-2020;591;1;131;1;Spese correnti;3;Acquisto di beni e servizi;2;Acquisto di servizi;9;Manutenzione ordinaria e riparazioni;1;"Manutenzione ordinaria e riparazioni di mezzi di trasporto ad uso civile, di sicurezza e ordine pubblico";26-06-2020;
729;1;0;"39,73";"517,70";MAXI DI SRL; ;SALDO Fatt.n. D38520999000147  del 09/06/2020 ACQUISTO BENI PER EMERGENZA ALIMENTARE;26-06-2020;563;0;126;1;Spese correnti;3;Acquisto di beni e servizi;1;Acquisto di beni;2;Altri beni di consumo;11;Generi alimentari;26-06-2020;
729;2;0;"46,97";"517,70";MAXI DI SRL; ;SALDO Fatt.n. D38520999000151  del 11/06/2020 ACQUISTO BENI PER EMERGENZA ALIMENTARE;26-06-2020;563;0;126;1;Spese correnti;3;Acquisto di beni e servizi;1;Acquisto di beni;2;Altri beni di consumo;11;Generi alimentari;26-06-2020;
729;3;0;"60,12";"517,70";MAXI DI SRL; ;SALDO Fatt.n. D38520999000146  del 09/06/2020 ACQUISTO BENI PER EMERGENZA ALIMENTARE;26-06-2020;563;0;126;1;Spese correnti;3;Acquisto di beni e servizi;1;Acquisto di beni;2;Altri beni di consumo;11;Generi alimentari;26-06-2020;
729;4;0;"60,39";"517,70";MAXI DI SRL; ;SALDO Fatt.n. D38520999000149  del 10/06/2020 ACQUISTO BENI PER EMERGENZA ALIMENTARE;26-06-2020;563;0;126;1;Spese correnti;3;Acquisto di beni e servizi;1;Acquisto di beni;2;Altri beni di consumo;11;Generi alimentari;26-06-2020;
729;5;0;"86,88";"517,70";MAXI DI SRL; ;SALDO Fatt.n. D38520999000148  del 10/06/2020 ACQUISTO BENI PER EMERGENZA ALIMENTARE;26-06-2020;563;0;126;1;Spese correnti;3;Acquisto di beni e servizi;1;Acquisto di beni;2;Altri beni di consumo;11;Generi alimentari;26-06-2020;
729;6;0;"87,86";"517,70";MAXI DI SRL; ;SALDO Fatt.n. D38520999000152  del 11/06/2020 ACQUISTO BENI PER EMERGENZA ALIMENTARE;26-06-2020;563;0;126;1;Spese correnti;3;Acquisto di beni e servizi;1;Acquisto di beni;2;Altri beni di consumo;11;Generi alimentari;26-06-2020;
729;7;0;"135,75";"517,70";MAXI DI SRL; ;SALDO Fatt.n. D38520999000150  del 10/06/2020 ACQUISTO BENI PER EMERGENZA ALIMENTARE;26-06-2020;563;0;126;1;Spese correnti;3;Acquisto di beni e servizi;1;Acquisto di beni;2;Altri beni di consumo;11;Generi alimentari;26-06-2020;
730;1;0;"72,96";"785,98";MAXI DI SRL; ;SALDO Fatt.n. D38520999000154  del 12/06/2020 ACQUISTO BENI PER EMERGENZA ALIMENTARE;26-06-2020;563;0;126;1;Spese correnti;3;Acquisto di beni e servizi;1;Acquisto di beni;2;Altri beni di consumo;11;Generi alimentari;26-06-2020;
730;2;0;"79,89";"785,98";MAXI DI SRL; ;SALDO Fatt.n. D38520999000160  del 17/06/2020 ACQUISTO BENI PER EMERGENZA ALIMENTARE;26-06-2020;563;0;126;1;Spese correnti;3;Acquisto di beni e servizi;1;Acquisto di beni;2;Altri beni di consumo;11;Generi alimentari;26-06-2020;
730;3;0;"83,40";"785,98";MAXI DI SRL; ;SALDO Fatt.n. D38520999000161  del 17/06/2020 ACQUISTO BENI PER EMERGENZA ALIMENTARE;26-06-2020;563;0;126;1;Spese correnti;3;Acquisto di beni e servizi;1;Acquisto di beni;2;Altri beni di consumo;11;Generi alimentari;26-06-2020;
730;4;0;"90,48";"785,98";MAXI DI SRL; ;SALDO Fatt.n. D38520999000162  del 18/06/2020 ACQUISTO BENI PER EMERGENZA ALIMENTARE;26-06-2020;563;0;126;1;Spese correnti;3;Acquisto di beni e servizi;1;Acquisto di beni;2;Altri beni di consumo;11;Generi alimentari;26-06-2020;
730;5;0;"93,76";"785,98";MAXI DI SRL; ;SALDO Fatt.n. D38520999000156  del 16/06/2020 ACQUISTO BENI PER EMERGENZA ALIMENTARE;26-06-2020;563;0;126;1;Spese correnti;3;Acquisto di beni e servizi;1;Acquisto di beni;2;Altri beni di consumo;11;Generi alimentari;26-06-2020;
730;6;0;"94,94";"785,98";MAXI DI SRL; ;SALDO Fatt.n. D38520999000157  del 16/06/2020 ACQUISTO BENI PER EMERGENZA ALIMENTARE;26-06-2020;563;0;126;1;Spese correnti;3;Acquisto di beni e servizi;1;Acquisto di beni;2;Altri beni di consumo;11;Generi alimentari;26-06-2020;
730;7;0;"102,79";"785,98";MAXI DI SRL; ;SALDO Fatt.n. D38520999000158  del 16/06/2020 ACQUISTO BENI PER EMERGENZA ALIMENTARE;26-06-2020;563;0;126;1;Spese correnti;3;Acquisto di beni e servizi;1;Acquisto di beni;2;Altri beni di consumo;11;Generi alimentari;26-06-2020;
730;8;0;"167,76";"785,98";MAXI DI SRL; ;SALDO Fatt.n. D38520999000155  del 15/06/2020 ACQUISTO BENI PER EMERGENZA ALIMENTARE;26-06-2020;563;0;126;1;Spese correnti;3;Acquisto di beni e servizi;1;Acquisto di beni;2;Altri beni di consumo;11;Generi alimentari;26-06-2020;
731;1;0;"4.758,21";"4.758,21";SUPERMERCATO F.LLI BORDIGNON S.N.C.; ;SALDO Fatt.n. 0000000003  del 31/05/2020 ACQUISTO BENI PER EMERGENZA ALIMENTARE;26-06-2020;563;0;128;1;Spese correnti;3;Acquisto di beni e servizi;1;Acquisto di beni;2;Altri beni di consumo;11;Generi alimentari;26-06-2020;
732;1;0;"48,22";"270,95";MAXI DI SRL; ;SALDO Fatt.n. D38520999000167  del 19/06/2020 ACQUISTO BENI PER EMERGENZA ALIMENTARE;26-06-2020;563;0;126;1;Spese correnti;3;Acquisto di beni e servizi;1;Acquisto di beni;2;Altri beni di consumo;11;Generi alimentari;26-06-2020;
732;2;0;"62,90";"270,95";MAXI DI SRL; ;SALDO Fatt.n. D38520999000115  del 12/05/2020 ACQUISTO BENI PER EMERGENZA ALIMENTARE;26-06-2020;563;0;126;1;Spese correnti;3;Acquisto di beni e servizi;1;Acquisto di beni;2;Altri beni di consumo;11;Generi alimentari;26-06-2020;
732;3;0;"73,60";"270,95";MAXI DI SRL; ;SALDO Fatt.n. D38520999000165  del 19/06/2020 ACQUISTO BENI PER EMERGENZA ALIMENTARE;26-06-2020;563;0;126;1;Spese correnti;3;Acquisto di beni e servizi;1;Acquisto di beni;2;Altri beni di consumo;11;Generi alimentari;26-06-2020;
732;4;0;"86,23";"270,95";MAXI DI SRL; ;SALDO Fatt.n. D38520999000166  del 19/06/2020 ACQUISTO BENI PER EMERGENZA ALIMENTARE;26-06-2020;563;0;126;1;Spese correnti;3;Acquisto di beni e servizi;1;Acquisto di beni;2;Altri beni di consumo;11;Generi alimentari;26-06-2020;
733;1;0;"-1.781,82";"1.781,82";UNICOOPER SERVIZI S.C.R.L.;ZDB2BDF192;SALDO Fatt.n. 995  del 19/06/2020 NOTA DI CREDITO A FRONTE FT N. 827 DEL 31/05/2020;26-06-2020;34;2;45;1;Spese correnti;3;Acquisto di beni e servizi;2;Acquisto di servizi;13;Servizi ausiliari per il funzionamento dell'ente;2;Servizi di pulizia e lavanderia;26-06-2020;
733;2;0;"1.781,82";"1.781,82";UNICOOPER SERVIZI S.C.R.L.;ZDB2BDF192;"SALDO Fatt.n. 996  del 19/06/2020 SPESE DI PULIZIA, SANIFICAZIONE E DISINFEZIONE STRAORDINARIA UFFICI COMUNALI X COVID";26-06-2020;34;2;45;1;Spese correnti;3;Acquisto di beni e servizi;2;Acquisto di servizi;13;Servizi ausiliari per il funzionamento dell'ente;2;Servizi di pulizia e lavanderia;26-06-2020;
733;3;0;"1.781,82";"1.781,82";UNICOOPER SERVIZI S.C.R.L.;ZDB2BDF192;SALDO Fatt.n. 827  del 31/05/2020 FATTURA ERRATA;26-06-2020;34;2;45;1;Spese correnti;3;Acquisto di beni e servizi;2;Acquisto di servizi;13;Servizi ausiliari per il funzionamento dell'ente;2;Servizi di pulizia e lavanderia;26-06-2020;
734;1;0;"213,45";"1.488,26";BIM PIAVE NUOVE ENERGIE S.R.L.; ;SALDO Fatt.n. 9001088  del 14/05/2020 Anno termico 2019/2020 - acqua calda 01/03/2020-30/04/2020 - Scuola Primaria Liedolo;26-06-2020;252;0;121;1;Spese correnti;3;Acquisto di beni e servizi;2;Acquisto di servizi;5;Utenze e canoni;6;Gas;26-06-2020;
734;2;0;"315,43";"1.488,26";BIM PIAVE NUOVE ENERGIE S.R.L.; ;SALDO Fatt.n. 9001089  del 14/05/2020 Anno termico 2019/2020 - acqua calda 01/03/2020-30/04/2020 - Scuola Primaria CÃ  Rainati;26-06-2020;252;0;121;1;Spese correnti;3;Acquisto di beni e servizi;2;Acquisto di servizi;5;Utenze e canoni;6;Gas;26-06-2020;
734;3;0;"959,38";"1.488,26";BIM PIAVE NUOVE ENERGIE S.R.L.; ;ACCONTO Fatt.n. 9001087  del 14/05/2020 Anno termico 2019/2020 - acqua calda 01/03/2020-30/04/2020 - Scuola Secondaria/Primaria;26-06-2020;252;0;121;1;Spese correnti;3;Acquisto di beni e servizi;2;Acquisto di servizi;5;Utenze e canoni;6;Gas;26-06-2020;
735;1;0;"1.465,63";"1.465,63";BIM PIAVE NUOVE ENERGIE S.R.L.; ;SALDO Fatt.n. 9001087  del 14/05/2020 Anno termico 2019/2020 - acqua calda 01/03/2020-30/04/2020 - Scuola Secondaria/Primaria;26-06-2020;530;0;120;1;Spese correnti;3;Acquisto di beni e servizi;2;Acquisto di servizi;5;Utenze e canoni;6;Gas;26-06-2020;
736;1;0;"200,00";"200,00";PUBLIKA S.R.L.;Z852C5759A;SALDO Fatt.n. 1141/PA  del 27/05/2020 IMPEGNO DI SPESA PER PARTECIPARE A CORSO DI FORMAZIONE;29-06-2020;52;0;189;1;Spese correnti;3;Acquisto di beni e servizi;2;Acquisto di servizi;4;Acquisto di servizi per formazione e addestramento del personale dell'ente;999;Acquisto di servizi per altre spese per formazione e addestramento n.a.c.;29-06-2020;
737;1;0;"6,59";"6,59";SPRINT OFFICE S.r.l.;ZC92C3DB77;SALDO Fatt.n. H65/26  del 31/05/2020 ACQUISTO CANCELLERIA PER UFF. VIGILI;29-06-2020;37;0;81;1;Spese correnti;3;Acquisto di beni e servizi;1;Acquisto di beni;2;Altri beni di consumo;1;"Carta, cancelleria e stampati";29-06-2020;
738;1;0;"2.614,87";"2.614,87";E.N.P.A. ENTE NAZIONALE PROTEZIONE ANIMALI ONLUS;Z3F2C6A54F;SALDO Fatt.n. 582/PA  del 08/04/2020 CUSTODIA E MANTENIMENTO CANI;29-06-2020;180;0;133;1;Spese correnti;3;Acquisto di beni e servizi;2;Acquisto di servizi;15;Contratti di servizio pubblico;11;Contratti di servizio per la lotta al randagismo;29-06-2020;
